Workbook

Sheet SIF Calculator Instructions
B36: Resource Links to External Documents
B37: Code Reference: | C37: LDC Chapter 25 Article 9 Street Impact Fees
B38: SIF Ordinances: | C38: 20201210-061 | D38: 20201210-062
B39: SIF Study
B40: LDC 25-6-51
B41: LDC 25-6-101
B42: SIF Roadway Capacity Plan Map

Sheet SIF Calculator Input
Y2: Street Impact Fee Calculation Worksheet
A3: City of Austin, Texas
Y4: http://www.austintexas.gov/department/street-impact-fee
AD5: Building Permit | AF5: =SUM(AE7:AM7) -> 0
B6: Development Name: | AD6: Assessment Date | AE6: 2018-03-29 | AF6: =IF(D13="","",IF(D14="","",IF(D14>=DATE(2019,1,1),2,1))) ->  | AG6: =IF(D13="","",IF(D14="","",IF(D13<DATE(2013,4,1),1,IF(D13>=DATE(2018,4,1),3,2)))) -> 
B7: Applicant: | AD7: Building Permit | AE7: =IF(D13="","",IF(D14="","",IF(AND($AF$6=1,(D13<DATE(2013,4,1))),1,0))) ->  | AF7: =IF(D13="","",IF(D14="","",IF(AND($AF$6=2,(D13<DATE(2013,4,1))),2,0))) ->  | AG7: =IF(D13="","",IF(AND($AF$6=1,IF(AND(D13>=DATE(2013,4,1),(D13<DATE(2018,4,1))),3,0)),3,0)) ->  | AH7: =IF(D13="","",IF(AND($AF$6=2,IF(AND(D13>=DATE(2013,4,1),(D13<DATE(2018,4,1))),IF(D14<(D13+730),4,0),0)),4,0)) ->  | AI7: =IF(D13="","",IF(AND($AF$6=2,IF(AND(D13>=DATE(2013,4,1),(D13<DATE(2018,4,1))),IF(D14>=(D13+730),5,0),0)),5,0)) ->  | AJ7: =IF(D13="","",IF(D14="","",IF(AND($AF$6=1,((D13>=DATE(2018,4,1)))),6,0))) ->  | AK7: =IF(D13="","",IF(D14="","",IF(AND($AF$6=2,((D13>=DATE(2019,1,1)))),7,0))) ->  | AL7: =IF(D13="","",IF(AND($AF$6=2,IF(AND(D13>=DATE(2018,4,1),(D13<DATE(2019,1,1))),IF(D14<(D13+730),8,0),0)),8,0)) ->  | AM7: =IF(D13="","",IF(AND($AF$6=2,IF(AND(D13>=DATE(2018,4,1),(D13<DATE(2019,1,1))),IF(D14>=(D13+730),9,0),0)),9,0)) -> 
B8: Legal Description (Lot, Block): | AB8: A | AC8: 23 | AD8: 10 | AE8: 1 | AF8: 2 | AG8: 3 | AH8: 4 | AI8: 5 | AJ8: 6 | AK8: 7 | AL8: 8 | AM8: 9
B9: Case Number: | F9: Date of Worksheet: | U9: Staff Initals: | AB9: B | AC9: 24 | AD9: 11
B10: TIA Ref # (if applicable): | AB10: C | AC10: 25 | AD10: 12 | AH10: A | AI10: OUTSIDE
W11: PUD/PDA Cases approved prior to December 21, 2020? | AB11: D | AC11: 26 | AD11: 13 | AE11: X | AF11: Yes | AH11: B | AI11: OUTSIDE
V12: =IF(AND($Y$45="",$Y$51=""),"","X") ->  | W12: Redevelopment Project? Updated based on existing land use input | AB12: E | AC12: 27 | AD12: 14 | AF12: No | AH12: C | AI12: OUTSIDE
C13: Date of Final Plat Approval: | H13: =IF($D$14="Before June 21, 2022","No Street Impact Fee Collected",IF($B$23="","", IF($B$23="","",IF($D$13="","Enter Date of Final Plat Approval","")))) ->  | W13: Part of larger developement? | Y13: Worksheet Last Updated: 04/03/2025 | AB13: F | AC13: 28 | AD13: 15 | AE13: Before December 21, 2020 | AF13: Before June 21, 2022 | AH13: D | AI13: OUTSIDE
C14: Date of Building Permit Issue: | H14: =IF(AND($D$14="On or after June 21, 2022",$V$14="X"),"No Street Impact Fee Collected",IF($V$11="X","No Street Impact Fee Collected","")) ->  | W14: TIA approved prior to December 21, 2020? | AB14: G | AC14: 29 | AD14: 16 | AE14: On or after December 21, 2020 | AF14: On or after June 21, 2022 | AH14: E | AI14: OUTSIDE
C15: Service Area (select from list): | J15: Located in University District Overlay? | AB15: H | AC15: 30 | AD15: 17 | AF15: On or after December 21, 2023 | AH15: F | AI15: INSIDE
B16: Notes: | C16: (1) Effective date of the ordinance is December 21, 2020 and a grace period of 18 months applies. As a result no fee until builing permits issued June 21, 2022 or later. (2) Applicant may be eligible for reductions or offsets for infrastructure built. Applicant to apply for either with Transportation and Public Works Department. (3) Total Street Impact Fee Collection Amount represents the sum of Proposed Land Uses associated fees less Existing Land Uses associated fees, or net new trips. | AB16: I | AC16: 31 | AD16: 18 | AH16: G | AI16: OUTSIDE
AB17: J | AC17: 32 | AD17: 19 | AH17: H | AI17: OUTSIDE
B18: STREET IMPACT FEE CALCULATION: | AB18: K, Inside SL 360 | AC18: 33 | AD18: 20 | AH18: I | AI18: INSIDE
AB19: K, Outside SL 360 | AC19: 34 | AD19: 20 | AH19: J | AI19: INSIDE
B20: PROPOSED LAND USES | Q20: Maximum Assessable Fee | W20: Potential Collection Amounts | AB20: L | AC20: 35 | AD20: 21 | AH20: K, Inside SL 360 | AI20: INSIDE
B21: Land Uses (select from list): | D21: Development Unit: | F21: # of Units: | H21: PM Peak Hour Trip Rate: | J21: Trip Length: (Miles) | N21: Demand: (Vehicle-Miles) | Q21: Maximum Fee Per Development Unit: | S21: Maximum Fee: | W21: Impact Fee Per Development Unit: | Y21: Street Impact Fee: | AB21: M | AC21: 36 | AD21: 22 | AE21: PM Peak Trips | AH21: K, Outside SL 360 | AI21: OUTSIDE
AB22: N | AC22: 37 | AD22: 23 | AH22: L | AI22: INSIDE
D23: =IF(B23="","",IF(B23="Please Enter Dates Properly","",VLOOKUP(B23,Collected_Rate!$A$4:$G$80,7,FALSE))) ->  | H23: =IF(B23="","",VLOOKUP(B23,Collected_Rate!$A$4:$V$80,11,FALSE)) ->  | J23: =IF(B23="","",IF($D$15="","",IF(VLOOKUP($D$15,$AH$10:$AI$28,2,FALSE)="INSIDE",VLOOKUP(B23,Collected_Rate!$A$4:$V$80,19,FALSE),VLOOKUP(B23,Collected_Rate!$A$4:$V$80,20,FALSE)))) ->  | N23: =IF(J23= "","",IF(H23="","",H23*J23)) ->  | Q23: =IF(B23="","",IF($D$13="","Enter Date of Final Plat Approval",IF($D$14="","Enter Date of Building Permit Application",IF($D$15="","Enter Service Area",VLOOKUP(B23,Max_Rate!$A$4:$Z$80,VLOOKUP('SIF Calculator Input'!$D$15,'SIF Calculator Input'!$AB$8:$AD$26,3,FALSE),FALSE))))) ->  | S23: =IF(B23="","",IF($D$13="","Enter Date of Final Plat Approval",IF($D$14="","Enter Date of Building Permit Application",IF($D$15="","Enter Service Area",IF(F23="","Enter # of Units",Q23*F23))))) ->  | T23: =IF(B23="",0,IF($D$13="","Enter Date of Final Plat Approval",IF($D$14="","Enter Date of Building Permit Application",IF($D$15="","Enter Service Area",IF($D$14="Before June 21, 2022","No Street Impact Fee Collected",""))))) -> 0 | W23: =IF(B23="","",IF(T23<>"",T23,IF(OR($V$11="X",AND($V$14="X",$D$14="On or after June 21, 2022")),"No Street Impact Fee Collected",IF(AND($AE$56<10,$V$13=""),"Less than 10 PM Peak Hour Trips: $0 Collection Rate",IF(AND(AG23=TRUE,F23<1),0,IF(AND(AG23=TRUE,F23<5),0.5*VLOOKUP(B23,Collected_Rate!$A$4:$AN$80,VLOOKUP('SIF Calculator Input'!$D$15,'SIF Calculator Input'!$AB$8:$AC$26,2,FALSE),FALSE),VLOOKUP(B23,Collected_Rate!$A$4:$AN$80,VLOOKUP('SIF Calculator Input'!$D$15,'SIF Calculator Input'!$AB$8:$AC$26,2,FALSE),FALSE))))))) ->  | Y23: =IF(W23="No Street Impact Fee Collected","No Street Impact Fee Collected",IF(B23="","",IF($D$13="","Enter Date of Final Plat Approval",IF($D$14="","Enter Date of Building Permit Application",IF($D$15="","Enter Service Area",IF(F23="","Enter # of Units",IF(AND($AE$56<10,$V$13=""),"Less than 10 PM Peak Hour Trips: $0 Collection Rate",W23*F23))))))) ->  | AB23: O | AC23: 38 | AD23: 24 | AE23: =IF(ISERROR(VLOOKUP(B23,Collected_Rate!$A$3:$K$80,11,FALSE)*F23),0,VLOOKUP(B23,Collected_Rate!$A$3:$K$80,11,FALSE)*F23) -> 0 | AG23: =NOT(ISERROR(MATCH(B23,$AF$24:$AF$40,0))) -> FALSE | AH23: M | AI23: OUTSIDE
D24: =IF(B24="","",IF(B24="Please Enter Dates Properly","",VLOOKUP(B24,Collected_Rate!$A$4:$G$80,7,FALSE))) ->  | H24: =IF(B24="","",VLOOKUP(B24,Collected_Rate!$A$4:$V$80,11,FALSE)) ->  | J24: =IF(B24="","",IF($D$15="","",IF(VLOOKUP($D$15,$AH$10:$AI$28,2,FALSE)="INSIDE",VLOOKUP(B24,Collected_Rate!$A$4:$V$80,19,FALSE),VLOOKUP(B24,Collected_Rate!$A$4:$V$80,20,FALSE)))) ->  | N24: =IF(J24= "","",IF(H24="","",H24*J24)) ->  | Q24: =IF(B24="","",IF($D$13="","Enter Date of Final Plat Approval",IF($D$14="","Enter Date of Building Permit Application",IF($D$15="","Enter Service Area",VLOOKUP(B24,Max_Rate!$A$4:$Z$80,VLOOKUP('SIF Calculator Input'!$D$15,'SIF Calculator Input'!$AB$8:$AD$26,3,FALSE),FALSE))))) ->  | T24: =IF(B24="",0,IF($D$13="","Enter Date of Final Plat Approval",IF($D$14="","Enter Date of Building Permit Application",IF($D$15="","Enter Service Area",IF($D$14="Before June 21, 2022","No Street Impact Fee Collected",""))))) -> 0 | W24: =IF(B24="","",IF(T24<>"",T24,IF(OR($V$11="X",AND($V$14="X",$D$14="On or after June 21, 2022")),"No Street Impact Fee Collected",IF(AND($AE$56<10,$V$13=""),"Less than 10 PM Peak Hour Trips: $0 Collection Rate",IF(AND(AG24=TRUE,F24<1),0,IF(AND(AG24=TRUE,F24<5),0.5*VLOOKUP(B24,Collected_Rate!$A$4:$AN$80,VLOOKUP('SIF Calculator Input'!$D$15,'SIF Calculator Input'!$AB$8:$AC$26,2,FALSE),FALSE),VLOOKUP(B24,Collected_Rate!$A$4:$AN$80,VLOOKUP('SIF Calculator Input'!$D$15,'SIF Calculator Input'!$AB$8:$AC$26,2,FALSE),FALSE))))))) ->  | AB24: P | AC24: 39 | AD24: 25 | AE24: =IF(ISERROR(VLOOKUP(B24,Collected_Rate!$A$3:$K$80,11,FALSE)*F24),0,VLOOKUP(B24,Collected_Rate!$A$3:$K$80,11,FALSE)*F24) -> 0 | AF24: =Collected_Rate!A63 -> (933) Fast Food Restaurant without Drive-Thru Window | AG24: =NOT(ISERROR(MATCH(B24,$AF$24:$AF$40,0))) -> FALSE | AH24: N | AI24: OUTSIDE | AJ24: =IF(B26="","",IF($AF$5=$AJ$19,ROUND(VLOOKUP(B26,#REF!,HLOOKUP($D$15,#REF!,87,FALSE),FALSE),0),0)) ->  | AK24: =IF(B26="","",IF($AF$5=$AK$19,ROUND(VLOOKUP(B26,#REF!,HLOOKUP($D$15,#REF!,87,FALSE),FALSE),0),0)) ->  | AL24: =IF(B26="","",IF($AF$5=$AL$19,ROUND(VLOOKUP(B26,#REF!,HLOOKUP($D$15,#REF!,87,FALSE),FALSE),0),0)) ->  | AM24: =IF(B26="","",IF($AF$5=$AM$19,ROUND(VLOOKUP(B26,#REF!,HLOOKUP($D$15,#REF!,87,FALSE),FALSE),0),0)) ->  | AN24: =IF(B26="","",IF($AF$5=$AN$19,ROUND(VLOOKUP(B26,#REF!,HLOOKUP($D$15,#REF!,87,FALSE),FALSE),0),0)) ->  | AO24: =IF(B26="","",IF($AF$5=$AO$19,ROUND(VLOOKUP(B26,#REF!,HLOOKUP($D$15,#REF!,87,FALSE),FALSE),0),0)) ->  | AP24: =IF(B26="","",IF($AF$5=$AP$19,ROUND(VLOOKUP(B26,#REF!,HLOOKUP($D$15,#REF!,87,FALSE),FALSE),0),0)) ->  | AQ24: =IF(B26="","",IF($AF$5=$AQ$19,ROUND(VLOOKUP(B26,#REF!,HLOOKUP($D$15,#REF!,87,FALSE),FALSE),0),0)) -> 
D25: =IF(B25="","",IF(B25="Please Enter Dates Properly","",VLOOKUP(B25,Collected_Rate!$A$4:$G$80,7,FALSE))) ->  | H25: =IF(B25="","",VLOOKUP(B25,Collected_Rate!$A$4:$V$80,11,FALSE)) ->  | J25: =IF(B25="","",IF($D$15="","",IF(VLOOKUP($D$15,$AH$10:$AI$28,2,FALSE)="INSIDE",VLOOKUP(B25,Collected_Rate!$A$4:$V$80,19,FALSE),VLOOKUP(B25,Collected_Rate!$A$4:$V$80,20,FALSE)))) ->  | Q25: =IF(B25="","",IF($D$13="","Enter Date of Final Plat Approval",IF($D$14="","Enter Date of Building Permit Application",IF($D$15="","Enter Service Area",VLOOKUP(B25,Max_Rate!$A$4:$Z$80,VLOOKUP('SIF Calculator Input'!$D$15,'SIF Calculator Input'!$AB$8:$AD$26,3,FALSE),FALSE))))) ->  | T25: 0 | W25: =IF(B25="","",IF(T25<>"",T25,IF(OR($V$11="X",AND($V$14="X",$D$14="On or after June 21, 2022")),"No Street Impact Fee Collected",IF(AND($AE$56<10,$V$13=""),"Less than 10 PM Peak Hour Trips: $0 Collection Rate",IF(AND(AG25=TRUE,F25<1),0,IF(AND(AG25=TRUE,F25<5),0.5*VLOOKUP(B25,Collected_Rate!$A$4:$AN$80,VLOOKUP('SIF Calculator Input'!$D$15,'SIF Calculator Input'!$AB$8:$AC$26,2,FALSE),FALSE),VLOOKUP(B25,Collected_Rate!$A$4:$AN$80,VLOOKUP('SIF Calculator Input'!$D$15,'SIF Calculator Input'!$AB$8:$AC$26,2,FALSE),FALSE))))))) ->  | AB25: DT | AC25: 40 | AD25: 26 | AE25: =IF(ISERROR(VLOOKUP(B25,Collected_Rate!$A$3:$K$80,11,FALSE)*F25),0,VLOOKUP(B25,Collected_Rate!$A$3:$K$80,11,FALSE)*F25) -> 0 | AF25: =Collected_Rate!A64 -> (932) High Turnover (Sit-Down) Restaurant | AG25: FALSE | AH25: O | AI25: OUTSIDE | AJ25: =IF(B27="","",IF($AF$5=$AJ$19,ROUND(VLOOKUP(B27,#REF!,HLOOKUP($D$15,#REF!,87,FALSE),FALSE),0),0)) ->  | AK25: =IF(B27="","",IF($AF$5=$AK$19,ROUND(VLOOKUP(B27,#REF!,HLOOKUP($D$15,#REF!,87,FALSE),FALSE),0),0)) ->  | AL25: =IF(B27="","",IF($AF$5=$AL$19,ROUND(VLOOKUP(B27,#REF!,HLOOKUP($D$15,#REF!,87,FALSE),FALSE),0),0)) ->  | AM25: =IF(B27="","",IF($AF$5=$AM$19,ROUND(VLOOKUP(B27,#REF!,HLOOKUP($D$15,#REF!,87,FALSE),FALSE),0),0)) ->  | AN25: =IF(B27="","",IF($AF$5=$AN$19,ROUND(VLOOKUP(B27,#REF!,HLOOKUP($D$15,#REF!,87,FALSE),FALSE),0),0)) ->  | AO25: =IF(B27="","",IF($AF$5=$AO$19,ROUND(VLOOKUP(B27,#REF!,HLOOKUP($D$15,#REF!,87,FALSE),FALSE),0),0)) ->  | AP25: =IF(B27="","",IF($AF$5=$AP$19,ROUND(VLOOKUP(B27,#REF!,HLOOKUP($D$15,#REF!,87,FALSE),FALSE),0),0)) ->  | AQ25: =IF(B27="","",IF($AF$5=$AQ$19,ROUND(VLOOKUP(B27,#REF!,HLOOKUP($D$15,#REF!,87,FALSE),FALSE),0),0)) -> 
D26: =IF(B26="","",IF(B26="Please Enter Dates Properly","",VLOOKUP(B26,Collected_Rate!$A$4:$G$80,7,FALSE))) ->  | H26: =IF(B26="","",VLOOKUP(B26,Collected_Rate!$A$4:$V$80,11,FALSE)) ->  | J26: =IF(B26="","",IF($D$15="","",IF(VLOOKUP($D$15,$AH$10:$AI$28,2,FALSE)="INSIDE",VLOOKUP(B26,Collected_Rate!$A$4:$V$80,19,FALSE),VLOOKUP(B26,Collected_Rate!$A$4:$V$80,20,FALSE)))) ->  | Q26: =IF(B26="","",IF($D$13="","Enter Date of Final Plat Approval",IF($D$14="","Enter Date of Building Permit Application",IF($D$15="","Enter Service Area",VLOOKUP(B26,Max_Rate!$A$4:$Z$80,VLOOKUP('SIF Calculator Input'!$D$15,'SIF Calculator Input'!$AB$8:$AD$26,3,FALSE),FALSE))))) ->  | T26: 0 | W26: =IF(B26="","",IF(T26<>"",T26,IF(OR($V$11="X",AND($V$14="X",$D$14="On or after June 21, 2022")),"No Street Impact Fee Collected",IF(AND($AE$56<10,$V$13=""),"Less than 10 PM Peak Hour Trips: $0 Collection Rate",IF(AND(AG26=TRUE,F26<1),0,IF(AND(AG26=TRUE,F26<5),0.5*VLOOKUP(B26,Collected_Rate!$A$4:$AN$80,VLOOKUP('SIF Calculator Input'!$D$15,'SIF Calculator Input'!$AB$8:$AC$26,2,FALSE),FALSE),VLOOKUP(B26,Collected_Rate!$A$4:$AN$80,VLOOKUP('SIF Calculator Input'!$D$15,'SIF Calculator Input'!$AB$8:$AC$26,2,FALSE),FALSE))))))) ->  | AB26: ETJ | AC26: 41 | AD26: 27 | AE26: =IF(ISERROR(VLOOKUP(B26,Collected_Rate!$A$3:$K$80,11,FALSE)*F26),0,VLOOKUP(B26,Collected_Rate!$A$3:$K$80,11,FALSE)*F26) -> 0 | AF26: =Collected_Rate!A65 -> (931) Quality Restaurant | AG26: FALSE | AH26: P | AI26: OUTSIDE | AJ26: =IF(B28="","",IF($AF$5=$AJ$19,ROUND(VLOOKUP(B28,#REF!,HLOOKUP($D$15,#REF!,87,FALSE),FALSE),0),0)) ->  | AK26: =IF(B28="","",IF($AF$5=$AK$19,ROUND(VLOOKUP(B28,#REF!,HLOOKUP($D$15,#REF!,87,FALSE),FALSE),0),0)) ->  | AL26: =IF(B28="","",IF($AF$5=$AL$19,ROUND(VLOOKUP(B28,#REF!,HLOOKUP($D$15,#REF!,87,FALSE),FALSE),0),0)) ->  | AM26: =IF(B28="","",IF($AF$5=$AM$19,ROUND(VLOOKUP(B28,#REF!,HLOOKUP($D$15,#REF!,87,FALSE),FALSE),0),0)) ->  | AN26: =IF(B28="","",IF($AF$5=$AN$19,ROUND(VLOOKUP(B28,#REF!,HLOOKUP($D$15,#REF!,87,FALSE),FALSE),0),0)) ->  | AO26: =IF(B28="","",IF($AF$5=$AO$19,ROUND(VLOOKUP(B28,#REF!,HLOOKUP($D$15,#REF!,87,FALSE),FALSE),0),0)) ->  | AP26: =IF(B28="","",IF($AF$5=$AP$19,ROUND(VLOOKUP(B28,#REF!,HLOOKUP($D$15,#REF!,87,FALSE),FALSE),0),0)) ->  | AQ26: =IF(B28="","",IF($AF$5=$AQ$19,ROUND(VLOOKUP(B28,#REF!,HLOOKUP($D$15,#REF!,87,FALSE),FALSE),0),0)) -> 
D27: =IF(B27="","",IF(B27="Please Enter Dates Properly","",VLOOKUP(B27,Collected_Rate!$A$4:$G$80,7,FALSE))) ->  | H27: =IF(B27="","",VLOOKUP(B27,Collected_Rate!$A$4:$V$80,11,FALSE)) ->  | J27: =IF(B27="","",IF($D$15="","",IF(VLOOKUP($D$15,$AH$10:$AI$28,2,FALSE)="INSIDE",VLOOKUP(B27,Collected_Rate!$A$4:$V$80,19,FALSE),VLOOKUP(B27,Collected_Rate!$A$4:$V$80,20,FALSE)))) ->  | Q27: =IF(B27="","",IF($D$13="","Enter Date of Final Plat Approval",IF($D$14="","Enter Date of Building Permit Application",IF($D$15="","Enter Service Area",VLOOKUP(B27,Max_Rate!$A$4:$Z$80,VLOOKUP('SIF Calculator Input'!$D$15,'SIF Calculator Input'!$AB$8:$AD$26,3,FALSE),FALSE))))) ->  | T27: 0 | W27: =IF(B27="","",IF(T27<>"",T27,IF(OR($V$11="X",AND($V$14="X",$D$14="On or after June 21, 2022")),"No Street Impact Fee Collected",IF(AND($AE$56<10,$V$13=""),"Less than 10 PM Peak Hour Trips: $0 Collection Rate",IF(AND(AG27=TRUE,F27<1),0,IF(AND(AG27=TRUE,F27<5),0.5*VLOOKUP(B27,Collected_Rate!$A$4:$AN$80,VLOOKUP('SIF Calculator Input'!$D$15,'SIF Calculator Input'!$AB$8:$AC$26,2,FALSE),FALSE),VLOOKUP(B27,Collected_Rate!$A$4:$AN$80,VLOOKUP('SIF Calculator Input'!$D$15,'SIF Calculator Input'!$AB$8:$AC$26,2,FALSE),FALSE))))))) ->  | AE27: =IF(ISERROR(VLOOKUP(B27,Collected_Rate!$A$3:$K$80,11,FALSE)*F27),0,VLOOKUP(B27,Collected_Rate!$A$3:$K$80,11,FALSE)*F27) -> 0 | AG27: FALSE | AH27: DT | AI27: INSIDE | AJ27: =IF(B29="","",IF($AF$5=$AJ$19,ROUND(VLOOKUP(B29,#REF!,HLOOKUP($D$15,#REF!,87,FALSE),FALSE),0),0)) ->  | AK27: =IF(B29="","",IF($AF$5=$AK$19,ROUND(VLOOKUP(B29,#REF!,HLOOKUP($D$15,#REF!,87,FALSE),FALSE),0),0)) ->  | AL27: =IF(B29="","",IF($AF$5=$AL$19,ROUND(VLOOKUP(B29,#REF!,HLOOKUP($D$15,#REF!,87,FALSE),FALSE),0),0)) ->  | AM27: =IF(B29="","",IF($AF$5=$AM$19,ROUND(VLOOKUP(B29,#REF!,HLOOKUP($D$15,#REF!,87,FALSE),FALSE),0),0)) ->  | AN27: =IF(B29="","",IF($AF$5=$AN$19,ROUND(VLOOKUP(B29,#REF!,HLOOKUP($D$15,#REF!,87,FALSE),FALSE),0),0)) ->  | AO27: =IF(B29="","",IF($AF$5=$AO$19,ROUND(VLOOKUP(B29,#REF!,HLOOKUP($D$15,#REF!,87,FALSE),FALSE),0),0)) ->  | AP27: =IF(B29="","",IF($AF$5=$AP$19,ROUND(VLOOKUP(B29,#REF!,HLOOKUP($D$15,#REF!,87,FALSE),FALSE),0),0)) ->  | AQ27: =IF(B29="","",IF($AF$5=$AQ$19,ROUND(VLOOKUP(B29,#REF!,HLOOKUP($D$15,#REF!,87,FALSE),FALSE),0),0)) -> 
D28: =IF(B28="","",IF(B28="Please Enter Dates Properly","",VLOOKUP(B28,Collected_Rate!$A$4:$G$80,7,FALSE))) ->  | H28: =IF(B28="","",VLOOKUP(B28,Collected_Rate!$A$4:$V$80,11,FALSE)) ->  | J28: =IF(B28="","",IF($D$15="","",IF(VLOOKUP($D$15,$AH$10:$AI$28,2,FALSE)="INSIDE",VLOOKUP(B28,Collected_Rate!$A$4:$V$80,19,FALSE),VLOOKUP(B28,Collected_Rate!$A$4:$V$80,20,FALSE)))) ->  | Q28: =IF(B28="","",IF($D$13="","Enter Date of Final Plat Approval",IF($D$14="","Enter Date of Building Permit Application",IF($D$15="","Enter Service Area",VLOOKUP(B28,Max_Rate!$A$4:$Z$80,VLOOKUP('SIF Calculator Input'!$D$15,'SIF Calculator Input'!$AB$8:$AD$26,3,FALSE),FALSE))))) ->  | T28: 0 | W28: =IF(B28="","",IF(T28<>"",T28,IF(OR($V$11="X",AND($V$14="X",$D$14="On or after June 21, 2022")),"No Street Impact Fee Collected",IF(AND($AE$56<10,$V$13=""),"Less than 10 PM Peak Hour Trips: $0 Collection Rate",IF(AND(AG28=TRUE,F28<1),0,IF(AND(AG28=TRUE,F28<5),0.5*VLOOKUP(B28,Collected_Rate!$A$4:$AN$80,VLOOKUP('SIF Calculator Input'!$D$15,'SIF Calculator Input'!$AB$8:$AC$26,2,FALSE),FALSE),VLOOKUP(B28,Collected_Rate!$A$4:$AN$80,VLOOKUP('SIF Calculator Input'!$D$15,'SIF Calculator Input'!$AB$8:$AC$26,2,FALSE),FALSE))))))) ->  | AE28: =IF(ISERROR(VLOOKUP(B28,Collected_Rate!$A$3:$K$80,11,FALSE)*F28),0,VLOOKUP(B28,Collected_Rate!$A$3:$K$80,11,FALSE)*F28) -> 0 | AF28: =Collected_Rate!A44 -> (640) Animal Hospital/Veterinary Clinic | AG28: FALSE | AH28: ETJ | AI28: OUTSIDE | AJ28: =IF(B30="","",IF($AF$5=$AJ$19,ROUND(VLOOKUP(B30,#REF!,HLOOKUP($D$15,#REF!,87,FALSE),FALSE),0),0)) ->  | AK28: =IF(B30="","",IF($AF$5=$AK$19,ROUND(VLOOKUP(B30,#REF!,HLOOKUP($D$15,#REF!,87,FALSE),FALSE),0),0)) ->  | AL28: =IF(B30="","",IF($AF$5=$AL$19,ROUND(VLOOKUP(B30,#REF!,HLOOKUP($D$15,#REF!,87,FALSE),FALSE),0),0)) ->  | AM28: =IF(B30="","",IF($AF$5=$AM$19,ROUND(VLOOKUP(B30,#REF!,HLOOKUP($D$15,#REF!,87,FALSE),FALSE),0),0)) ->  | AN28: =IF(B30="","",IF($AF$5=$AN$19,ROUND(VLOOKUP(B30,#REF!,HLOOKUP($D$15,#REF!,87,FALSE),FALSE),0),0)) ->  | AO28: =IF(B30="","",IF($AF$5=$AO$19,ROUND(VLOOKUP(B30,#REF!,HLOOKUP($D$15,#REF!,87,FALSE),FALSE),0),0)) ->  | AP28: =IF(B30="","",IF($AF$5=$AP$19,ROUND(VLOOKUP(B30,#REF!,HLOOKUP($D$15,#REF!,87,FALSE),FALSE),0),0)) ->  | AQ28: =IF(B30="","",IF($AF$5=$AQ$19,ROUND(VLOOKUP(B30,#REF!,HLOOKUP($D$15,#REF!,87,FALSE),FALSE),0),0)) -> 
D29: =IF(B29="","",IF(B29="Please Enter Dates Properly","",VLOOKUP(B29,Collected_Rate!$A$4:$G$80,7,FALSE))) ->  | H29: =IF(B29="","",VLOOKUP(B29,Collected_Rate!$A$4:$V$80,11,FALSE)) ->  | J29: =IF(B29="","",IF($D$15="","",IF(VLOOKUP($D$15,$AH$10:$AI$28,2,FALSE)="INSIDE",VLOOKUP(B29,Collected_Rate!$A$4:$V$80,19,FALSE),VLOOKUP(B29,Collected_Rate!$A$4:$V$80,20,FALSE)))) ->  | Q29: =IF(B29="","",IF($D$13="","Enter Date of Final Plat Approval",IF($D$14="","Enter Date of Building Permit Application",IF($D$15="","Enter Service Area",VLOOKUP(B29,Max_Rate!$A$4:$Z$80,VLOOKUP('SIF Calculator Input'!$D$15,'SIF Calculator Input'!$AB$8:$AD$26,3,FALSE),FALSE))))) ->  | T29: 0 | W29: =IF(B29="","",IF(T29<>"",T29,IF(OR($V$11="X",AND($V$14="X",$D$14="On or after June 21, 2022")),"No Street Impact Fee Collected",IF(AND($AE$56<10,$V$13=""),"Less than 10 PM Peak Hour Trips: $0 Collection Rate",IF(AND(AG29=TRUE,F29<1),0,IF(AND(AG29=TRUE,F29<5),0.5*VLOOKUP(B29,Collected_Rate!$A$4:$AN$80,VLOOKUP('SIF Calculator Input'!$D$15,'SIF Calculator Input'!$AB$8:$AC$26,2,FALSE),FALSE),VLOOKUP(B29,Collected_Rate!$A$4:$AN$80,VLOOKUP('SIF Calculator Input'!$D$15,'SIF Calculator Input'!$AB$8:$AC$26,2,FALSE),FALSE))))))) ->  | AC29: =W23/Q23 ->  | AE29: =IF(ISERROR(VLOOKUP(B29,Collected_Rate!$A$3:$K$80,11,FALSE)*F29),0,VLOOKUP(B29,Collected_Rate!$A$3:$K$80,11,FALSE)*F29) -> 0 | AF29: =Collected_Rate!A34 -> (565) Day Care Center | AG29: FALSE
D30: =IF(B30="","",IF(B30="Please Enter Dates Properly","",VLOOKUP(B30,Collected_Rate!$A$4:$G$80,7,FALSE))) ->  | H30: =IF(B30="","",VLOOKUP(B30,Collected_Rate!$A$4:$V$80,11,FALSE)) ->  | J30: =IF(B30="","",IF($D$15="","",IF(VLOOKUP($D$15,$AH$10:$AI$28,2,FALSE)="INSIDE",VLOOKUP(B30,Collected_Rate!$A$4:$V$80,19,FALSE),VLOOKUP(B30,Collected_Rate!$A$4:$V$80,20,FALSE)))) ->  | Q30: =IF(B30="","",IF($D$13="","Enter Date of Final Plat Approval",IF($D$14="","Enter Date of Building Permit Application",IF($D$15="","Enter Service Area",VLOOKUP(B30,Max_Rate!$A$4:$Z$80,VLOOKUP('SIF Calculator Input'!$D$15,'SIF Calculator Input'!$AB$8:$AD$26,3,FALSE),FALSE))))) ->  | T30: 0 | W30: =IF(B30="","",IF(T30<>"",T30,IF(OR($V$11="X",AND($V$14="X",$D$14="On or after June 21, 2022")),"No Street Impact Fee Collected",IF(AND($AE$56<10,$V$13=""),"Less than 10 PM Peak Hour Trips: $0 Collection Rate",IF(AND(AG30=TRUE,F30<1),0,IF(AND(AG30=TRUE,F30<5),0.5*VLOOKUP(B30,Collected_Rate!$A$4:$AN$80,VLOOKUP('SIF Calculator Input'!$D$15,'SIF Calculator Input'!$AB$8:$AC$26,2,FALSE),FALSE),VLOOKUP(B30,Collected_Rate!$A$4:$AN$80,VLOOKUP('SIF Calculator Input'!$D$15,'SIF Calculator Input'!$AB$8:$AC$26,2,FALSE),FALSE))))))) ->  | AE30: =IF(ISERROR(VLOOKUP(B30,Collected_Rate!$A$3:$K$80,11,FALSE)*F30),0,VLOOKUP(B30,Collected_Rate!$A$3:$K$80,11,FALSE)*F30) -> 0 | AF30: =Collected_Rate!A80 -> (918) Hair Salon | AG30: FALSE | AH30: =IF(B61="","",AG30*F61) -> 
B31: Note: Plat Approval and Building Permit dates must be selected prior to selecting land use. | AF31: =Collected_Rate!A68 -> (815) Free-Standing Discount Store
B32: Custom Land Uses (manually input): | D32: Development Unit:1 | F32: # of Units: | H32: PM Peak Hour Trip Rate:2 | J32: Trip Length: (Miles)3 | L32: Residential?4 | N32: Demand: (Vehicle-Miles) | T32: % Reduction (Per Ord. 20201210-061 Part2.D.4-6) | AF32: =Collected_Rate!A69 -> (817) Nursery (Garden Center)
N33: =IF(J33="","",IF(J33>6,ROUND(H33*6,2),ROUND(H33*J33,2))) ->  | Q33: =IF(B33="","",IF($D$13="","Enter Date of Final Plat Approval",IF($D$14="","Enter Date of Building Permit Application",IF($D$15="","Enter Service Area",VLOOKUP("PORT AND TERMINAL",Max_Rate!$A$4:$Z$80,VLOOKUP('SIF Calculator Input'!$D$15,'SIF Calculator Input'!$AB$8:$AD$26,3,FALSE),FALSE)*N33)))) ->  | S33: =IF(B33="","",IF($D$13="","Enter Date of Final Plat Approval",IF($D$14="","Enter Date of Building Permit Application",IF($D$15="","Enter Service Area",IF(F33="","Enter # of Units",Q33*F33))))) ->  | W33: =IF(B33="","",IF($D$13="","Enter Date of Final Plat Approval",IF($D$14="","Enter Date of Building Permit Application",IF($D$15="","Enter Service Area",IF(OR($D$14="Before June 21, 2022",$V$11="X",AND($V$14="X",$D$14="On or after June 21, 2022")),"No Street Impact Fee Collected",IF(AND($AE$56<10,$V$13=""),"Less than 10 PM Peak Hour Trips: $0 Collection Rate",IF(L33="Yes",N33*Collected_Rate!$AO$3*(1-T33),IF(N33="","Enter Custom Land Use Data",N33*Collected_Rate!$AO$4*(1-T33))))))))) ->  | Y33: =IF(W33="No Street Impact Fee Collected","No Street Impact Fee Collected",IF(B33="","",IF($D$13="","Enter Date of Final Plat Approval",IF($D$14="","Enter Date of Building Permit Application",IF($D$15="","Enter Service Area",IF(F33="","Enter # of Units",IF(AND($AE$56<10,$V$13=""),"Less than 10 PM Peak Hour Trips: $0 Collection Rate",W33*F33))))))) ->  | AE33: =IF(F33="",0,F33*H33) -> 0 | AF33: =Collected_Rate!A70 -> (862) Home Improvement Superstore
N34: =IF(J34="","",IF(J34>6,ROUND(H34*6,2),ROUND(H34*J34,2))) ->  | Q34: =IF(B34="","",IF($D$13="","Enter Date of Final Plat Approval",IF($D$14="","Enter Date of Building Permit Application",IF($D$15="","Enter Service Area",VLOOKUP("PORT AND TERMINAL",Max_Rate!$A$4:$Z$80,VLOOKUP('SIF Calculator Input'!$D$15,'SIF Calculator Input'!$AB$8:$AD$26,3,FALSE),FALSE)*N34)))) ->  | S34: =IF(B34="","",IF($D$13="","Enter Date of Final Plat Approval",IF($D$14="","Enter Date of Building Permit Application",IF($D$15="","Enter Service Area",IF(F34="","Enter # of Units",Q34*F34))))) ->  | W34: =IF(B34="","",IF($D$13="","Enter Date of Final Plat Approval",IF($D$14="","Enter Date of Building Permit Application",IF($D$15="","Enter Service Area",IF(OR($D$14="Before June 21, 2022",$V$11="X",AND($V$14="X",$D$14="On or after June 21, 2022")),"No Street Impact Fee Collected",IF(AND($AE$56<10,$V$13=""),"Less than 10 PM Peak Hour Trips: $0 Collection Rate",IF(L34="Yes",N34*Collected_Rate!$AO$3*(1-T34),IF(N34="","Enter Custom Land Use Data",N34*Collected_Rate!$AO$4*(1-T34))))))))) ->  | Y34: =IF(W34="No Street Impact Fee Collected","No Street Impact Fee Collected",IF(B34="","",IF($D$13="","Enter Date of Final Plat Approval",IF($D$14="","Enter Date of Building Permit Application",IF($D$15="","Enter Service Area",IF(F34="","Enter # of Units",IF(AND($AE$56<10,$V$13=""),"Less than 10 PM Peak Hour Trips: $0 Collection Rate",W34*F34))))))) ->  | AE34: =IF(F34="",0,F34*H34) -> 0 | AF34: =Collected_Rate!A71 -> (880) Pharmacy/Drugstore w/o Drive-Thru Window
Q35: =IF(B35="","",IF($D$13="","Enter Date of Final Plat Approval",IF($D$14="","Enter Date of Building Permit Application",IF($D$15="","Enter Service Area",VLOOKUP("PORT AND TERMINAL",Max_Rate!$A$4:$Z$80,VLOOKUP('SIF Calculator Input'!$D$15,'SIF Calculator Input'!$AB$8:$AD$26,3,FALSE),FALSE)*N35)))) ->  | S35: =IF(B35="","",IF($D$13="","Enter Date of Final Plat Approval",IF($D$14="","Enter Date of Building Permit Application",IF($D$15="","Enter Service Area",IF(F35="","Enter # of Units",Q35*F35))))) ->  | W35: =IF(B35="","",IF($D$13="","Enter Date of Final Plat Approval",IF($D$14="","Enter Date of Building Permit Application",IF($D$15="","Enter Service Area",IF(OR($D$14="Before June 21, 2022",$V$11="X",AND($V$14="X",$D$14="On or after June 21, 2022")),"No Street Impact Fee Collected",IF(AND($AE$56<10,$V$13=""),"Less than 10 PM Peak Hour Trips: $0 Collection Rate",IF(L35="Yes",N35*Collected_Rate!$AO$3*(1-T35),IF(N35="","Enter Custom Land Use Data",N35*Collected_Rate!$AO$4*(1-T35))))))))) ->  | Y35: =IF(W35="No Street Impact Fee Collected","No Street Impact Fee Collected",IF(B35="","",IF($D$13="","Enter Date of Final Plat Approval",IF($D$14="","Enter Date of Building Permit Application",IF($D$15="","Enter Service Area",IF(F35="","Enter # of Units",IF(AND($AE$56<10,$V$13=""),"Less than 10 PM Peak Hour Trips: $0 Collection Rate",W35*F35))))))) ->  | AE35: =IF(F35="",0,F35*H35) -> 0
Q36: =IF(B36="","",IF($D$13="","Enter Date of Final Plat Approval",IF($D$14="","Enter Date of Building Permit Application",IF($D$15="","Enter Service Area",VLOOKUP("PORT AND TERMINAL",Max_Rate!$A$4:$Z$80,VLOOKUP('SIF Calculator Input'!$D$15,'SIF Calculator Input'!$AB$8:$AD$26,3,FALSE),FALSE)*N36)))) ->  | S36: =IF(B36="","",IF($D$13="","Enter Date of Final Plat Approval",IF($D$14="","Enter Date of Building Permit Application",IF($D$15="","Enter Service Area",IF(F36="","Enter # of Units",Q36*F36))))) ->  | W36: =IF(B36="","",IF($D$13="","Enter Date of Final Plat Approval",IF($D$14="","Enter Date of Building Permit Application",IF($D$15="","Enter Service Area",IF(OR($D$14="Before June 21, 2022",$V$11="X",AND($V$14="X",$D$14="On or after June 21, 2022")),"No Street Impact Fee Collected",IF(AND($AE$56<10,$V$13=""),"Less than 10 PM Peak Hour Trips: $0 Collection Rate",IF(L36="Yes",N36*Collected_Rate!$AO$3*(1-T36),IF(N36="","Enter Custom Land Use Data",N36*Collected_Rate!$AO$4*(1-T36))))))))) ->  | Y36: =IF(W36="No Street Impact Fee Collected","No Street Impact Fee Collected",IF(B36="","",IF($D$13="","Enter Date of Final Plat Approval",IF($D$14="","Enter Date of Building Permit Application",IF($D$15="","Enter Service Area",IF(F36="","Enter # of Units",IF(AND($AE$56<10,$V$13=""),"Less than 10 PM Peak Hour Trips: $0 Collection Rate",W36*F36))))))) ->  | AE36: =IF(F36="",0,F36*H36) -> 0 | AF36: =Collected_Rate!A73 -> (820) Shopping Center
Q37: =IF(B37="","",IF($D$13="","Enter Date of Final Plat Approval",IF($D$14="","Enter Date of Building Permit Application",IF($D$15="","Enter Service Area",VLOOKUP("PORT AND TERMINAL",Max_Rate!$A$4:$Z$80,VLOOKUP('SIF Calculator Input'!$D$15,'SIF Calculator Input'!$AB$8:$AD$26,3,FALSE),FALSE)*N37)))) ->  | S37: =IF(B37="","",IF($D$13="","Enter Date of Final Plat Approval",IF($D$14="","Enter Date of Building Permit Application",IF($D$15="","Enter Service Area",IF(F37="","Enter # of Units",Q37*F37))))) ->  | W37: =IF(B37="","",IF($D$13="","Enter Date of Final Plat Approval",IF($D$14="","Enter Date of Building Permit Application",IF($D$15="","Enter Service Area",IF(OR($D$14="Before June 21, 2022",$V$11="X",AND($V$14="X",$D$14="On or after June 21, 2022")),"No Street Impact Fee Collected",IF(AND($AE$56<10,$V$13=""),"Less than 10 PM Peak Hour Trips: $0 Collection Rate",IF(L37="Yes",N37*Collected_Rate!$AO$3*(1-T37),IF(N37="","Enter Custom Land Use Data",N37*Collected_Rate!$AO$4*(1-T37))))))))) ->  | Y37: =IF(W37="No Street Impact Fee Collected","No Street Impact Fee Collected",IF(B37="","",IF($D$13="","Enter Date of Final Plat Approval",IF($D$14="","Enter Date of Building Permit Application",IF($D$15="","Enter Service Area",IF(F37="","Enter # of Units",IF(AND($AE$56<10,$V$13=""),"Less than 10 PM Peak Hour Trips: $0 Collection Rate",W37*F37))))))) ->  | AE37: =IF(F37="",0,F37*H37) -> 0 | AF37: =Collected_Rate!A74 -> (850) Supermarket
B38: Custom Land Uses Notes: 1Development unit is basis for which trip generation is based on (e.g. Dwelling Unit, Beds, 1,000 s.f., etc.) 2PM Peak Hour trip rate per 10th Edition of Institute of Engineer's Trip Generation Manual for peak hour of adjacent street traffic. Pass-by rates reduction can be applied for eligible categories. 3Trip Length - select from similar land use trip length in "Collected_Rate" tab of spreadsheet or National Household Travel Survey for land use. Maximum Trip Length is 6 miles. 4Select "Yes" if land use is residential and "No" if land use is non-residential. | R38: MAX ASSESSABLE FEE WITH NO REDUCTION: | S38: =SUM(R22:S37) -> 0 | AF38: =Collected_Rate!A75 -> (864) Toy/Children's Superstore
W39: SUBTOTAL PROPOSED LAND USES STREET IMPACT FEE COLLECTION AMOUNT : | Y39: =SUM(Y23:Y37) -> 0 | AF39: =Collected_Rate!A76 -> (875) Department Store
AF40: =Collected_Rate!A53 -> (942) Automobile Care Center
B42: EXISTING LAND USES | Q42: Maximum Assessable Fee Reduction | W42: Existing Use Fee Reduction (if applicable)
B43: Land Uses (select from list): | D43: Development Unit: | F43: # of Units: | H43: PM Peak Hour Trip Rate: | J43: Trip Length: (Miles) | N43: Demand: (Vehicle-Miles) | Q43: Maximum Fee Per Development Unit: | S43: Maximum Fee: | W43: Impact Fee Per Development Unit: | Y43: Street Impact Fee:
D45: =IF(B45="","",IF(B45="Please Enter Dates Properly","",VLOOKUP(B45,Collected_Rate!$A$4:$G$80,7,FALSE))) ->  | H45: =IF(B45="","",VLOOKUP(B45,Collected_Rate!$A$4:$V$80,11,FALSE)) ->  | J45: =IF(B45="","",IF($D$15="","",IF(VLOOKUP($D$15,$AH$10:$AI$28,2,FALSE)="INSIDE",VLOOKUP(B45,Collected_Rate!$A$4:$V$80,19,FALSE),VLOOKUP(B45,Collected_Rate!$A$4:$V$80,20,FALSE)))) ->  | N45: =IF(J45= "","",IF(H45="","",H45*J45)) ->  | Q45: =IF(B45="","",IF($D$13="","Enter Date of Final Plat Approval",IF($D$14="","Enter Date of Building Permit Application",IF($D$15="","Enter Service Area",VLOOKUP(B45,Max_Rate!$A$4:$Z$80,VLOOKUP('SIF Calculator Input'!$D$15,'SIF Calculator Input'!$AB$8:$AD$26,3,FALSE),FALSE))))) ->  | S45: =IF(B45="","",IF($D$13="","Enter Date of Final Plat Approval",IF($D$14="","Enter Date of Building Permit Application",IF($D$15="","Enter Service Area",IF(F45="","Enter # of Units",Q45*F45))))) ->  | W45: =IF(B45="","",IF($D$13="","Enter Date of Final Plat Approval",IF($D$14="","Enter Date of Building Permit Application",IF(OR($D$14="Before June 21, 2022",$V$11="X",AND($V$14="X",$D$14="On or after June 21, 2022")),"No Street Impact Fee Collected",IF($D$15="","Enter Service Area",IF(OR('SIF Calculator Input'!B45="(911) Walk-In Bank", 'SIF Calculator Input'!B45="(912) Drive-In Bank",'SIF Calculator Input'!B45="(850) Supermarket"),Collected_Rate!$AO$4*'SIF Calculator Input'!N45,VLOOKUP(B45,Collected_Rate!$A$4:$AN$80,VLOOKUP('SIF Calculator Input'!$D$15,'SIF Calculator Input'!$AB$8:$AC$26,2,FALSE),FALSE))))))) ->  | Y45: =IF(W45="No Street Impact Fee Collected","No Street Impact Fee Collected",IF(B45="","",IF($D$13="","Enter Date of Final Plat Approval",IF($D$14="","Enter Date of Building Permit Application",IF($D$15="","Enter Service Area",IF(F45="","Enter # of Units",W45*F45)))))) ->  | AE45: =IF(ISERROR(VLOOKUP(B45,Collected_Rate!$A$3:$K$80,11,FALSE)*F45),0,VLOOKUP(B45,Collected_Rate!$A$3:$K$80,11,FALSE)*F45) -> 0
D46: =IF(B46="","",IF(B46="Please Enter Dates Properly","",VLOOKUP(B46,Collected_Rate!$A$4:$G$80,7,FALSE))) ->  | H46: =IF(B46="","",VLOOKUP(B46,Collected_Rate!$A$4:$V$80,11,FALSE)) ->  | J46: =IF(B46="","",IF($D$15="","",IF(VLOOKUP($D$15,$AH$10:$AI$28,2,FALSE)="INSIDE",VLOOKUP(B46,Collected_Rate!$A$4:$V$80,19,FALSE),VLOOKUP(B46,Collected_Rate!$A$4:$V$80,20,FALSE)))) ->  | N46: =IF(J46= "","",IF(H46="","",H46*J46)) ->  | Q46: =IF(B46="","",IF($D$13="","Enter Date of Final Plat Approval",IF($D$14="","Enter Date of Building Permit Application",IF($D$15="","Enter Service Area",VLOOKUP(B46,Max_Rate!$A$4:$Z$80,VLOOKUP('SIF Calculator Input'!$D$15,'SIF Calculator Input'!$AB$8:$AD$26,3,FALSE),FALSE))))) ->  | S46: =IF(B46="","",IF($D$13="","Enter Date of Final Plat Approval",IF($D$14="","Enter Date of Building Permit Application",IF($D$15="","Enter Service Area",IF(F46="","Enter # of Units",Q46*F46))))) ->  | W46: =IF(B46="","",IF($D$13="","Enter Date of Final Plat Approval",IF($D$14="","Enter Date of Building Permit Application",IF(OR($D$14="Before June 21, 2022",$V$11="X",AND($V$14="X",$D$14="On or after June 21, 2022")),"No Street Impact Fee Collected",IF($D$15="","Enter Service Area",IF(OR('SIF Calculator Input'!B46="(911) Walk-In Bank",'SIF Calculator Input'!B46="(912) Drive-In Bank",'SIF Calculator Input'!B46="(850) Supermarket"),Collected_Rate!$AO$4*'SIF Calculator Input'!N46,VLOOKUP(B46,Collected_Rate!$A$4:$AN$80,VLOOKUP('SIF Calculator Input'!$D$15,'SIF Calculator Input'!$AB$8:$AC$26,2,FALSE),FALSE))))))) ->  | Y46: =IF(W46="No Street Impact Fee Collected","No Street Impact Fee Collected",IF(B46="","",IF($D$13="","Enter Date of Final Plat Approval",IF($D$14="","Enter Date of Building Permit Application",IF($D$15="","Enter Service Area",IF(F46="","Enter # of Units",W46*F46)))))) ->  | AE46: =IF(ISERROR(VLOOKUP(B46,Collected_Rate!$A$3:$K$80,11,FALSE)*F46),0,VLOOKUP(B46,Collected_Rate!$A$3:$K$80,11,FALSE)*F46) -> 0
D47: =IF(B47="","",IF(B47="Please Enter Dates Properly","",VLOOKUP(B47,Collected_Rate!$A$4:$G$80,7,FALSE))) ->  | H47: =IF(B47="","",VLOOKUP(B47,Collected_Rate!$A$4:$V$80,11,FALSE)) ->  | J47: =IF(B47="","",IF($D$15="","",IF(VLOOKUP($D$15,$AH$10:$AI$28,2,FALSE)="INSIDE",VLOOKUP(B47,Collected_Rate!$A$4:$V$80,19,FALSE),VLOOKUP(B47,Collected_Rate!$A$4:$V$80,20,FALSE)))) ->  | N47: =IF(J47= "","",IF(H47="","",H47*J47)) ->  | Q47: =IF(B47="","",IF($D$13="","Enter Date of Final Plat Approval",IF($D$14="","Enter Date of Building Permit Application",IF($D$15="","Enter Service Area",VLOOKUP(B47,Max_Rate!$A$4:$Z$80,VLOOKUP('SIF Calculator Input'!$D$15,'SIF Calculator Input'!$AB$8:$AD$26,3,FALSE),FALSE))))) ->  | S47: =IF(B47="","",IF($D$13="","Enter Date of Final Plat Approval",IF($D$14="","Enter Date of Building Permit Application",IF($D$15="","Enter Service Area",IF(F47="","Enter # of Units",Q47*F47))))) ->  | W47: =IF(B47="","",IF($D$13="","Enter Date of Final Plat Approval",IF($D$14="","Enter Date of Building Permit Application",IF(OR($D$14="Before June 21, 2022",$V$11="X",AND($V$14="X",$D$14="On or after June 21, 2022")),"No Street Impact Fee Collected",IF($D$15="","Enter Service Area",IF(OR('SIF Calculator Input'!B47="(911) Walk-In Bank", 'SIF Calculator Input'!B47="(912) Drive-In Bank",'SIF Calculator Input'!B47="(850) Supermarket"),Collected_Rate!$AO$4*'SIF Calculator Input'!N47,VLOOKUP(B47,Collected_Rate!$A$4:$AN$80,VLOOKUP('SIF Calculator Input'!$D$15,'SIF Calculator Input'!$AB$8:$AC$26,2,FALSE),FALSE))))))) ->  | Y47: =IF(W47="No Street Impact Fee Collected","No Street Impact Fee Collected",IF(B47="","",IF($D$13="","Enter Date of Final Plat Approval",IF($D$14="","Enter Date of Building Permit Application",IF($D$15="","Enter Service Area",IF(F47="","Enter # of Units",W47*F47)))))) ->  | AE47: =IF(ISERROR(VLOOKUP(B47,Collected_Rate!$A$3:$K$80,11,FALSE)*F47),0,VLOOKUP(B47,Collected_Rate!$A$3:$K$80,11,FALSE)*F47) -> 0
D48: =IF(B48="","",IF(B48="Please Enter Dates Properly","",VLOOKUP(B48,Collected_Rate!$A$4:$G$80,7,FALSE))) ->  | H48: =IF(B48="","",VLOOKUP(B48,Collected_Rate!$A$4:$V$80,11,FALSE)) ->  | J48: =IF(B48="","",IF($D$15="","",IF(VLOOKUP($D$15,$AH$10:$AI$28,2,FALSE)="INSIDE",VLOOKUP(B48,Collected_Rate!$A$4:$V$80,19,FALSE),VLOOKUP(B48,Collected_Rate!$A$4:$V$80,20,FALSE)))) ->  | N48: =IF(J48= "","",IF(H48="","",H48*J48)) ->  | Q48: =IF(B48="","",IF($D$13="","Enter Date of Final Plat Approval",IF($D$14="","Enter Date of Building Permit Application",IF($D$15="","Enter Service Area",VLOOKUP(B48,Max_Rate!$A$4:$Z$80,VLOOKUP('SIF Calculator Input'!$D$15,'SIF Calculator Input'!$AB$8:$AD$26,3,FALSE),FALSE))))) ->  | S48: =IF(B48="","",IF($D$13="","Enter Date of Final Plat Approval",IF($D$14="","Enter Date of Building Permit Application",IF($D$15="","Enter Service Area",IF(F48="","Enter # of Units",Q48*F48))))) ->  | W48: =IF(B48="","",IF($D$13="","Enter Date of Final Plat Approval",IF($D$14="","Enter Date of Building Permit Application",IF(OR($D$14="Before June 21, 2022",$V$11="X",AND($V$14="X",$D$14="On or after June 21, 2022")),"No Street Impact Fee Collected",IF($D$15="","Enter Service Area",IF(OR('SIF Calculator Input'!B48="(911) Walk-In Bank", 'SIF Calculator Input'!B48="(912) Drive-In Bank",'SIF Calculator Input'!B48="(850) Supermarket"),Collected_Rate!$AO$4*'SIF Calculator Input'!N48,VLOOKUP(B48,Collected_Rate!$A$4:$AN$80,VLOOKUP('SIF Calculator Input'!$D$15,'SIF Calculator Input'!$AB$8:$AC$26,2,FALSE),FALSE))))))) ->  | Y48: =IF(W48="No Street Impact Fee Collected","No Street Impact Fee Collected",IF(B48="","",IF($D$13="","Enter Date of Final Plat Approval",IF($D$14="","Enter Date of Building Permit Application",IF($D$15="","Enter Service Area",IF(F48="","Enter # of Units",W48*F48)))))) ->  | AE48: =IF(ISERROR(VLOOKUP(B48,Collected_Rate!$A$3:$K$80,11,FALSE)*F48),0,VLOOKUP(B48,Collected_Rate!$A$3:$K$80,11,FALSE)*F48) -> 0
Q49: =IF(B49="","",IF($D$13="","Enter Date of Final Plat Approval",IF($D$14="","Enter Date of Building Permit Application",IF($D$15="","Enter Service Area",VLOOKUP(B49,Max_Rate!$A$4:$Z$80,VLOOKUP('SIF Calculator Input'!$D$15,'SIF Calculator Input'!$AB$8:$AD$26,3,FALSE),FALSE))))) ->  | S49: =IF(B49="","",IF($D$13="","Enter Date of Final Plat Approval",IF($D$14="","Enter Date of Building Permit Application",IF($D$15="","Enter Service Area",IF(F49="","Enter # of Units",Q49*F49))))) -> 
B50: Custom Land Uses (manually input): | D50: Development Unit:1 | F50: # of Units: | H50: PM Peak Hour Trip Rate:2 | J50: Trip Length: (Miles)3 | L50: Residential?4 | N50: Demand: (Vehicle-Miles)
N51: =IF(J51="","",IF(J51>6,H51*6,H51*J51)) ->  | Q51: =IF(B51="","",IF($D$13="","Enter Date of Final Plat Approval",IF($D$14="","Enter Date of Building Permit Application",IF($D$15="","Enter Service Area",VLOOKUP("PORT AND TERMINAL",Max_Rate!$A$4:$Z$80,VLOOKUP('SIF Calculator Input'!$D$15,'SIF Calculator Input'!$AB$8:$AD$26,3,FALSE),FALSE)*N51)))) ->  | S51: =IF(B51="","",IF($D$13="","Enter Date of Final Plat Approval",IF($D$14="","Enter Date of Building Permit Application",IF($D$15="","Enter Service Area",IF(F51="","Enter # of Units",Q51*F51))))) ->  | W51: =IF(B51="","",IF($D$13="","Enter Date of Final Plat Approval",IF($D$14="","Enter Date of Building Permit Application",IF($D$15="","Enter Service Area",IF(OR($D$14="Before June 21, 2022",$V$11="X",AND($V$14="X",$D$14="On or after June 21, 2022")),"No Street Impact Fee Collected",IF(L51="Yes",N51*Collected_Rate!$AO$3,IF(N51="","Enter Custom Land Use Data",N51*Collected_Rate!$AO$4))))))) ->  | Y51: =IF(W51="No Street Impact Fee Collected","No Street Impact Fee Collected",IF(B51="","",IF($D$13="","Enter Date of Final Plat Approval",IF($D$14="","Enter Date of Building Permit Application",IF($D$15="","Enter Service Area",IF(N51="","Enter Custom Data",W51*F51)))))) ->  | AE51: =IF(F51="",0,F51*H51) -> 0
N52: =IF(J52="","",IF(J52>6,H52*6,H52*J52)) ->  | Q52: =IF(B52="","",IF($D$13="","Enter Date of Final Plat Approval",IF($D$14="","Enter Date of Building Permit Application",IF($D$15="","Enter Service Area",VLOOKUP("PORT AND TERMINAL",Max_Rate!$A$4:$Z$80,VLOOKUP('SIF Calculator Input'!$D$15,'SIF Calculator Input'!$AB$8:$AD$26,3,FALSE),FALSE)*N52)))) ->  | S52: =IF(B52="","",IF($D$13="","Enter Date of Final Plat Approval",IF($D$14="","Enter Date of Building Permit Application",IF($D$15="","Enter Service Area",IF(F52="","Enter # of Units",Q52*F52))))) ->  | W52: =IF(B52="","",IF($D$13="","Enter Date of Final Plat Approval",IF($D$14="","Enter Date of Building Permit Application",IF($D$15="","Enter Service Area",IF(OR($D$14="Before June 21, 2022",$V$11="X",AND($V$14="X",$D$14="On or after June 21, 2022")),"No Street Impact Fee Collected",IF(L52="Yes",N52*Collected_Rate!$AO$3,IF(N52="","Enter Custom Land Use Data",N52*Collected_Rate!$AO$4))))))) ->  | Y52: =IF(W52="No Street Impact Fee Collected","No Street Impact Fee Collected",IF(B52="","",IF($D$13="","Enter Date of Final Plat Approval",IF($D$14="","Enter Date of Building Permit Application",IF($D$15="","Enter Service Area",IF(N52="","Enter Custom Data",W52*F52)))))) ->  | AE52: =IF(F52="",0,F52*H52) -> 0 | AF52: =Collected_Rate!A13 -> (210) Single-Family Detached Housing
N53: =IF(J53="","",IF(J53>6,H53*6,H53*J53)) ->  | Q53: =IF(B53="","",IF($D$13="","Enter Date of Final Plat Approval",IF($D$14="","Enter Date of Building Permit Application",IF($D$15="","Enter Service Area",VLOOKUP("PORT AND TERMINAL",Max_Rate!$A$4:$Z$80,VLOOKUP('SIF Calculator Input'!$D$15,'SIF Calculator Input'!$AB$8:$AD$26,3,FALSE),FALSE)*N53)))) ->  | S53: =IF(B53="","",IF($D$13="","Enter Date of Final Plat Approval",IF($D$14="","Enter Date of Building Permit Application",IF($D$15="","Enter Service Area",IF(F53="","Enter # of Units",Q53*F53))))) ->  | W53: =IF(B53="","",IF($D$13="","Enter Date of Final Plat Approval",IF($D$14="","Enter Date of Building Permit Application",IF($D$15="","Enter Service Area",IF(OR($D$14="Before June 21, 2022",$V$11="X",AND($V$14="X",$D$14="On or after June 21, 2022")),"No Street Impact Fee Collected",IF(L53="Yes",N53*Collected_Rate!$AO$3,IF(N53="","Enter Custom Land Use Data",N53*Collected_Rate!$AO$4))))))) ->  | Y53: =IF(W53="No Street Impact Fee Collected","No Street Impact Fee Collected",IF(B53="","",IF($D$13="","Enter Date of Final Plat Approval",IF($D$14="","Enter Date of Building Permit Application",IF($D$15="","Enter Service Area",IF(N53="","Enter Custom Data",W53*F53)))))) ->  | AE53: =IF(F53="",0,F53*H53) -> 0 | AF53: =Collected_Rate!A14 -> (220) Townhomes / Duplexes / Triplexes / 4-Plexes / ADUs
N54: =IF(J54="","",IF(J54>6,H54*6,H54*J54)) ->  | Q54: =IF(B54="","",IF($D$13="","Enter Date of Final Plat Approval",IF($D$14="","Enter Date of Building Permit Application",IF($D$15="","Enter Service Area",VLOOKUP("PORT AND TERMINAL",Max_Rate!$A$4:$Z$80,VLOOKUP('SIF Calculator Input'!$D$15,'SIF Calculator Input'!$AB$8:$AD$26,3,FALSE),FALSE)*N54)))) ->  | S54: =IF(B54="","",IF($D$13="","Enter Date of Final Plat Approval",IF($D$14="","Enter Date of Building Permit Application",IF($D$15="","Enter Service Area",IF(F54="","Enter # of Units",Q54*F54))))) ->  | W54: =IF(B54="","",IF($D$13="","Enter Date of Final Plat Approval",IF($D$14="","Enter Date of Building Permit Application",IF($D$15="","Enter Service Area",IF(OR($D$14="Before June 21, 2022",$V$11="X",AND($V$14="X",$D$14="On or after June 21, 2022")),"No Street Impact Fee Collected",IF(L54="Yes",N54*Collected_Rate!$AO$3,IF(N54="","Enter Custom Land Use Data",N54*Collected_Rate!$AO$4))))))) ->  | Y54: =IF(W54="No Street Impact Fee Collected","No Street Impact Fee Collected",IF(B54="","",IF($D$13="","Enter Date of Final Plat Approval",IF($D$14="","Enter Date of Building Permit Application",IF($D$15="","Enter Service Area",IF(N54="","Enter Custom Data",W54*F54)))))) ->  | AE54: =IF(F54="",0,F54*H54) -> 0 | AF54: =Collected_Rate!A15 -> (221) Mid-Rise Apartments or Condominiums
N55: =IF(J55="","",IF(J55>6,H55*6,H55*J55)) ->  | Q55: =IF(B55="","",IF($D$13="","Enter Date of Final Plat Approval",IF($D$14="","Enter Date of Building Permit Application",IF($D$15="","Enter Service Area",VLOOKUP("PORT AND TERMINAL",Max_Rate!$A$4:$Z$80,VLOOKUP('SIF Calculator Input'!$D$15,'SIF Calculator Input'!$AB$8:$AD$26,3,FALSE),FALSE)*N55)))) ->  | S55: =IF(B55="","",IF($D$13="","Enter Date of Final Plat Approval",IF($D$14="","Enter Date of Building Permit Application",IF($D$15="","Enter Service Area",IF(F55="","Enter # of Units",Q55*F55))))) ->  | W55: =IF(B55="","",IF($D$13="","Enter Date of Final Plat Approval",IF($D$14="","Enter Date of Building Permit Application",IF($D$15="","Enter Service Area",IF(OR($D$14="Before June 21, 2022",$V$11="X",AND($V$14="X",$D$14="On or after June 21, 2022")),"No Street Impact Fee Collected",IF(L55="Yes",N55*Collected_Rate!$AO$3,IF(N55="","Enter Custom Land Use Data",N55*Collected_Rate!$AO$4))))))) ->  | Y55: =IF(W55="No Street Impact Fee Collected","No Street Impact Fee Collected",IF(B55="","",IF($D$13="","Enter Date of Final Plat Approval",IF($D$14="","Enter Date of Building Permit Application",IF($D$15="","Enter Service Area",IF(N55="","Enter Custom Data",W55*F55)))))) ->  | AE55: =IF(F55="",0,F55*H55) -> 0 | AF55: =Collected_Rate!A16 -> (222) High-Rise Apartments or Condominiums
L56: =IF(H56="","",IF(H56>6,F56*6,F56*H56)) ->  | R56: MAX ASSESSABLE FEE REDUCTION: | S56: =SUM(R45:S55) -> 0 | AD56: Net PM Peak Trips | AE56: =SUM(AE23:AE37)-SUM(AE45:AE55) -> 0
R57: TDM Plan Trip Reduction %*: | S57: =Y75 -> 0 | X57: TOTAL EXISTING LAND USES FEE REDUCTION : | Y57: =SUM(Y45:Y55) -> 0
R58: ROW Dedication Value | S58: ='ROW Dedication & Easement'!F10 -> 0
R59: Easement Value | S59: ='ROW Dedication & Easement'!F21 -> 0
R60: MAXIMUM ASSESSABLE FEE MINUS ROW DEDICATION, EASEMENT, TDM: | S60: =S38*(1-S57)-S56-S58-S59 -> 0
X61: TOTAL POTENTIAL STREET IMPACT FEE COLLECTION AMOUNT : | Y61: =IF(AND(S38<S56,S57<=0,S58<=0,S59<=0),"No Fee Due",IF(AND(OR(S58>0,S59>0),OR(S60<0,S60<(Y39-Y57))),"Discuss w/Supervisor",IF(Y39-Y57<0,"No Fee Due",Y39-Y57))) -> 0
B62: Land Use Selection Note: The land use categories are based on the descriptions contained within the ITE Trip Generation Manual 10th edition. Questions regarding the appropriate category for a particular use may be directed to TPW Transportation Development Services staff.
D63: Collection Rate Reductions Notes | Q63: Collection Rate Reductions
C65: Reductions: Internal Capture / Mixed Use Reduction. The amount of street impacts fees can be reduced up to 20% per LDC 25-6-667. Transit Proximity Reduction. The amount of street impacts fees can be reduced up to 20% per LDC 25-6-667. Parking Reduction. The amount of street impacts fees can be reduced up to 20% per LDC 25-6-667. Affordability Related Reduction: Reduction $ Amount is equal to # Affordable Units multiplied by "Impact Fee for Development Unit" above per LDC 25-6-668. Confirm with Staff # of Affordable Units that meet criteria for reduction | L65: Land Use (Affordable) | P65: # Units
W66: =IF(OR(AC66="Incorrect Land Use",AC67="Incorrect Land Use",AC68="Incorrect Land Use"),"Land Use Not in Proposed Land Uses","Affordability Related Reductions ($):") -> Affordability Related Reductions ($): | Y66: =IF(AC66="",0,IF(OR(AC66="Enter Units",AC67="Enter Units",AC68="Enter Units"),"Enter Units",SUM(AC66:AC68))) -> 0 | AC66: =IF(L66="","",IF(OR(P66="",P66=0),"Enter Units",IF(ISERROR(VLOOKUP(L66,$B$23:$W$30,20,FALSE)),"Incorrect Land Use",VLOOKUP(L66,$B$23:$W$30,22,FALSE)*P66))) -> 
AC67: =IF(L67="","",IF(OR(P67="",P67=0),"Enter Units",IF(ISERROR(VLOOKUP(L67,$B$23:$W$30,20,FALSE)),"Incorrect Land Use",VLOOKUP(L67,$B$23:$W$30,22,FALSE)*P67))) -> 
AC68: =IF(L68="","",IF(OR(P68="",P68=0),"Enter Units",IF(ISERROR(VLOOKUP(L68,$B$23:$W$30,20,FALSE)),"Incorrect Land Use",VLOOKUP(L68,$B$23:$W$30,22,FALSE)*P68))) -> 
T70: POTENTIAL SIF COLLECTION AMOUNT AFTER AFFORDABILITY REDUCTIONS: | Y70: =IF(OR(Y61="No Fee Due",Y61="Discuss w/Supervisor"),0,IF(Y66="Enter Units","Enter Affordable Units",IF(Y66>0,ROUND((Y61-Y66),2),Y61))) -> 0
T72: =IF(U72="","Internal Capture (IC) Reduction:",IF(U72>0.2,"ERROR! REDUCTION EXCEEDS CAP","Internal Capture (IC) Reduction:")) -> Internal Capture (IC) Reduction: | U72: =IF('TDM Calculator Input'!$D$10="Manually enter agreed-to trip reduction % here",0,'TDM Calculator Input'!$D$10) -> 0 | X72: SIF IC Reduction: | Y72: =IF(U72<0.05,0,IF(U72<0.1,0.05,IF(U72<0.15,0.1,IF(U72<0.2,0.15,0.2)))) -> 0
T73: =IF(U73="","Transit Proximity (TP) Reduction:",IF(U73>0.2,"ERROR! REDUCTION EXCEEDS CAP","Transit Proximity (TP) Reduction:")) -> Transit Proximity (TP) Reduction: | U73: =IF('TDM Calculator Input'!C11="Select from Drop-Down Menu","",'Proposed TDM Plan Trip Red. %'!$B$7) -> 0 | X73: SIF TP Reduction: | Y73: =IF(U73="",0,IF($D$15="","Enter Service Area",IF(AND(OR($D$15="DT",$I$15="X"),U73>0.2),0.2,IF($I$15="X",U73,IF(AND(OR($D$15="F",$D$15="I",$D$15="J",$D$15="K, Inside SL 360",$D$15="L"),U73>0.1),0.1,IF(AND(OR($D$15="A",$D$15="B",$D$15="C",$D$15="D",$D$15="E",$D$15="H",$D$15="K, Outside SL 360",$D$15="M",$D$15="N",$D$15="O",$D$15="P",$D$15="ETJ"),U73>0.05),0.05,U73)))))) -> Enter Service Area
T74: =IF(U74="","Parking Reduction:",IF(U74>0.2,"ERROR! REDUCTION EXCEEDS CAP","Parking Reduction:")) -> Parking Reduction: | U74: ='Proposed TDM Plan Trip Red. %'!$B$15 -> 0 | X74: SIF P Reduction: | Y74: =IF(U74=0,0,IF($D$15="","Enter Service Area",IF(AND(OR($D$15="DT",$I$15="X"),U74>0.2),0.2,IF($I$15="X",U74,IF(AND(OR($D$15="F",$D$15="I",$D$15="J",$D$15="K, Inside SL 360",$D$15="L"),U74>0.1),0.1,IF(AND(OR($D$15="A",$D$15="B",$D$15="C",$D$15="D",$D$15="E",$D$15="H",$D$15="K, Outside SL 360",$D$15="M",$D$15="N",$D$15="O",$D$15="P",$D$15="ETJ"),U74>0.05),0.05,U74)))))) -> 0
X75: Mobility Related Street Impact Fee Reductions (%): | Y75: =SUM(Y72:Y74) -> 0
X76: Mobility Related Street Impact Fee Reductions ($): | Y76: =IF(Y61="No Fee Due","",IF(Y73="Enter Service Area","Enter Service Area",IF(Y75>0,ROUND((Y70*Y75),2),0))) -> Enter Service Area
C77: Applicant must provide proof of reductions.
X78: TOTAL POTENTIAL STREET IMPACT FEE COLLECTION AMOUNT AFTER AFFORDABILITY AND MOBILITY RELATED REDUCTIONS: | Y78: =IF(OR(Y61="",Y61=0),0,IF(Y61="No Fee Due","No Fee Due",IF(Y66="Enter Units","Enter Units",IF(Y76=0,Y70,Y70-Y76)))) -> 0
X79: Adjusted SIF collection based on adjusted SIF max? | Y79: =IF(Y78="No Fee Due", "No Fee Due",IF(OR(S60<0,S60-Y78-Y80<0),"Discuss with Supervisor", IF(Y78>S60,S60,Y78))) -> 0
X80: Total Value of any Street Impact Fee Offsets (for construction or contribution towards the City's Roadway Capacity Plan):
X81: Within the RP as per LDC 25-6-662 & LDC 25-6-23? | Y81: =IF(AND('ROW Dedication & Easement'!E23=FALSE, 'ROW Dedication & Easement'!D10="", 'ROW Dedication & Easement'!D21=""),"Enter ROW/Easement Info",IF(OR(Y79=0,Y79="No Fee Due"),"",IF(AND(Y80<Y79,Y79<=S60),"YES",IF(AND(Y80>Y79,Y80<S60),"YES", "NO")))) -> Enter ROW/Easement Info
X82: TOTAL STREET IMPACT FEE COLLECTION AMOUNT AFTER OFFSETS AND REDUCTIONS: | Y82: =IF(Y61=0,"No Fee Due", IF(Y61="","",IF(AND(Y81="NO", Y80<>""), "Discuss with Supervisor", IF(Y81="NO", "Discuss with Supervisor", IF(Y61="No Fee Due", "No Fee Due", IF(Y66="Enter Units", "Enter Units", IF(Y70<=0, "No Fee Due", IF(Y78="No Fee Due", "No Fee Due", IF(Y80>Y79, "Offset Exceeds Fee", Y79-Y80))))))))) -> No Fee Due
B85: ROUGH PROPORTIONALITY SUPPLY VS. DEMAND CHECK:
B87: Roadway Supply- Off-Site Roadway Capacity Plan Projects to be Built or Funded by the Applicant:
B89: Roadway Name: | D89: Classification: | H89: Roadway Length: (Feet) | J89: Number of Thru Lanes: | L89: SIF RCP Estimate1 : ($) | Y89: Actual Cost, if greater than SIF RCP2 : ($)
W96: ROADWAY SUPPLY ADDED TO SYSTEM SUBTOTAL: | Y96: =SUM(Y90:Y94) -> 0
B98: Other Improvements - Specific Improvements to be Built or Funded by the Applicant:
B100: Location: | D100: Description of Improvement: | Y100: Estimated Cost3: ($)
W107: OTHER IMPROVEMENTS ADDED TO SYSTEM SUBTOTAL: | Y107: =SUM(Y101:Y105) -> 0
B109: Right-of-Way Dedication - ROW to be dedicated by the Applicant:
B111: ROW Dedication: | D111: General Description of ROW Dedication: | Y111: Estimated Cost4: ($)
W118: OTHER IMPROVEMENTS ADDED TO SYSTEM UNADJUSTED SUBTOTAL: | Y118: =SUM(Y112:Y116) -> 0
W119: TOTAL VALUE OF SUPPLY ADDED TO THOROUGHFARE SYSTEM: | Y119: =Y96+Y107+Y118 -> 0
B120: Notes: 1Estimated planning level cost from latest adopted Street Impact Fee Roadway Capacity Plan; 2Revised cost estimate, if available, for construction and engineering based on more detailed preliminary engineering and/or design; 3All estimated improvement costs; 4Cost of right-of-way should be estimated using County Appraisal District values (number of square feet of dedication multipled by the County Appraisal District Market Values).
B123: SUPPLY / DEMAND COMPARISON: | Q123: A comparison of the capacity provided by a development against the traffic impacts of the proposed development.
S124: Cost | W124: Comparison
Q125: TOTAL IMPACT OF DEMAND PLACED ON THOROUGHFARE SYSTEM: | S125: =S40 -> 0 | W125: =IF(W126="","",(IF(ABS(AD151)<AE156,"SUPPLY ≈ DEMAND",IF(S125>S126,"DEMAND > SUPPLY","SUPPLY > DEMAND")))) -> 
Q126: TOTAL VALUE OF CAPACITY (SUPPLY) ADDED TO THOROUGHFARE SYSTEM: | S126: =Y119 -> 0 | W126: =IF(S125=0,"",IF(S126=0,"",(ROUND(S125/S126,4)))) -> 
B128: Note: Minimum Standards for access to and from a development may supersede the results of this analysis.
AE143: Based on the results of this rough proportionality analysis,
AE144: the value of capacity (supply) provided by the proposed development exceeds the anticipated impact of demand it places on the system.
AE145: the anticipated impact of demand on the system exceeds the value of capacity (supply) provided by the proposed development.
AE146: the value of capacity (supply) provided by the proposed development roughly equals the anticipated impact of demand it places on the system.
AE147: Given these assumptions, only
AD148: =ROUND(#REF!/Z116,4)*100-10000% ->  | AE148: % of the value of capacity supplied can be attributed to the proposed development.
AD149: =ROUND(#REF!/Z116,4)*100 ->  | AE149: Given these assumptions, the anticipated impact of demand of the development exceeds the value of capacity supplied by approximately
AD151: =100%-W126 ->  | AE151: %.
AD152: =ABS(AD151) ->  | AE152: Therefore, the roadway improvements are NOT roughly proportional to the impact of demand placed on the system (i.e. the applicant is adding more capacity than needed to support their development).
AE153: Therefore, the roadway improvements required by the City are justified (i.e. the applicant is adding less capacity than needed to support their development).
AE154: Therefore, the roadway improvements are roughly proportional to the demand placed on the system (i.e. the applicant is adding roughly the same amount of capacity as what is needed to support the development).
AD156: Sensitivity | AE156: 0.05

Sheet Summary of Roadway Costs (hidden)
A1: Austin / Travis County Proportionality Worksheet - Summary of Costs
B2: Classification | C2: Capacity (vphpl) | D2: Number of Lanes | E2: Cost per Mile (for use in Demand Calculations) | F2: % of Roadway Network for Each Facility Type | G2: Cost Per Vehicle Mile (Demand) | H2: Cost Per Foot Per Lane
B4: Level 1 | C4: 330 | D4: 2 | E4: 3718980.907 | G4: =ROUND(E4/(D4*C4),0) -> 5635 | H4: =ROUNDDOWN((E4/5280)/D4,2) -> 352.17
B5: Level 1 Alternative | C5: 330 | D5: 2 | E5: 3344535.04 | G5: =ROUND(E5/(D5*C5),0) -> 5067 | H5: 316.71
B6: Level 2 Industrial | C6: 330 | D6: 2 | E6: 5359153.067 | G6: =ROUND(E6/(D6*C6),0) -> 8120 | H6: 507.49
B7: Level 2 Urban | C7: 410 | D7: 2 | E7: 7089218.889 | G7: 8645 | H7: 671.32
B8: Level 2 Suburban | C8: 410 | D8: 2 | E8: 6102952.924 | G8: 7443 | H8: 577.93
B9: Level 2 Alternative | C9: 770 | D9: 2 | E9: 4607844.071 | G9: 2992 | H9: 436.34
B10: Level 3 Industrial | C10: 680 | D10: 4 | E10: 8147216.88 | G10: 2995 | H10: 385.75
B11: Level 3 Urban | C11: 810 | D11: 4 | E11: 10740240.72 | F11: 0.3059545626 | G11: 3315 | H11: 508.53
B12: Level 3 Suburban | C12: 810 | D12: 4 | E12: 11156405.04 | F12: 0.4854371088 | G12: 3443 | H12: 528.23
B13: Level 3 Alternative | C13: 810 | D13: 3 | E13: 7933799.28 | G13: 3265 | H13: 500.87
B14: Level 4 Urban | C14: 900 | D14: 6 | E14: 14708870.59 | F14: 0.01430381363 | G14: 2724 | H14: 464.29
B15: Level 4 Suburban | C15: 900 | D15: 6 | E15: 15495951.39 | F15: 0.1943045149 | G15: 2870 | H15: 489.13
B16: Level 4 Alternative | C16: 810 | D16: 5 | E16: 12518162.36 | G16: 3091 | H16: 474.17
B18: Average Cost per Vehicle Mile for Arterial Facilities (for use in impact of demand calculations) | G18: =F4*G4+F7*G7+F8*G8+F11*G11+F12*G12+F14*G14+F15*G15 -> 3282.216887
B19: Average Cost per Vehicle Mile for Arterial Facilities with Transit (for use in impact of demand calculations) | G19: 3761.103183
E21: Centerline Miles of Facility | F21: % Miles Total
B22: All Level 1s | I22: =(G19-G18)/G18 -> 0.1459033065
B23: Level 2 Urban | E23: =107319.044405/5280 -> 20.32557659 | F23: =E23/$E$29 -> 0.081031637
B24: Level 2 Suburban | E24: =334415.994604/5280 -> 63.33636261 | F24: 0.2525020199
B25: Level 3 Urban | E25: =270058.182598/5280 -> 51.14738307 | F25: 0.2039084185 | H25: =270058.182598/5280 -> 51.14738307 | I25: =H25/$H$29 -> 0.3059545626
B26: Level 3 Suburban | E26: =428482.785994/5280 -> 81.1520428 | F26: 0.3235274947 | H26: =428482.785994/5280 -> 81.1520428 | I26: =H26/$H$29 -> 0.4854371088
B27: Level 4 Urban | E27: =12625.6065/5280 -> 2.391213352 | F27: 0.009533010366 | H27: =12625.6065/5280 -> 2.391213352 | I27: =H27/$H$29 -> 0.01430381363
B28: Level 4 Suburban | E28: =171507.571991/5280 -> 32.4824947 | F28: 0.1294974195 | H28: =171507.571991/5280 -> 32.4824947 | I28: =H28/$H$29 -> 0.1943045149
B29: Total | E29: =SUM(E22:E28) -> 250.8350731 | H29: =SUM(H22:H28) -> 167.1731339

Sheet ROW Dedication & Easement
B2: RIGHT-OF-WAY DEDICATION - ROW TO BE DEDICATED BY THE APPLICANT
B4: Road Name | C4: Description of ROW Dedication | D4: Dedicated Land Area (sf) | E4: Land Value ($/sf)* | F4: ROW Dedication Value ($)
F5: =E5*D5 -> 0
F6: =E6*D6 -> 0
F7: 0
F8: 0
F9: 0
B10: RIGHT-OF-WAY DEDICATION VALUE: | D10: =IF(SUM(D5:D9)=0,"",SUM(D5:D9)) ->  | E10: =IFERROR(F10/D10,"") ->  | F10: =SUM(F5:F9) -> 0
B11: * Land Value is the latest available County Appraisal value
B13: EASEMENT - TRANSPORTATION RELATED EASEMENT BY THE APPLICANT
B15: Easement Name | C15: Description of Easement | D15: Easement Land Area (sf) | E15: Easement Land Value ($/sf)* | F15: Easement Value ($)
F16: =E16*D16 -> 0
F17: =E17*D17 -> 0
F18: =E18*D18 -> 0
F19: =E19*D19 -> 0
F20: =E20*D20 -> 0
B21: EASEMENT VALUE: | D21: =IF(SUM(D16:D20)=0,"",SUM(D16:D20)) ->  | E21: =IFERROR(F21/D21,"") ->  | F21: =SUM(F16:F20) -> 0
B22: * Easement Land Value is based on the latest available County Appraisal value
E23: FALSE
B24: ASMP ROW Requirements GIS Layer

Sheet SIF Offset Estimate
B2: SIF offset estimate for item constructed by the applicant*
B4: Item Name | C4: Road/Intersection Name | D4: ASMP Road Level(s) | E4: Unit | F4: Cost ($)/unit | G4: Counts if applicable | H4: Length (ft) if applicable | I4: Width (ft) if applicable | J4: Units Constructed | K4: Cost per item ($) | M4: ASMP Road Level | N4: TCM Sidewalk Width | O4: TCM Bike Lane Width | P4: TCM SUP Width (no curb & gutter) | R4: SL | S4: Item | T4: Unit | U4: Cost ($)/Unit
E5: =IF(B5="","",VLOOKUP(B5,$S$5:$U$18,2,FALSE)) ->  | F5: =IF(B5="","",VLOOKUP(B5,$S$5:$U$18,3,FALSE)) ->  | J5: =IF(B5="","",IF(E5="Count", G5,IF(E5="LF",H5,IF(E5="SF",H5*I5)))) ->  | K5: =IF(B5="","",J5*F5) ->  | M5: 1 | N5: 5 | R5: 1 | S5: Sidewalk | T5: SF | U5: 24
E6: =IF(B6="","",VLOOKUP(B6,$S$5:$U$18,2,FALSE)) ->  | F6: =IF(B6="","",VLOOKUP(B6,$S$5:$U$18,3,FALSE)) ->  | J6: =IF(B6="","",IF(E6="Count", G6,IF(E6="LF",H6,IF(E6="SF",H6*I6)))) ->  | K6: =IF(B6="","",J6*F6) ->  | M6: 2 | N6: 6 | O6: 7 | P6: 12 | R6: 2 | S6: SUP | T6: SF | U6: 30
M7: 3 | N7: 7 | O7: 8 | P7: 12 | R7: 3 | S7: Bike Lane | T7: SF | U7: 30
M8: 4 | N8: 7 | O8: 8 | P8: 12 | R8: 4 | S8: Curb-ramp | T8: Count | U8: 3500
R9: 5 | S9: Crosswalk | T9: LF | U9: 30
M10: Downtown DB | N10: 18'(10' clear +8' curbside) | R10: 6 | S10: Bulb Out | T10: Count | U10: 25000
M11: UNO | N11: 12' (5' clear +7' with tree grating) | R11: 7 | S11: Curb/gutter | T11: LF | U11: 40
M12: Subchapter E | N12: Varies | R12: 8 | S12: New Traffic Signal | T12: Count | U12: 500000
R13: 9 | S13: PHB | T13: Count | U13: 300000
R14: 10 | S14: RRFB | T14: Count | U14: 20000
R15: 11 | S15: Turn Lane | T15: LF | U15: 200
R16: 12 | S16: Travel Lane | T16: LF | U16: 200
R17: 13 | S17: Signage | T17: Count | U17: 250
R18: 14 | S18: Marking | T18: LF | U18: 5
B19: Custom Input Below | R19: 15 | S19: Retaining Wall | T19: Custom
R20: 16 | S20: Existing Signal Modification | T20: Custom
R21: 17 | S21: Others | T21: Custom
B27: Total Estimated SIF Offset | K27: =SUM(K5:K18)+SUM(K20:K26) -> 0

Sheet Service Area

Sheet Land_Use_Descriptions
B1: Land Use Category | C1: ITE Land Use Code | D1: Land Use Description
B5: PORT AND TERMINAL
B6: Truck Terminal | C6: 030 | D6: Point of goods transfer between trucks, between trucks and rail, or between trucks and ports
B7: INDUSTRIAL
B8: General Light Industrial | C8: 110 | D8: Emphasis on activities other than manufacturing in a free-standing facility devoted to a single use
B9: Industrial Park | C9: 130 | D9: Contains a number of industrial or related facilities; characterized by a mix of highly diversified facilities
B10: Manufacturing | C10: 140 | D10: Primary activity is conversion of raw materials or parts into finished products
B11: Warehousing | C11: 150 | D11: Devoted to storage of materials but may include office and maintenance areas
B12: Mini-Warehouse | C12: 151 | D12: Facilities with a number of units or vaults rented to others for the storage of goods
B13: RESIDENTIAL
B14: Single-Family Detached Housing | C14: 210 | D14: Single-family detached homes on individual lots
B15: Townhomes / Duplexes / Triplexes / 4-Plexes / ADUs | C15: 220 | D15: One or two levels (floors) per building such as duplex, townhomes, and single family houses <1,200 SF
B16: Mid-Rise Apartments or Condominiums | C16: 221 | D16: Multi-family housing between three and ten levels (floors) per building
B17: High-Rise Apartments or Condominiums | C17: 222 | D17: Multi-family housing more than ten levels (floors) per building
B18: Mobile Home Park | C18: 240 | D18: Consists of manufactured homes that are sited and installed on permanent foundations
B19: Senior Adult Housing-Detached | C19: 251 | D19: Consists of detached independent living developments that include amenities such as golf courses and swimming pools
B20: Senior Adult Housing-Attached | C20: 252 | D20: Consists of attached independent living developments that include limited social or recreation services
B21: Assisted Living | C21: 254 | D21: Residential settings that provide either routine general protective oversight or assistance with activities
B22: LODGING
B23: Hotel | C23: 310 | D23: Lodging facilities that typically have on-site restaurants, lounges, meeting and/or banquet rooms, or other retail shops and services
B24: Motel / Other Lodging Facilities | C24: 320 | D24: Lodging facilities that may have small on-site restaurant or buffet area but little or no meeting space
B25: RECREATIONAL
B26: Golf Driving Range | C26: 432 | D26: Facilities with driving tees for practice; may provide individual or group lessons; may have prop shop and/or refreshment facilities
B27: Golf Course | C27: 430 | D27: May include municipal courses and private country clubs; may have driving ranges, pro shops, and restaurant/banquet facilities
B28: Recreational Community Center | C28: 495 | D28: Category includes stand-alone public facilities often including classes and clubs for adults and children including YMCAs
B29: Ice Skating Rink | C29: 465 | D29: Rinks for ice skating and related sports; may contain spectator areas and refreshment facilities
B30: Miniature Golf Course | C30: 431 | D30: One or more individual putting courses; category should not be used when part of a mulitpurpose entertainment center (e.g. batting cages, go-carts)
B31: Multiplex Movie Theater | C31: 445 | D31: Movie theater with audience seating, minimum of ten (10) screens, lobby, and refreshment area.
B32: Racquet / Tennis Club | C32: 491 | D32: Indoor or outdoor facilities specifically designed for playing tennis
B33: INSTITUTIONAL
B34: Religious Place of Worship | C34: 560 | D34: All places of worship
B35: Day Care Center | C35: 565 | D35: Generally includes facilities for care of pre-school aged children, generally includes classrooms, offices, eating areas, and playgrounds
B36: Elementary School | C36: 520 | D36: Serves students attending kindergarten through the fifth or sixth grade; ususally located in residential communities
B37: Middle School / Junior High School | C37: 522 | D37: Serves students who have not yet entered high school, and have completed elementary school
B38: High School | C38: 530 | D38: Serves students who have completed middle or junior high school
B39: Junior / Community College | C39: 540 | D39: Two-year junior, community, or technical colleges
B40: University / College | C40: 550 | D40: Four-year universities or colleges that may or may not offer graduate programs
B41: MEDICAL
B42: Clinic | C42: 630 | D42: Facilities with limited diagnostic and outpatient care
B43: Hospital | C43: 610 | D43: Medical and surgical facilities with overnight accommodations
B44: Nursing Home | C44: 620 | D44: Rest homes, chronic care, and convalescent homes with residents who do little or no driving
B45: Animal Hospital/Veterinary Clinic | C45: 640 | D45: Facilities that specialize in the medical care and treatment of animals
B46: OFFICE
B47: Corporate Headquarters Building | C47: 714 | D47: Office building housing corporate headquarters of a single company or organization
B48: General Office Building | C48: 710 | D48: Office buildings which house multiple tenants
B49: Medical-Dental Office Building | C49: 720 | D49: Multi-tenant building with offices for physicians and/or dentists
B50: Single Tenant Office Building | C50: 715 | D50: Single tenant office buildings other than corporate headquarters
B51: Office Park | C51: 750 | D51: Office buildings (typically low-rise) in a campus setting and served by a common roadway system
B52: COMMERCIAL
B53: AUTOMOBILE RELATED
B54: Automobile Care Center | C54: 942 | D54: Automobile repair and servicing including stereo installations and upholstering
B55: Automobile Parts Sales | C55: 843 | D55: Retail sale of auto parts but no on-site vehicle repair
B56: Gasoline/Service Station | C56: 944 | D56: Gasoline sales without convenience store; may include repair or car wash
B57: Gasoline/Service Station w/ Conv Market | C57: 945 | D57: Gasoline sales with convenience store where the primary business is gasoline sales, with at least 10 fueling positions
B58: New Car Sales | C58: 841 | D58: Used automobile sales dealerships; may include automobile servicing, and parts sales
B59: Quick Lubrication Vehicle Shop | C59: 941 | D59: Primary business is to perform oil changes and fluid/filter changes with other repair services not provided
B60: Self-Service Car Wash | C60: 947 | D60: Has stalls for driver to park and wash the vehicle manually
B61: Tire Store | C61: 848 | D61: Primary business is sales and installation or repair of tires; usually do not have large storage or warehouse area
B62: DINING
B63: Fast Food Restaurant with Drive-Thru Window | C63: 934 | D63: High-turnover fast food restaurant for carry-out and eat-in customers with a drive-through window
B64: Fast Food Restaurant without Drive-Thru Window | C64: 933 | D64: High-turnover fast food restaurant for carry-out and eat-in customers, but without a drive-through window
B65: High Turnover (Sit-Down) Restaurant | C65: 932 | D65: Restaurants with turnover rates less than one hour; typically includes moderately-priced chain restaurants
B66: Quality Restaurant | C66: 931 | D66: Restaurants with turnover rates of one hour or longer; typically require reservations
B67: Coffee/Donut Shop with Drive-Thru Window | C67: 937 | D67: Coffee and Donut restaurants with drive-through windows, hold long store hours and have limited indoor seating
B68: OTHER RETAIL
B69: Free-Standing Discount Store | C69: 815 | D69: Category includes free-standing stores with off-street parking; typically offer a variety of products and services with long store hours
B70: Nursery (Garden Center) | C70: 817 | D70: Building with a yard of planting or landscape stock; may have office, storage, shipping or greenhouse facilities
B71: Home Improvement Superstore | C71: 862 | D71: Warehouse-type facilities offering a large variety of products and services including lumber, tool, paint, lighting, and fixtures, among other items.
B72: Pharmacy/Drugstore w/o Drive-Thru Window | C72: 880 | D72: Facilities that primarily sell prescription and non-prescription drugs without a drive-through window
B73: Pharmacy/Drugstore w/ Drive-Thru Window | C73: 881 | D73: Facilities that primarily sell prescription and non-prescription drugs with a drive-through window
B74: Shopping Center | C74: 820 | D74: Integrated group of commercial establishments; planning, owned, and managed as a unit
B75: Supermarket | C75: 850 | D75: Primary business is sale of groceries, food, and household cleaning items; may include photo, pharmacy, video rental, and/or ATM
B76: Toy/Children's Superstore | C76: 864 | D76: Businesses specializing in child-oriented merchandise
B77: Department Store | C77: 875 | D77: Free-standing stores that specialize in the sale of apparel, footwear, bedding, home products, jewelry, etc.
B78: SERVICES
B79: Walk-In Bank | C79: 911 | D79: Banks with their own parking lots, no drive-in lanes but contain non-drive-through ATMs
B80: Drive-In Bank | C80: 912 | D80: Banking facilities to conduct financial transactions from the vehicle; also usually a part of walk-in bank
B81: Hair Salon | C81: 918 | D81: Facilities that specialize in cosmetic and beauty services including hair cutting and styling

Sheet Max_Rate (hidden)
B2: Land Use Category | E2: ITE Land Use Code | F2: Land Use Description | G2: Development Unit | H2: Veh-Mi Per Dev-Unit Inside Loop | I2: Veh-Mi Per Dev-Unit Outside Loop | J2: Max Fee Per Dev-Unit SA A | K2: Max Fee Per Dev-Unit SA B | L2: Max Fee Per Dev-Unit SA C | M2: Max Fee Per Dev-Unit SA D | N2: Max Fee Per Dev-Unit SA E | O2: Max Fee Per Dev-Unit SA F INSIDE | P2: Max Fee Per Dev-Unit SA G | Q2: Max Fee Per Dev-Unit SA H | R2: Max Fee Per Dev-Unit SA I INSIDE | S2: Max Fee Per Dev-Unit SA J INSIDE | T2: Max Fee Per Dev-Unit SA K INSIDE | U2: Max Fee Per Dev-Unit SA L INSIDE | V2: Max Fee Per Dev-Unit SA M | W2: Max Fee Per Dev-Unit SA N | X2: Max Fee Per Dev-Unit SA O | Y2: Max Fee Per Dev-Unit SA P | Z2: Max Fee Per Dev-Unit SA DT INSIDE
A4: =Collected_Rate!A4 -> PORT AND TERMINAL | B4: PORT AND TERMINAL | J4: 1472 | K4: 4479 | L4: 3642 | M4: 2218 | N4: 2043 | O4: 1604 | P4: 3071 | Q4: 1543 | R4: 1712 | S4: 3742 | T4: 5752 | U4: 2520 | V4: 2415 | W4: 1507 | X4: 3921 | Y4: 3011 | Z4: 1361
A5: =Collected_Rate!A5 -> (030) Truck Terminal | B5: Truck Terminal | E5: 030 | F5: Point of good transfer between trucks or between trucks and rail | G5: 1,000 SF GFA | H5: 10 | I5: 10 | J5: =ROUND($J$4*I5,2) -> 14720 | K5: =ROUND(K$4*$I5,2) -> 44790 | L5: =ROUND(L$4*$I5,2) -> 36420 | M5: =ROUND(M$4*$I5,2) -> 22180 | N5: 20430 | O5: =ROUND(O$4*$H5,2) -> 16040 | P5: 30710 | Q5: 15430 | R5: =ROUND(R$4*$H5,2) -> 17120 | S5: =ROUND(S$4*$H5,2) -> 37420 | T5: =ROUND(T$4*$I5,2) -> 57520 | U5: =ROUND(U$4*$H5,2) -> 25200 | V5: 24150 | W5: 15070 | X5: 39210 | Y5: 30110 | Z5: =ROUND(Z$4*$H5,2) -> 13610
A6: =Collected_Rate!A6 -> INDUSTRIAL | B6: INDUSTRIAL | J6: =ROUND($J$4*I6,2) -> 0 | K6: =ROUND(K$4*$I6,2) -> 0 | L6: 0 | M6: 0 | N6: 0 | O6: =ROUND(O$4*$H6,2) -> 0 | P6: 0 | Q6: 0 | R6: =ROUND(R$4*$H6,2) -> 0 | S6: 0 | T6: =ROUND(T$4*$I6,2) -> 0 | U6: =ROUND(U$4*$H6,2) -> 0 | V6: 0 | W6: 0 | X6: 0 | Y6: 0 | Z6: =ROUND(Z$4*$H6,2) -> 0
A7: =Collected_Rate!A7 -> (110) General Light Industrial | B7: General Light Industrial | E7: 110 | F7: Emphasis on activities other than manufacturing; typically employing fewer than 500 workers | G7: 1,000 SF GFA | H7: 1.93 | I7: 3.78 | J7: 5564.16 | K7: 16930.62 | L7: 13766.76 | M7: 8384.04 | N7: 7722.54 | O7: 3095.72 | P7: 11608.38 | Q7: 5832.54 | R7: 3304.16 | S7: 7222.06 | T7: 21742.56 | U7: 4863.6 | V7: 9128.7 | W7: 5696.46 | X7: 14821.38 | Y7: 11381.58 | Z7: 2626.73
A8: =Collected_Rate!A8 -> (130) Industrial Park | B8: Industrial Park | E8: 130 | G8: 1,000 SF GFA | H8: 1.23 | I8: 2.4 | J8: 3532.8 | K8: 10749.6 | L8: 8740.8 | M8: 5323.2 | N8: 4903.2 | O8: 1972.92 | P8: 7370.4 | Q8: 3703.2 | R8: 2105.76 | S8: 4602.66 | T8: 13804.8 | U8: 3099.6 | V8: 5796 | W8: 3616.8 | X8: 9410.4 | Y8: 7226.4 | Z8: 1674.03
A9: =Collected_Rate!A9 -> (140) Manufacturing | B9: Manufacturing | E9: 140 | F9: Primary activity is conversion of raw materials or parts into finished products | G9: 1,000 SF GFA | H9: 2.06 | I9: 4.02 | J9: 5917.44 | K9: 18005.58 | L9: 14640.84 | M9: 8916.36 | N9: 8212.86 | O9: 3304.24 | P9: 12345.42 | Q9: 6202.86 | R9: 3526.72 | S9: 7708.52 | T9: 23123.04 | U9: 5191.2 | V9: 9708.3 | W9: 6058.14 | X9: 15762.42 | Y9: 12104.22 | Z9: 2803.66
A10: =Collected_Rate!A10 -> (150) Warehousing | B10: Warehousing | E10: 150 | F10: Devoted to storage of materials but may included office and maintenance areas | G10: 1,000 SF GFA | H10: 0.58 | I10: 1.14 | J10: 1678.08 | K10: 5106.06 | L10: 4151.88 | M10: 2528.52 | N10: 2329.02 | O10: 930.32 | P10: 3500.94 | Q10: 1759.02 | R10: 992.96 | S10: 2170.36 | T10: 6557.28 | U10: 1461.6 | V10: 2753.1 | W10: 1717.98 | X10: 4469.94 | Y10: 3432.54 | Z10: 789.38
A11: =Collected_Rate!A11 -> (151) Mini-Warehouse | B11: Mini-Warehouse | E11: 151 | F11: Facilities with a number of units rented to others for the storage of goods | G11: 1,000 SF GFA | H11: 0.52 | I11: 1.02 | J11: 1501.44 | K11: 4568.58 | L11: 3714.84 | M11: 2262.36 | N11: 2083.86 | O11: 834.08 | P11: 3132.42 | Q11: 1573.86 | R11: 890.24 | S11: 1945.84 | T11: 5867.04 | U11: 1310.4 | V11: 2463.3 | W11: 1537.14 | X11: 3999.42 | Y11: 3071.22 | Z11: 707.72
A12: =Collected_Rate!A12 -> RESIDENTIAL | B12: RESIDENTIAL | J12: 0 | K12: 0 | L12: 0 | M12: 0 | N12: 0 | O12: 0 | P12: 0 | Q12: 0 | R12: 0 | S12: 0 | T12: 0 | U12: 0 | V12: 0 | W12: 0 | X12: 0 | Y12: 0 | Z12: 0
A13: =Collected_Rate!A13 -> (210) Single-Family Detached Housing | B13: Single-Family Detached Housing | E13: 210 | F13: Single-family detached homes on individual lots | G13: Dwelling Unit | H13: 2.87 | I13: 4.26 | J13: 6270.72 | K13: 19080.54 | L13: 15514.92 | M13: 9448.68 | N13: 8703.18 | O13: 4603.48 | P13: 13082.46 | Q13: 6573.18 | R13: 4913.44 | S13: 10739.54 | T13: 24503.52 | U13: 7232.4 | V13: 10287.9 | W13: 6419.82 | X13: 16703.46 | Y13: 12826.86 | Z13: 3906.07
A14: =Collected_Rate!A14 -> (220) Townhomes / Duplexes / Triplexes / 4-Plexes / ADUs | B14: Townhomes / Duplexes / Triplexes / 4-Plexes / ADUs | E14: 220 | F14: At least 4 rental dwelling units per building | G14: Dwelling Unit | H14: 1.62 | I14: 2.41 | J14: 3547.52 | K14: 10794.39 | L14: 8777.22 | M14: 5345.38 | N14: 4923.63 | O14: 2598.48 | P14: 7401.11 | Q14: =ROUND(Q$4*$I14,2) -> 3718.63 | R14: 2773.44 | S14: 6062.04 | T14: 13862.32 | U14: 4082.4 | V14: 5820.15 | W14: 3631.87 | X14: 9449.61 | Y14: 7256.51 | Z14: 2204.82
A15: =Collected_Rate!A15 -> (221) Mid-Rise Apartments or Condominiums | B15: Mid-Rise Apartments or Condominiums | E15: 221 | F15: At least 3 rental dwelling units and between three and ten levels (floors) per building | G15: Dwelling Unit | H15: 1.28 | I15: 1.89 | J15: 2782.08 | K15: 8465.31 | L15: 6883.38 | M15: 4192.02 | N15: 3861.27 | O15: 2053.12 | P15: 5804.19 | Q15: 2916.27 | R15: 2191.36 | S15: 4789.76 | T15: 10871.28 | U15: 3225.6 | V15: 4564.35 | W15: 2848.23 | X15: 7410.69 | Y15: 5690.79 | Z15: 1742.08
A16: =Collected_Rate!A16 -> (222) High-Rise Apartments or Condominiums | B16: High-Rise Apartments or Condominiums | E16: 222 | F16: At least 3 rental dwelling units and more than ten levels (floors) per building | G16: Dwelling Unit | H16: 1.04 | I16: 1.55 | J16: 2281.6 | K16: 6942.45 | L16: 5645.1 | M16: 3437.9 | N16: 3166.65 | O16: 1668.16 | P16: 4760.05 | Q16: 2391.65 | R16: 1780.48 | S16: 3891.68 | T16: 8915.6 | U16: 2620.8 | V16: 3743.25 | W16: 2335.85 | X16: 6077.55 | Y16: 4667.05 | Z16: 1415.44
A17: =Collected_Rate!A17 -> (240) Mobile Home Park | B17: Mobile Home Park | E17: 240 | G17: Dwelling Unit | H17: 1.33 | I17: 1.98 | J17: 2914.56 | K17: 8868.42 | L17: 7211.16 | M17: 4391.64 | N17: 4045.14 | O17: 2133.32 | P17: 6080.58 | Q17: 3055.14 | R17: 2276.96 | S17: 4976.86 | T17: 11388.96 | U17: 3351.6 | V17: 4781.7 | W17: 2983.86 | X17: 7763.58 | Y17: 5961.78 | Z17: 1810.13
A18: =Collected_Rate!A18 -> (251) Senior Adult Housing-Detached | B18: Senior Adult Housing-Detached | E18: 251 | F18: Consists of detached independent living developments that include amenities such as golf courses and swimming pools | G18: Dwelling Unit | H18: 0.87 | I18: 1.29 | J18: 1898.88 | K18: 5777.91 | L18: 4698.18 | M18: 2861.22 | N18: 2635.47 | O18: 1395.48 | P18: 3961.59 | Q18: 1990.47 | R18: 1489.44 | S18: 3255.54 | T18: 7420.08 | U18: 2192.4 | V18: 3115.35 | W18: 1944.03 | X18: 5058.09 | Y18: 3884.19 | Z18: 1184.07
A19: =Collected_Rate!A19 -> (252) Senior Adult Housing-Attached | B19: Senior Adult Housing-Attached | E19: 252 | F19: Consists of attached independent living developments that include limited social or recreation services | G19: Dwelling Unit | H19: 0.75 | I19: 1.12 | J19: 1648.64 | K19: 5016.48 | L19: 4079.04 | M19: 2484.16 | N19: 2288.16 | O19: 1203 | P19: 3439.52 | Q19: 1728.16 | R19: 1284 | S19: 2806.5 | T19: 6442.24 | U19: 1890 | V19: 2704.8 | W19: 1687.84 | X19: 4391.52 | Y19: 3372.32 | Z19: 1020.75
A20: =Collected_Rate!A20 -> (254) Assisted Living | B20: Assisted Living | E20: 254 | F20: Residential settings that provide either routine general protective oversight or assistance with activities. | G20: Beds | H20: 0.75 | I20: 1.12 | J20: 1648.64 | K20: 5016.48 | L20: 4079.04 | M20: 2484.16 | N20: 2288.16 | O20: 1203 | P20: 3439.52 | Q20: 1728.16 | R20: 1284 | S20: 2806.5 | T20: 6442.24 | U20: 1890 | V20: 2704.8 | W20: 1687.84 | X20: 4391.52 | Y20: 3372.32 | Z20: 1020.75
A21: =Collected_Rate!A21 -> LODGING | B21: LODGING | J21: 0 | K21: 0 | L21: 0 | M21: 0 | N21: 0 | O21: 0 | P21: 0 | Q21: 0 | R21: 0 | S21: 0 | T21: 0 | U21: 0 | V21: 0 | W21: 0 | X21: 0 | Y21: 0 | Z21: 0
A22: =Collected_Rate!A22 -> (310) Hotel | B22: Hotel | E22: 310 | F22: Lodging facilities that typically have on-site restaurants, lounges, meeting and/or banquet rooms, or other retail shops and services | G22: Room | H22: 1.62 | I22: 1.63 | J22: 2399.36 | K22: 7300.77 | L22: 5936.46 | M22: 3615.34 | N22: 3330.09 | O22: 2598.48 | P22: 5005.73 | Q22: 2515.09 | R22: 2773.44 | S22: 6062.04 | T22: 9375.76 | U22: 4082.4 | V22: 3936.45 | W22: 2456.41 | X22: 6391.23 | Y22: 4907.93 | Z22: 2204.82
A23: =Collected_Rate!A23 -> (320) Motel / Other Lodging Facilities | B23: Motel / Other Lodging Facilities | E23: 320 | F23: Lodging facilities that may have small on-site restaurant or buffet area but little or no meeting space | G23: Room | H23: 1.03 | I23: 1.03 | J23: 1516.16 | K23: 4613.37 | L23: 3751.26 | M23: 2284.54 | N23: 2104.29 | O23: 1652.12 | P23: 3163.13 | Q23: 1589.29 | R23: 1763.36 | S23: 3854.26 | T23: 5924.56 | U23: 2595.6 | V23: 2487.45 | W23: 1552.21 | X23: 4038.63 | Y23: 3101.33 | Z23: 1401.83
A24: =Collected_Rate!A24 -> RECREATIONAL | B24: RECREATIONAL | J24: 0 | K24: 0 | L24: 0 | M24: 0 | N24: 0 | O24: 0 | P24: 0 | Q24: 0 | R24: 0 | S24: 0 | T24: 0 | U24: 0 | V24: 0 | W24: 0 | X24: 0 | Y24: 0 | Z24: 0
A25: =Collected_Rate!A25 -> (432) Golf Driving Range | B25: Golf Driving Range | E25: 432 | F25: Facilities with driving tees for practice; may provide individual or group lessons; may have prop shop and/or refreshment facilities | G25: Tee | H25: 3.64 | I25: 3.98 | J25: 5858.56 | K25: 17826.42 | L25: 14495.16 | M25: 8827.64 | N25: 8131.14 | O25: 5838.56 | P25: 12222.58 | Q25: 6141.14 | R25: 6231.68 | S25: 13620.88 | T25: 22892.96 | U25: 9172.8 | V25: 9611.7 | W25: 5997.86 | X25: 15605.58 | Y25: 11983.78 | Z25: 4954.04
A26: =Collected_Rate!A26 -> (430) Golf Course | B26: Golf Course | E26: 430 | F26: May include municipal courses and private country clubs; may have driving ranges, pro shops, and restaurant/banquet facilities | G26: Acre | H26: 0.81 | I26: 0.89 | J26: 1310.08 | K26: 3986.31 | L26: 3241.38 | M26: 1974.02 | N26: 1818.27 | O26: 1299.24 | P26: 2733.19 | Q26: 1373.27 | R26: 1386.72 | S26: 3031.02 | T26: 5119.28 | U26: 2041.2 | V26: 2149.35 | W26: 1341.23 | X26: 3489.69 | Y26: 2679.79 | Z26: 1102.41
A27: =Collected_Rate!A27 -> (495) Recreational Community Center | B27: Recreational Community Center | E27: 495 | F27: Category includes racquet clubs, health/fitness clubs, can include facilities such as YMCA's | G27: 1,000 SF GFA | H27: 6.72 | I27: 7.35 | J27: 10819.2 | K27: 32920.65 | L27: 26768.7 | M27: 16302.3 | N27: 15016.05 | O27: 10778.88 | P27: 22571.85 | Q27: 11341.05 | R27: 11504.64 | S27: 25146.24 | T27: 42277.2 | U27: 16934.4 | V27: 17750.25 | W27: 11076.45 | X27: 28819.35 | Y27: 22130.85 | Z27: 9145.92
A28: =Collected_Rate!A28 -> (465) Ice Skating Rink | B28: Ice Skating Rink | E28: 465 | F28: Rinks for ice skating and related sports; may contain spectator areas and refreshment facilities | G28: 1,000 SF GFA | H28: 3.87 | I28: 4.23 | J28: 6226.56 | K28: 18946.17 | L28: 15405.66 | M28: 9382.14 | N28: 8641.89 | O28: 6207.48 | P28: 12990.33 | Q28: 6526.89 | R28: 6625.44 | S28: 14481.54 | T28: 24330.96 | U28: 9752.4 | V28: 10215.45 | W28: 6374.61 | X28: 16585.83 | Y28: 12736.53 | Z28: 5267.07
A29: =Collected_Rate!A29 -> (431) Miniature Golf Course | B29: Miniature Golf Course | E29: 431 | F29: One or more individual putting courses; category should not be used when part of a larger entertainment center(with batting cages, video game centers, etc) | G29: Hole | H29: 0.96 | I29: 1.05 | J29: 1545.6 | K29: 4702.95 | L29: 3824.1 | M29: 2328.9 | N29: 2145.15 | O29: 1539.84 | P29: 3224.55 | Q29: 1620.15 | R29: 1643.52 | S29: 3592.32 | T29: 6039.6 | U29: 2419.2 | V29: 2535.75 | W29: 1582.35 | X29: 4117.05 | Y29: 3161.55 | Z29: 1306.56
A30: =Collected_Rate!A30 -> (445) Multiplex Movie Theater | B30: Multiplex Movie Theater | E30: 445 | F30: Movie theater with audience seating, minimum of ten screens, lobby, and refreshment area. | G30: Screens | H30: 39.95 | I30: 43.66 | J30: 64267.52 | K30: 195553.14 | L30: 159009.72 | M30: 96837.88 | N30: 89197.38 | O30: 64079.8 | P30: 134079.86 | Q30: 67367.38 | R30: 68394.4 | S30: 149492.9 | T30: 251132.32 | U30: 100674 | V30: 105438.9 | W30: 65795.62 | X30: 171190.86 | Y30: 131460.26 | Z30: 54371.95
A31: =Collected_Rate!A31 -> (491) Racquet / Tennis Club | B31: Racquet / Tennis Club | E31: 491 | F31: Indoor or outdoor facilities specifically designed for playing tennis | G31: Court | H31: 11.12 | I31: 12.15 | J31: 17884.8 | K31: 54419.85 | L31: 44250.3 | M31: 26948.7 | N31: 24822.45 | O31: 17836.48 | P31: 37312.65 | Q31: 18747.45 | R31: 19037.44 | S31: 41611.04 | T31: 69886.8 | U31: 28022.4 | V31: 29342.25 | W31: 18310.05 | X31: 47640.15 | Y31: 36583.65 | Z31: 15134.32
A32: =Collected_Rate!A32 -> INSTITUTIONAL | B32: INSTITUTIONAL | J32: 0 | K32: 0 | L32: 0 | M32: 0 | N32: 0 | O32: 0 | P32: 0 | Q32: 0 | R32: 0 | S32: 0 | T32: 0 | U32: 0 | V32: 0 | W32: 0 | X32: 0 | Y32: 0 | Z32: 0
A33: =Collected_Rate!A33 -> (560) Religious Place of Worship | B33: Religious Place of Worship | E33: 560 | F33: Churches and houses of worship | G33: 1,000 SF GFA | H33: 1.54 | I33: 1.54 | J33: 2266.88 | K33: 6897.66 | L33: 5608.68 | M33: 3415.72 | N33: 3146.22 | O33: 2470.16 | P33: 4729.34 | Q33: 2376.22 | R33: 2636.48 | S33: 5762.68 | T33: 8858.08 | U33: 3880.8 | V33: 3719.1 | W33: 2320.78 | X33: 6038.34 | Y33: 4636.94 | Z33: 2095.94
A34: =Collected_Rate!A34 -> (565) Day Care Center | B34: Day Care Center | E34: 565 | F34: Generally includes facilities for care of pre-school aged children, generally includes classrooms, offices, eating areas, and playgrounds | G34: 1,000 SF GFA | H34: 10.53 | I34: 10.59 | J34: 15588.48 | K34: 47432.61 | L34: 38568.78 | M34: 23488.62 | N34: 21635.37 | O34: 16890.12 | P34: 32521.89 | Q34: 16340.37 | R34: 18027.36 | S34: 39403.26 | T34: 60913.68 | U34: 26535.6 | V34: 25574.85 | W34: 15959.13 | X34: 41523.39 | Y34: 31886.49 | Z34: 14331.33
A35: =Collected_Rate!A35 -> (520) Elementary School | B35: Elementary School | E35: 520 | G35: Students | H35: 0.29 | I35: 0.29 | J35: =ROUND($J$4*I35,2) -> 426.88 | K35: 1298.91 | L35: 1056.18 | M35: 643.22 | N35: 592.47 | O35: 465.16 | P35: 890.59 | Q35: 447.47 | R35: 496.48 | S35: 1085.18 | T35: 1668.08 | U35: 730.8 | V35: 700.35 | W35: 437.03 | X35: 1137.09 | Y35: 873.19 | Z35: 394.69
A36: =Collected_Rate!A36 -> (522) Middle School / Junior High School | B36: Middle School / Junior High School | E36: 522 | F36: Serves students who have not yet entered high school | G36: Students | H36: 0.29 | I36: 0.29 | J36: =ROUND($J$4*I36,2) -> 426.88 | K36: 1298.91 | L36: 1056.18 | M36: 643.22 | N36: 592.47 | O36: 465.16 | P36: 890.59 | Q36: 447.47 | R36: 496.48 | S36: 1085.18 | T36: 1668.08 | U36: 730.8 | V36: 700.35 | W36: 437.03 | X36: 1137.09 | Y36: 873.19 | Z36: 394.69
A37: =Collected_Rate!A37 -> (530) High School | B37: High School | E37: 530 | F37: Serves students who have completed middle or junior high school | G37: Students | H37: 0.24 | I37: 0.24 | J37: 353.28 | K37: 1074.96 | L37: 874.08 | M37: 532.32 | N37: 490.32 | O37: 384.96 | P37: 737.04 | Q37: 370.32 | R37: 410.88 | S37: 898.08 | T37: 1380.48 | U37: 604.8 | V37: 579.6 | W37: 361.68 | X37: 941.04 | Y37: 722.64 | Z37: 326.64
A38: =Collected_Rate!A38 -> (540) Junior / Community College | B38: Junior / Community College | E38: 540 | F38: Two-year junior, community, or technical colleges | G38: Students | H38: 0.19 | I38: 0.19 | J38: 279.68 | K38: 851.01 | L38: 691.98 | M38: 421.42 | N38: 388.17 | O38: 304.76 | P38: 583.49 | Q38: 293.17 | R38: 325.28 | S38: 710.98 | T38: 1092.88 | U38: 478.8 | V38: 458.85 | W38: 286.33 | X38: 744.99 | Y38: 572.09 | Z38: 258.59
A39: =Collected_Rate!A39 -> (550) University / College | B39: University / College | E39: 550 | F39: Four-year universities or colleges that may or may not offer graduate programs | G39: Students | H39: 0.25 | I39: 0.26 | J39: 382.72 | K39: =ROUND(K$4*$I39,2) -> 1164.54 | L39: 946.92 | M39: 576.68 | N39: 531.18 | O39: 401 | P39: 798.46 | Q39: 401.18 | R39: =ROUND(R$4*$H39,2) -> 428 | S39: 935.5 | T39: 1495.52 | U39: 630 | V39: 627.9 | W39: 391.82 | X39: 1019.46 | Y39: 782.86 | Z39: 340.25
A40: =Collected_Rate!A40 -> MEDICAL | B40: MEDICAL | J40: 0 | K40: 0 | L40: 0 | M40: 0 | N40: 0 | O40: 0 | P40: 0 | Q40: 0 | R40: 0 | S40: 0 | T40: 0 | U40: 0 | V40: 0 | W40: 0 | X40: 0 | Y40: 0 | Z40: 0
A41: =Collected_Rate!A41 -> (630) Clinic | B41: Clinic | E41: 630 | F41: Facilities with limited diagnostic and outpatient care | G41: 1,000 SF GFA | H41: 12.17 | I41: 11.09 | J41: 16324.48 | K41: 49672.11 | L41: 40389.78 | M41: 24597.62 | N41: 22656.87 | O41: 19520.68 | P41: 34057.39 | Q41: 17111.87 | R41: 20835.04 | S41: 45540.14 | T41: 63789.68 | U41: 30668.4 | V41: 26782.35 | W41: 16712.63 | X41: 43483.89 | Y41: 33391.99 | Z41: 16563.37
A42: =Collected_Rate!A42 -> (610) Hospital | B42: Hospital | E42: 610 | F42: Medical and surgical facilities with overnight accommodations | G42: 1,000 SF GFA | H42: 3.6 | I42: 3.28 | J42: 4828.16 | K42: 14691.12 | L42: 11945.76 | M42: 7275.04 | N42: 6701.04 | O42: 5774.4 | P42: 10072.88 | Q42: 5061.04 | R42: 6163.2 | S42: 13471.2 | T42: 18866.56 | U42: 9072 | V42: 7921.2 | W42: 4942.96 | X42: 12860.88 | Y42: 9876.08 | Z42: 4899.6
A43: =Collected_Rate!A43 -> (620) Nursing Home | B43: Nursing Home | E43: 620 | F43: Rest and convalescent homes with residents who do little or no driving | G43: Beds | H43: 0.82 | I43: 0.74 | J43: 1089.28 | K43: 3314.46 | L43: 2695.08 | M43: 1641.32 | N43: 1511.82 | O43: 1315.28 | P43: 2272.54 | Q43: 1141.82 | R43: 1403.84 | S43: 3068.44 | T43: 4256.48 | U43: 2066.4 | V43: 1787.1 | W43: =ROUND(W$4*$I43,2) -> 1115.18 | X43: 2901.54 | Y43: 2228.14 | Z43: 1116.02
A44: =Collected_Rate!A44 -> (640) Animal Hospital/Veterinary Clinic | B44: Animal Hospital/Veterinary Clinic | E44: 640 | F44: Rest and convalescent homes with residents who do little or no driving | G44: 1,000 SF GFA | H44: 9.16 | I44: 8.35 | J44: 12291.2 | K44: 37399.65 | L44: 30410.7 | M44: 18520.3 | N44: 17059.05 | O44: 14692.64 | P44: 25642.85 | Q44: 12884.05 | R44: 15681.92 | S44: 34276.72 | T44: 48029.2 | U44: 23083.2 | V44: 20165.25 | W44: 12583.45 | X44: 32740.35 | Y44: 25141.85 | Z44: 12466.76
A45: =Collected_Rate!A45 -> OFFICE | B45: OFFICE | J45: 0 | K45: 0 | L45: 0 | M45: 0 | N45: 0 | O45: 0 | P45: 0 | Q45: 0 | R45: 0 | S45: 0 | T45: 0 | U45: 0 | V45: 0 | W45: 0 | X45: 0 | Y45: 0 | Z45: 0
A46: =Collected_Rate!A46 -> (714) Corporate Headquarters Building | B46: Corporate Headquarters Building | E46: 714 | F46: Office building housing corporate headquarters of a single company or organization | G46: 1,000 SF GFA | H46: 2.23 | I46: 2.03 | J46: 2988.16 | K46: 9092.37 | L46: 7393.26 | M46: 4502.54 | N46: 4147.29 | O46: 3576.92 | P46: 6234.13 | Q46: 3132.29 | R46: 3817.76 | S46: 8344.66 | T46: 11676.56 | U46: 5619.6 | V46: 4902.45 | W46: 3059.21 | X46: 7959.63 | Y46: 6112.33 | Z46: 3035.03
A47: =Collected_Rate!A47 -> (710) General Office Building | B47: General Office Building | E47: 710 | F47: Office buildings which house multiple tenants | G47: 1,000 SF GFA | H47: 4.27 | I47: 3.89 | J47: 5726.08 | K47: 17423.31 | L47: 14167.38 | M47: 8628.02 | N47: 7947.27 | O47: 6849.08 | P47: 11946.19 | Q47: 6002.27 | R47: 7310.24 | S47: 15978.34 | T47: 22375.28 | U47: 10760.4 | V47: 9394.35 | W47: 5862.23 | X47: 15252.69 | Y47: 11712.79 | Z47: 5811.47
A48: =Collected_Rate!A48 -> (720) Medical-Dental Office Building | B48: Medical-Dental Office Building | E48: 720 | F48: Multi-tenant building with offices for physicians and/or dentists | G48: 1,000 SF GFA | H48: 12.84 | I48: 11.69 | J48: 17207.68 | K48: 52359.51 | L48: 42574.98 | M48: 25928.42 | N48: 23882.67 | O48: 20595.36 | P48: 35899.99 | Q48: 18037.67 | R48: 21982.08 | S48: 48047.28 | T48: 67240.88 | U48: 32356.8 | V48: 28231.35 | W48: 17616.83 | X48: 45836.49 | Y48: 35198.59 | Z48: 17475.24
A49: =Collected_Rate!A49 -> (715) Single Tenant Office Building | B49: Single Tenant Office Building | E49: 715 | F49: Single tenant office buildings other than corporate headquarters | G49: 1,000 SF GFA | H49: 6.34 | I49: 5.78 | J49: 8508.16 | K49: 25888.62 | L49: 21050.76 | M49: 12820.04 | N49: 11808.54 | O49: 10169.36 | P49: 17750.38 | Q49: 8918.54 | R49: 10854.08 | S49: 23724.28 | T49: 33246.56 | U49: 15976.8 | V49: 13958.7 | W49: 8710.46 | X49: 22663.38 | Y49: 17403.58 | Z49: 8628.74
A50: =Collected_Rate!A50 -> (750) Office Park | B50: Office Park | E50: 750 | F50: Office buildings (typically low-rise) in a campus setting and served by a common roadway system | G50: 1,000 SF GFA | H50: 3.97 | I50: 3.62 | J50: 5328.64 | K50: 16213.98 | L50: 13184.04 | M50: 8029.16 | N50: 7395.66 | O50: 6367.88 | P50: 11117.02 | Q50: 5585.66 | R50: 6796.64 | S50: 14855.74 | T50: 20822.24 | U50: 10004.4 | V50: 8742.3 | W50: 5455.34 | X50: 14194.02 | Y50: 10899.82 | Z50: 5403.17
A51: =Collected_Rate!A51 -> COMMERCIAL | B51: COMMERCIAL | J51: 0 | K51: 0 | L51: 0 | M51: 0 | N51: 0 | O51: 0 | P51: 0 | Q51: 0 | R51: 0 | S51: 0 | T51: 0 | U51: 0 | V51: 0 | W51: 0 | X51: 0 | Y51: 0 | Z51: 0
A52: =Collected_Rate!A52 -> AUTOMOBILE RELATED | B52: AUTOMOBILE RELATED | J52: 0 | K52: 0 | L52: 0 | M52: 0 | N52: 0 | O52: 0 | P52: 0 | Q52: 0 | R52: 0 | S52: 0 | T52: 0 | U52: 0 | V52: 0 | W52: 0 | X52: 0 | Y52: 0 | Z52: 0
A53: =Collected_Rate!A53 -> (942) Automobile Care Center | B53: Automobile Care Center | E53: 942 | F53: Automobile repair and servicing including stereo installations and upholstering | G53: 1,000 SF GFA | H53: 5.05 | I53: 5.07 | J53: 7463.04 | K53: 22708.53 | L53: 18464.94 | M53: 11245.26 | N53: 10358.01 | O53: 8100.2 | P53: 15569.97 | Q53: 7823.01 | R53: 8645.6 | S53: 18897.1 | T53: 29162.64 | U53: 12726 | V53: 12244.05 | W53: 7640.49 | X53: 19879.47 | Y53: 15265.77 | Z53: 6873.05
A54: =Collected_Rate!A54 -> (843) Automobile Parts Sales | B54: Automobile Parts Sales | E54: 843 | F54: Retail sale of auto parts but no on-site vehicle repair | G54: 1,000 SF GFA | H54: 7.56 | I54: 7.59 | J54: 11172.48 | K54: 33995.61 | L54: 27642.78 | M54: 16834.62 | N54: 15506.37 | O54: 12126.24 | P54: 23308.89 | Q54: 11711.37 | R54: 12942.72 | S54: 28289.52 | T54: 43657.68 | U54: 19051.2 | V54: 18329.85 | W54: 11438.13 | X54: 29760.39 | Y54: 22853.49 | Z54: 10289.16
A55: =Collected_Rate!A55 -> (944) Gasoline/Service Station | B55: Gasoline/Service Station | E55: 944 | F55: Gasoline sales without convenience store or car wash; may include repair | G55: Vehicle Fueling Position | H55: 4.88 | I55: 4.88 | J55: 7183.36 | K55: 21857.52 | L55: 17772.96 | M55: 10823.84 | N55: 9969.84 | O55: 7827.52 | P55: 14986.48 | Q55: 7529.84 | R55: 8354.56 | S55: 18260.96 | T55: 28069.76 | U55: 12297.6 | V55: 11785.2 | W55: 7354.16 | X55: 19134.48 | Y55: 14693.68 | Z55: 6641.68
A56: =Collected_Rate!A56 -> (945) Gasoline/Service Station w/ Conv Market | B56: Gasoline/Service Station w/ Conv Market | E56: 945 | F56: Gasoline sales with convenience store and car washes where the primary business is gasoline sales | G56: Vehicle Fueling Position | H56: 3.7 | I56: 3.7 | J56: 5446.4 | K56: 16572.3 | L56: 13475.4 | M56: 8206.6 | N56: 7559.1 | O56: 5934.8 | P56: 11362.7 | Q56: 5709.1 | R56: 6334.4 | S56: 13845.4 | T56: 21282.4 | U56: 9324 | V56: 8935.5 | W56: 5575.9 | X56: 14507.7 | Y56: 11140.7 | Z56: 5035.7
A57: =Collected_Rate!A57 -> (841) New Car Sales | B57: New Car Sales | E57: 841 | F57: New car dealerships, typically with automobile servicing, part sales, and used car sales | G57: 1,000 SF GFA | H57: 5.24 | I57: 5.26 | J57: 7742.72 | K57: 23559.54 | L57: 19156.92 | M57: 11666.68 | N57: 10746.18 | O57: 8404.96 | P57: 16153.46 | Q57: 8116.18 | R57: 8970.88 | S57: 19608.08 | T57: 30255.52 | U57: 13204.8 | V57: 12702.9 | W57: 7926.82 | X57: 20624.46 | Y57: 15837.86 | Z57: 7131.64
A58: =Collected_Rate!A58 -> (941) Quick Lubrication Vehicle Shop | B58: Quick Lubrication Vehicle Shop | E58: 941 | F58: Primary business is to perform oil changes and fluid/filter changes with other repair services not provided | G58: Servicing Positions | H58: 7.86 | I58: 7.89 | J58: 11614.08 | K58: 35339.31 | L58: 28735.38 | M58: 17500.02 | N58: 16119.27 | O58: 12607.44 | P58: 24230.19 | Q58: 12174.27 | R58: 13456.32 | S58: 29412.12 | T58: 45383.28 | U58: 19807.2 | V58: 19054.35 | W58: 11890.23 | X58: 30936.69 | Y58: 23756.79 | Z58: 10697.46
A59: =Collected_Rate!A59 -> (947) Self-Service Car Wash | B59: Self-Service Car Wash | E59: 947 | F59: Has stalls for driver to park and wash the vehicle | G59: Stall | H59: 1.99 | I59: 1.99 | J59: 2929.28 | K59: =ROUND(K$4*$I59,2) -> 8913.21 | L59: 7247.58 | M59: 4413.82 | N59: 4065.57 | O59: 3191.96 | P59: 6111.29 | Q59: 3070.57 | R59: 3406.88 | S59: 7446.58 | T59: 11446.48 | U59: 5014.8 | V59: 4805.85 | W59: 2998.93 | X59: 7802.79 | Y59: 5991.89 | Z59: 2708.39
A60: =Collected_Rate!A60 -> (848) Tire Store | B60: Tire Store | E60: 848 | F60: Primary business is sales and installation of tires; usually do not have large storage or warehouse area | G60: 1,000 SF GFA | H60: 7.75 | I60: 7.78 | J60: 11452.16 | K60: 34846.62 | L60: 28334.76 | M60: 17256.04 | N60: 15894.54 | O60: 12431 | P60: 23892.38 | Q60: 12004.54 | R60: 13268 | S60: 29000.5 | T60: 44750.56 | U60: 19530 | V60: 18788.7 | W60: 11724.46 | X60: 30505.38 | Y60: 23425.58 | Z60: 10547.75
A61: =Collected_Rate!A61 -> DINING | B61: DINING | J61: 0 | K61: 0 | L61: 0 | M61: 0 | N61: 0 | O61: 0 | P61: 0 | Q61: 0 | R61: 0 | S61: 0 | T61: 0 | U61: 0 | V61: 0 | W61: 0 | X61: 0 | Y61: 0 | Z61: 0
A62: =Collected_Rate!A62 -> (934) Fast Food Restaurant with Drive-Thru Window | B62: Fast Food Restaurant with Drive-Thru Window | E62: 934 | F62: High-turnover fast food restaurant for carry-out and eat-in customers with a drive-thru window | G62: 1,000 SF GFA | H62: 27.61 | I62: 27.78 | J62: 40892.16 | K62: 124426.62 | L62: 101174.76 | M62: 61616.04 | N62: 56754.54 | O62: 44286.44 | P62: 85312.38 | Q62: 42864.54 | R62: 47268.32 | S62: 103316.62 | T62: 159790.56 | U62: 69577.2 | V62: 67088.7 | W62: 41864.46 | X62: 108925.38 | Y62: 83645.58 | Z62: 37577.21
A63: =Collected_Rate!A63 -> (933) Fast Food Restaurant without Drive-Thru Window | B63: Fast Food Restaurant without Drive-Thru Window | E63: 933 | F63: High-turnover fast food restaurant for carry-out and eat-in customers, but without a drive-thru window | G63: 1,000 SF GFA | H63: 23.95 | I63: 24.09 | J63: 35460.48 | K63: 107899.11 | L63: 87735.78 | M63: 53431.62 | N63: 49215.87 | O63: 38415.8 | P63: 73980.39 | Q63: 37170.87 | R63: 41002.4 | S63: 89620.9 | T63: 138565.68 | U63: 60354 | V63: 58177.35 | W63: 36303.63 | X63: 94456.89 | Y63: 72534.99 | Z63: 32595.95
A64: =Collected_Rate!A64 -> (932) High Turnover (Sit-Down) Restaurant | B64: High Turnover (Sit-Down) Restaurant | E64: 932 | F64: Restaurants with turnover rates less than one hour; typically includes moderately-priced chain restaurants | G64: 1,000 SF GFA | H64: 15.04 | I64: 15.09 | J64: 22212.48 | K64: 67588.11 | L64: 54957.78 | M64: 33469.62 | N64: 30828.87 | O64: 24124.16 | P64: 46341.39 | Q64: 23283.87 | R64: 25748.48 | S64: 56279.68 | T64: 86797.68 | U64: 37900.8 | V64: 36442.35 | W64: 22740.63 | X64: 59167.89 | Y64: 45435.99 | Z64: 20469.44
A65: =Collected_Rate!A65 -> (931) Quality Restaurant | B65: Quality Restaurant | E65: 931 | F65: Restaurants with turnover rates of one hour or longer; typically require reservations | G65: 1,000 SF GFA | H65: 11.8 | I65: 11.84 | J65: 17428.48 | K65: 53031.36 | L65: 43121.28 | M65: 26261.12 | N65: 24189.12 | O65: 18927.2 | P65: 36360.64 | Q65: 18269.12 | R65: 20201.6 | S65: 44155.6 | T65: 68103.68 | U65: 29736 | V65: 28593.6 | W65: 17842.88 | X65: 46424.64 | Y65: 35650.24 | Z65: 16059.8
A66: =Collected_Rate!A66 -> (937) Coffee/Donut Shop with Drive-Thru Window | B66: Coffee/Donut Shop with Drive-Thru Window | E66: 937 | F66: Coffee and Donut restaurants with drive-through windows, hold long store hours and have limited indoor seating | G66: 1,000 SF GFA | H66: 7.81 | I66: 7.81 | J66: 11496.32 | K66: 34980.99 | L66: 28444.02 | M66: 17322.58 | N66: 15955.83 | O66: 12527.24 | P66: 23984.51 | Q66: 12050.83 | R66: 13370.72 | S66: 29225.02 | T66: 44923.12 | U66: 19681.2 | V66: 18861.15 | W66: 11769.67 | X66: 30623.01 | Y66: 23515.91 | Z66: 10629.41
A67: =Collected_Rate!A67 -> OTHER RETAIL | B67: OTHER RETAIL | J67: 0 | K67: 0 | L67: 0 | M67: 0 | N67: 0 | O67: 0 | P67: 0 | Q67: 0 | R67: 0 | S67: 0 | T67: 0 | U67: 0 | V67: 0 | W67: 0 | X67: 0 | Y67: 0 | Z67: 0
A68: =Collected_Rate!A68 -> (815) Free-Standing Discount Store | B68: Free-Standing Discount Store | E68: 815 | F68: Category includes free-standing stores with off-street parking; typically offer a variety of products and services with long store hours | G68: 1,000 SF GFA | H68: 9.84 | I68: 10.75 | J68: 15824 | K68: 48149.25 | L68: 39151.5 | M68: 23843.5 | N68: 21962.25 | O68: 15783.36 | P68: 33013.25 | Q68: 16587.25 | R68: 16846.08 | S68: 36821.28 | T68: 61834 | U68: 24796.8 | V68: 25961.25 | W68: 16200.25 | X68: 42150.75 | Y68: 32368.25 | Z68: 13392.24
A69: =Collected_Rate!A69 -> (817) Nursery (Garden Center) | B69: Nursery (Garden Center) | E69: 817 | F69: Building with a yard of planting or landscape stock; may have office, storage, shipping or greenhouse facilities | G69: 1,000 SF GFA | H69: 14.14 | I69: 15.45 | J69: 22742.4 | K69: 69200.55 | L69: 56268.9 | M69: 34268.1 | N69: 31564.35 | O69: 22680.56 | P69: 47446.95 | Q69: 23839.35 | R69: 24207.68 | S69: 52911.88 | T69: 88868.4 | U69: 35632.8 | V69: 37311.75 | W69: 23283.15 | X69: 60579.45 | Y69: 46519.95 | Z69: 19244.54
A70: =Collected_Rate!A70 -> (862) Home Improvement Superstore | B70: Home Improvement Superstore | E70: 862 | F70: Warehouse-type facilities offering a large variety of products and services including lumber, tool, paint, lighting, and fixtures, among other items. | G70: 1,000 SF GFA | H70: 3.52 | I70: 3.85 | J70: 5667.2 | K70: 17244.15 | L70: 14021.7 | M70: 8539.3 | N70: 7865.55 | O70: 5646.08 | P70: 11823.35 | Q70: 5940.55 | R70: 6026.24 | S70: 13171.84 | T70: 22145.2 | U70: 8870.4 | V70: 9297.75 | W70: 5801.95 | X70: 15095.85 | Y70: 11592.35 | Z70: 4790.72
A71: =Collected_Rate!A71 -> (880) Pharmacy/Drugstore w/o Drive-Thru Window | B71: Pharmacy/Drugstore w/o Drive-Thru Window | E71: 880 | F71: Facilities that primarily sell prescription and non-prescription drugs without a drive-through window | G71: 1,000 SF GFA | H71: 11.64 | I71: 12.72 | J71: =ROUND($J$4*I71,2) -> 18723.84 | K71: 56972.88 | L71: 46326.24 | M71: 28212.96 | N71: 25986.96 | O71: =ROUND(O$4*$H71,2) -> 18670.56 | P71: 39063.12 | Q71: 19626.96 | R71: 19927.68 | S71: 43556.88 | T71: =ROUND(T$4*$I71,2) -> 73165.44 | U71: =ROUND(U$4*$H71,2) -> 29332.8 | V71: 30718.8 | W71: 19169.04 | X71: 49875.12 | Y71: 38299.92 | Z71: =ROUND(Z$4*$H71,2) -> 15842.04
A72: =Collected_Rate!A72 -> (881) Pharmacy/Drugstore w/ Drive-Thru Window | B72: Pharmacy/Drugstore w/ Drive-Thru Window | E72: 881 | F72: Facilities that primarily sell prescription and non-prescription drugs with a drive-through window | G72: 1,000 SF GFA | H72: 15.28 | I72: 16.7 | J72: 24582.4 | K72: 74799.3 | L72: 60821.4 | M72: =ROUND(M$4*$I72,2) -> 37040.6 | N72: 34118.1 | O72: 24509.12 | P72: =ROUND(P$4*$I72,2) -> 51285.7 | Q72: 25768.1 | R72: 26159.36 | S72: 57177.76 | T72: 96058.4 | U72: 38505.6 | V72: =ROUND(V$4*$I72,2) -> 40330.5 | W72: 25166.9 | X72: 65480.7 | Y72: 50283.7 | Z72: 20796.08
A73: =Collected_Rate!A73 -> (820) Shopping Center | B73: Shopping Center | E73: 820 | F73: Integrated group of commercial establishments; planning, owned, and managed as a unit | G73: 1,000 SF GLA | H73: 7.3 | I73: 7.98 | J73: 11746.56 | K73: 35742.42 | L73: 29063.16 | M73: 17699.64 | N73: 16303.14 | O73: 11709.2 | P73: 24506.58 | Q73: 12313.14 | R73: 12497.6 | S73: 27316.6 | T73: 45900.96 | U73: 18396 | V73: 19271.7 | W73: 12025.86 | X73: 31289.58 | Y73: 24027.78 | Z73: 9935.3
A74: =Collected_Rate!A74 -> (850) Supermarket | B74: Supermarket | E74: 850 | F74: Primary business is sale of groceries, food, and household cleaning items; may include photo, pharmacy, video rental, and/or ATM | G74: 1,000 SF GFA | H74: 17.2 | I74: 18.79 | J74: 27658.88 | K74: 84160.41 | L74: 68433.18 | M74: 41676.22 | N74: 38387.97 | O74: 27588.8 | P74: 57704.09 | Q74: 28992.97 | R74: 29446.4 | S74: 64362.4 | T74: 108080.08 | U74: 43344 | V74: 45377.85 | W74: 28316.53 | X74: 73675.59 | Y74: 56576.69 | Z74: 23409.2
A75: =Collected_Rate!A75 -> (864) Toy/Children's Superstore | B75: Toy/Children's Superstore | E75: 864 | F75: Businesses specializing in child-oriented merchandise | G75: 1,000 SF GFA | H75: 10.19 | I75: 11.13 | J75: 16383.36 | K75: 49851.27 | L75: 40535.46 | M75: 24686.34 | N75: 22738.59 | O75: 16344.76 | P75: 34180.23 | Q75: 17173.59 | R75: 17445.28 | S75: 38130.98 | T75: 64019.76 | U75: 25678.8 | V75: 26878.95 | W75: 16772.91 | X75: 43640.73 | Y75: 33512.43 | Z75: 13868.59
A76: =Collected_Rate!A76 -> (875) Department Store | B76: Department Store | E76: 875 | F76: Free-standing stores that specialize in the sale of apparel, footwear, bedding, home products, jewelry, etc. | G76: 1,000 SF GFA | H76: 3.99 | I76: 4.36 | J76: 6417.92 | K76: 19528.44 | L76: 15879.12 | M76: 9670.48 | N76: 8907.48 | O76: 6399.96 | P76: 13389.56 | Q76: 6727.48 | R76: 6830.88 | S76: 14930.58 | T76: 25078.72 | U76: 10054.8 | V76: 10529.4 | W76: 6570.52 | X76: 17095.56 | Y76: 13127.96 | Z76: 5430.39
A77: =Collected_Rate!A77 -> SERVICES | B77: SERVICES | J77: 0 | K77: 0 | L77: 0 | M77: 0 | N77: 0 | O77: 0 | P77: 0 | Q77: 0 | R77: 0 | S77: 0 | T77: 0 | U77: 0 | V77: 0 | W77: 0 | X77: 0 | Y77: 0 | Z77: 0
A78: =Collected_Rate!A78 -> (911) Walk-In Bank | B78: Walk-In Bank | E78: 911 | F78: Banks with their own parking lots, no drive-in lanes but contain non-drive-through ATMs | G78: 1,000 SF GFA | H78: 12.3 | I78: 12.38 | J78: 18223.36 | K78: 55450.02 | L78: 45087.96 | M78: 27458.84 | N78: 25292.34 | O78: 19729.2 | P78: 38018.98 | Q78: 19102.34 | R78: 21057.6 | S78: 46026.6 | T78: 71209.76 | U78: 30996 | V78: 29897.7 | W78: 18656.66 | X78: 48541.98 | Y78: 37276.18 | Z78: 16740.3
A79: =Collected_Rate!A79 -> (912) Drive-In Bank | B79: Drive-In Bank | E79: 912 | F79: Banking facilities to conduct financial transactions from the vehicle; also usually apart of walk-in bank | G79: Drive-in Lanes | H79: 29.83 | I79: 30.01 | J79: 44174.72 | K79: 134414.79 | L79: 109296.42 | M79: 66562.18 | N79: 61310.43 | O79: 47847.32 | P79: 92160.71 | Q79: 46305.43 | R79: 51068.96 | S79: 111623.86 | T79: 172617.52 | U79: 75171.6 | V79: 72474.15 | W79: 45225.07 | X79: 117669.21 | Y79: 90360.11 | Z79: 40598.63
A80: =Collected_Rate!A80 -> (918) Hair Salon | B80: Hair Salon | E80: 918 | F80: Facilities that specialize in cosmetic and beauty services including hair cutting and styling | G80: 1,000 SF GLA | H80: 1.72 | I80: 1.73 | J80: 2546.56 | K80: 7748.67 | L80: 6300.66 | M80: 3837.14 | N80: 3534.39 | O80: 2758.88 | P80: 5312.83 | Q80: 2669.39 | R80: 2944.64 | S80: 6436.24 | T80: 9950.96 | U80: 4334.4 | V80: 4177.95 | W80: 2607.11 | X80: 6783.33 | Y80: 5209.03 | Z80: 2340.92
B82: 1 | C82: 2 | D82: 3 | E82: 4 | F82: 5 | G82: 6 | H82: 7 | I82: 8 | J82: 9 | K82: 10 | L82: 11 | M82: 12 | N82: 13 | O82: 14 | P82: 15 | Q82: 16 | R82: 17 | S82: 18 | T82: 19 | U82: 20 | V82: 21 | W82: 22 | X82: 23 | Y82: 24 | Z82: 25 | AA82: 39

Sheet Collected_Rate
B2: Land Use Category | E2: ITE Land Use Code | F2: Land Use Description | G2: Development Unit | H2: Trip Gen Rate (PM) | I2: Pass-by Rate | J2: Pass-by Source | K2: Trip Rate | L2: Trip Length Inside Loop (mi) | M2: Trip Length Outside Loop (mi) | N2: Modeled Trip Length Source | O2: NCTCOG Trip Length (mi) | P2: Adj. For O-D | Q2: Adj. Trip Length Inside Loop (mi) | R2: Adj. Trip Length Oustide Loop (mi) | S2: Max Trip Length Inside Loop (mi) | T2: Max Trip Length Oustide Loop (mi) | U2: Veh-Mi Per Dev-Unit Inside Loop | W2: Collection Fee Per Dev-Unit SA A | X2: Collection Fee Per Dev-Unit SA B | Y2: Collection Fee Per Dev-Unit SA C | Z2: Collection Fee Per Dev-Unit SA D | AA2: Collection Fee Per Dev-Unit SA E | AB2: Collection Fee Per Dev-Unit SA F | AC2: Collection Fee Per Dev-Unit SA G | AD2: Collection Fee Per Dev-Unit SA H | AE2: Collection Fee Per Dev-Unit SA I | AF2: Collection Fee Per Dev-Unit SA J | AG2: Collection Fee Per Dev-Unit SA K INSIDE SL 360 | AH2: Collection Fee Per Dev-Unit SA K OUTSIDE SL 360 | AI2: Collection Fee Per Dev-Unit SA L | AJ2: Collection Fee Per Dev-Unit SA M | AK2: Collection Fee Per Dev-Unit SA N | AL2: Collection Fee Per Dev-Unit SA O | AM2: Collection Fee Per Dev-Unit SA P | AN2: Collection Fee Per Dev-Unit SA DT
AO3: 850
A4: =IF(ISBLANK(E4),B4,CONCATENATE("(",E4,") ",B4)) -> PORT AND TERMINAL | B4: PORT AND TERMINAL | AO4: 1215
A5: (030) Truck Terminal | B5: Truck Terminal | E5: 030 | F5: Point of good transfer between trucks or between trucks and rail | G5: 1,000 SF GFA | H5: 1.87 | K5: 1.87 | L5: 10.7 | M5: 10.7 | N5: RPA | O5: 10.02 | P5: 0.5 | Q5: 5.35 | R5: 5.35 | S5: 5.35 | T5: 5.35 | U5: 10 | W5: 12150 | X5: 12150 | Y5: 12150 | Z5: 12150 | AA5: 12150 | AB5: 12150 | AC5: 12150 | AD5: 12150 | AE5: 12150 | AF5: 12150 | AG5: 12150 | AH5: 12150 | AI5: 12150 | AJ5: 12150 | AK5: 12150 | AL5: 12150 | AM5: 12150 | AN5: 12150
A6: INDUSTRIAL | B6: INDUSTRIAL
A7: (110) General Light Industrial | B7: General Light Industrial | E7: 110 | F7: Emphasis on activities other than manufacturing; typically employing fewer than 500 workers | G7: 1,000 SF GFA | H7: 0.63 | K7: 0.63 | L7: 6.15 | M7: 12.89 | N7: ATG | O7: 10.02 | P7: 0.5 | Q7: 3.07 | R7: 6.45 | S7: 3.07 | T7: 6 | U7: 1.93 | W7: 4592.7 | X7: 4592.7 | Y7: 4592.7 | Z7: 4592.7 | AA7: 4592.7 | AB7: 2344.95 | AC7: 4592.7 | AD7: 4592.7 | AE7: 2344.95 | AF7: 2344.95 | AG7: 2344.95 | AH7: 4592.7 | AI7: 2344.95 | AJ7: 4592.7 | AK7: 4592.7 | AL7: 4592.7 | AM7: 4592.7 | AN7: 2344.95
A8: (130) Industrial Park | B8: Industrial Park | E8: 130 | G8: 1,000 SF GFA | H8: 0.4 | K8: 0.4 | L8: 6.15 | M8: 12.89 | N8: ATG | O8: 10.02 | P8: 0.5 | Q8: 3.07 | R8: 6.45 | S8: 3.07 | T8: 6 | U8: 1.23 | W8: 2916 | X8: 2916 | Y8: 2916 | Z8: 2916 | AA8: 2916 | AB8: 1494.45 | AC8: 2916 | AD8: 2916 | AE8: 1494.45 | AF8: 1494.45 | AG8: 1494.45 | AH8: 2916 | AI8: 1494.45 | AJ8: 2916 | AK8: 2916 | AL8: 2916 | AM8: 2916 | AN8: 1494.45
A9: (140) Manufacturing | B9: Manufacturing | E9: 140 | F9: Primary activity is conversion of raw materials or parts into finished products | G9: 1,000 SF GFA | H9: 0.67 | K9: 0.67 | L9: 6.15 | M9: 12.89 | N9: ATG | O9: 10.02 | P9: 0.5 | Q9: 3.07 | R9: 6.45 | S9: 3.07 | T9: 6 | U9: 2.06 | W9: 4884.3 | X9: 4884.3 | Y9: 4884.3 | Z9: 4884.3 | AA9: 4884.3 | AB9: 2502.9 | AC9: 4884.3 | AD9: 4884.3 | AE9: 2502.9 | AF9: 2502.9 | AG9: 2502.9 | AH9: 4884.3 | AI9: 2502.9 | AJ9: 4884.3 | AK9: 4884.3 | AL9: 4884.3 | AM9: 4884.3 | AN9: 2502.9
A10: (150) Warehousing | B10: Warehousing | E10: 150 | F10: Devoted to storage of materials but may included office and maintenance areas | G10: 1,000 SF GFA | H10: 0.19 | K10: 0.19 | L10: 6.15 | M10: 12.89 | N10: ATG | O10: 10.83 | P10: 0.5 | Q10: 3.07 | R10: 6.45 | S10: 3.07 | T10: 6 | U10: 0.58 | W10: 1385.1 | X10: 1385.1 | Y10: 1385.1 | Z10: 1385.1 | AA10: 1385.1 | AB10: 704.7 | AC10: 1385.1 | AD10: 1385.1 | AE10: 704.7 | AF10: 704.7 | AG10: 704.7 | AH10: 1385.1 | AI10: 704.7 | AJ10: 1385.1 | AK10: 1385.1 | AL10: 1385.1 | AM10: 1385.1 | AN10: 704.7
A11: (151) Mini-Warehouse | B11: Mini-Warehouse | E11: 151 | F11: Facilities with a number of units rented to others for the storage of goods | G11: 1,000 SF GFA | H11: 0.17 | K11: 0.17 | L11: 6.15 | M11: 12.89 | N11: ATG | O11: 10.83 | P11: 0.5 | Q11: 3.07 | R11: 6.45 | S11: 3.07 | T11: 6 | U11: 0.52 | W11: 1239.3 | X11: 1239.3 | Y11: 1239.3 | Z11: 1239.3 | AA11: 1239.3 | AB11: 631.8 | AC11: 1239.3 | AD11: 1239.3 | AE11: 631.8 | AF11: 631.8 | AG11: 631.8 | AH11: 1239.3 | AI11: 631.8 | AJ11: 1239.3 | AK11: 1239.3 | AL11: 1239.3 | AM11: 1239.3 | AN11: 631.8
A12: RESIDENTIAL | B12: RESIDENTIAL
A13: (210) Single-Family Detached Housing | B13: Single-Family Detached Housing | E13: 210 | F13: Single-family detached homes on individual lots | G13: Dwelling Unit | H13: 0.99 | K13: 0.99 | L13: 5.81 | M13: 8.59 | N13: ATG | O13: 17.21 | P13: 0.5 | Q13: 2.9 | R13: 4.3 | S13: 2.9 | T13: 4.3 | U13: 2.87 | W13: 3621 | X13: 3621 | Y13: 3621 | Z13: 3621 | AA13: 3621 | AB13: 2439.5 | AC13: 3621 | AD13: 3621 | AE13: 2439.5 | AF13: 2439.5 | AG13: 2439.5 | AH13: 3621 | AI13: 2439.5 | AJ13: 3621 | AK13: 3621 | AL13: 3621 | AM13: 3621 | AN13: 2439.5
A14: (220) Townhomes / Duplexes / Triplexes / 4-Plexes / ADUs | B14: Townhomes / Duplexes / Triplexes / 4-Plexes / ADUs | E14: 220 | F14: At least 4 rental dwelling units per building | G14: Dwelling Unit | H14: 0.56 | K14: 0.56 | L14: 5.81 | M14: 8.59 | N14: ATG | O14: 17.21 | P14: 0.5 | Q14: 2.9 | R14: 4.3 | S14: 2.9 | T14: 4.3 | U14: 1.62 | W14: 2048.5 | X14: 2048.5 | Y14: 2048.5 | Z14: 2048.5 | AA14: 2048.5 | AB14: 1377 | AC14: 2048.5 | AD14: 2048.5 | AE14: 1377 | AF14: 1377 | AG14: 1377 | AH14: 2048.5 | AI14: 1377 | AJ14: 2048.5 | AK14: 2048.5 | AL14: 2048.5 | AM14: 2048.5 | AN14: 1377
A15: (221) Mid-Rise Apartments or Condominiums | B15: Mid-Rise Apartments or Condominiums | E15: 221 | F15: At least 3 rental dwelling units and between three and ten levels (floors) per building | G15: Dwelling Unit | H15: 0.44 | K15: 0.44 | L15: 5.81 | M15: 8.59 | P15: 0.5 | Q15: 2.9 | R15: 4.3 | S15: 2.9 | T15: 4.3 | U15: 1.28 | W15: 1606.5 | X15: 1606.5 | Y15: 1606.5 | Z15: 1606.5 | AA15: 1606.5 | AB15: 1088 | AC15: 1606.5 | AD15: 1606.5 | AE15: 1088 | AF15: 1088 | AG15: 1088 | AH15: 1606.5 | AI15: 1088 | AJ15: 1606.5 | AK15: 1606.5 | AL15: 1606.5 | AM15: 1606.5 | AN15: 1088
A16: (222) High-Rise Apartments or Condominiums | B16: High-Rise Apartments or Condominiums | E16: 222 | F16: At least 3 rental dwelling units and more than ten levels (floors) per building | G16: Dwelling Unit | H16: 0.36 | K16: 0.36 | L16: 5.81 | M16: 8.59 | N16: ATG | O16: 17.21 | P16: 0.5 | Q16: 2.9 | R16: 4.3 | S16: 2.9 | T16: 4.3 | U16: 1.04 | W16: 1317.5 | X16: 1317.5 | Y16: 1317.5 | Z16: 1317.5 | AA16: 1317.5 | AB16: 884 | AC16: 1317.5 | AD16: 1317.5 | AE16: 884 | AF16: 884 | AG16: 884 | AH16: 1317.5 | AI16: 884 | AJ16: 1317.5 | AK16: 1317.5 | AL16: 1317.5 | AM16: 1317.5 | AN16: 884
A17: (240) Mobile Home Park | B17: Mobile Home Park | E17: 240 | G17: Dwelling Unit | H17: 0.46 | K17: 0.46 | L17: 5.81 | M17: 8.59 | N17: ATG | O17: 17.21 | P17: 0.5 | Q17: 2.9 | R17: 4.3 | S17: 2.9 | T17: 4.3 | U17: 1.33 | W17: 1683 | X17: 1683 | Y17: 1683 | Z17: 1683 | AA17: 1683 | AB17: 1130.5 | AC17: 1683 | AD17: 1683 | AE17: 1130.5 | AF17: 1130.5 | AG17: 1130.5 | AH17: 1683 | AI17: 1130.5 | AJ17: 1683 | AK17: 1683 | AL17: 1683 | AM17: 1683 | AN17: 1130.5
A18: (251) Senior Adult Housing-Detached | B18: Senior Adult Housing-Detached | E18: 251 | F18: Consists of detached independent living developments that include amenities such as golf courses and swimming pools | G18: Dwelling Unit | H18: 0.3 | K18: 0.3 | L18: 5.81 | M18: 8.59 | N18: ATG | O18: 17.21 | P18: 0.5 | Q18: 2.9 | R18: 4.3 | S18: 2.9 | T18: 4.3 | U18: 0.87 | W18: 1096.5 | X18: 1096.5 | Y18: 1096.5 | Z18: 1096.5 | AA18: 1096.5 | AB18: 739.5 | AC18: 1096.5 | AD18: 1096.5 | AE18: 739.5 | AF18: 739.5 | AG18: 739.5 | AH18: 1096.5 | AI18: 739.5 | AJ18: 1096.5 | AK18: 1096.5 | AL18: 1096.5 | AM18: 1096.5 | AN18: 739.5
A19: (252) Senior Adult Housing-Attached | B19: Senior Adult Housing-Attached | E19: 252 | F19: Consists of attached independent living developments that include limited social or recreation services | G19: Dwelling Unit | H19: 0.26 | K19: 0.26 | L19: 5.81 | M19: 8.59 | N19: ATG | O19: 17.21 | P19: 0.5 | Q19: 2.9 | R19: 4.3 | S19: 2.9 | T19: 4.3 | U19: 0.75 | W19: 952 | X19: 952 | Y19: 952 | Z19: 952 | AA19: 952 | AB19: 637.5 | AC19: 952 | AD19: 952 | AE19: 637.5 | AF19: 637.5 | AG19: 637.5 | AH19: 952 | AI19: 637.5 | AJ19: 952 | AK19: 952 | AL19: 952 | AM19: 952 | AN19: 637.5
A20: (254) Assisted Living | B20: Assisted Living | E20: 254 | F20: Residential settings that provide either routine general protective oversight or assistance with activities. | G20: Beds | H20: 0.26 | K20: 0.26 | L20: 5.81 | M20: 8.59 | N20: ATG | O20: 17.21 | P20: 0.5 | Q20: 2.9 | R20: 4.3 | S20: 2.9 | T20: 4.3 | U20: 0.75 | W20: 952 | X20: 952 | Y20: 952 | Z20: 952 | AA20: 952 | AB20: 637.5 | AC20: 952 | AD20: 952 | AE20: 637.5 | AF20: 637.5 | AG20: 637.5 | AH20: 952 | AI20: 637.5 | AJ20: 952 | AK20: 952 | AL20: 952 | AM20: 952 | AN20: 637.5
A21: LODGING | B21: LODGING
A22: (310) Hotel | B22: Hotel | E22: 310 | F22: Lodging facilities that typically have on-site restaurants, lounges, meeting and/or banquet rooms, or other retail shops and services | G22: Room | H22: 0.6 | K22: 0.6 | L22: 5.41 | M22: 5.41 | N22: RPA | O22: 6.43 | P22: 0.5 | Q22: 2.7 | R22: 2.71 | S22: 2.7 | T22: 2.71 | U22: 1.62 | W22: 1980.45 | X22: 1980.45 | Y22: 1980.45 | Z22: 1980.45 | AA22: 1980.45 | AB22: 1968.3 | AC22: 1980.45 | AD22: 1980.45 | AE22: 1968.3 | AF22: 1968.3 | AG22: 1968.3 | AH22: 1980.45 | AI22: 1968.3 | AJ22: 1980.45 | AK22: 1980.45 | AL22: 1980.45 | AM22: 1980.45 | AN22: 1968.3
A23: (320) Motel / Other Lodging Facilities | B23: Motel / Other Lodging Facilities | E23: 320 | F23: Lodging facilities that may have small on-site restaurant or buffet area but little or no meeting space | G23: Room | H23: 0.38 | K23: 0.38 | L23: 5.41 | M23: 5.41 | N23: RPA | O23: 6.43 | P23: 0.5 | Q23: 2.7 | R23: 2.71 | S23: 2.7 | T23: 2.71 | U23: 1.03 | W23: 1251.45 | X23: 1251.45 | Y23: 1251.45 | Z23: 1251.45 | AA23: 1251.45 | AB23: 1251.45 | AC23: 1251.45 | AD23: 1251.45 | AE23: 1251.45 | AF23: 1251.45 | AG23: 1251.45 | AH23: 1251.45 | AI23: 1251.45 | AJ23: 1251.45 | AK23: 1251.45 | AL23: 1251.45 | AM23: 1251.45 | AN23: 1251.45
A24: RECREATIONAL | B24: RECREATIONAL
A25: (432) Golf Driving Range | B25: Golf Driving Range | E25: 432 | F25: Facilities with driving tees for practice; may provide individual or group lessons; may have prop shop and/or refreshment facilities | G25: Tee | H25: 1.25 | K25: 1.25 | L25: 5.82 | M25: 6.35 | N25: ATG | O25: 6.43 | P25: 0.5 | Q25: 2.91 | R25: 3.18 | S25: 2.91 | T25: 3.18 | U25: 3.64 | W25: 4835.7 | X25: 4835.7 | Y25: 4835.7 | Z25: 4835.7 | AA25: 4835.7 | AB25: 4422.6 | AC25: 4835.7 | AD25: 4835.7 | AE25: 4422.6 | AF25: 4422.6 | AG25: 4422.6 | AH25: 4835.7 | AI25: 4422.6 | AJ25: 4835.7 | AK25: 4835.7 | AL25: 4835.7 | AM25: 4835.7 | AN25: 4422.6
A26: (430) Golf Course | B26: Golf Course | E26: 430 | F26: May include municipal courses and private country clubs; may have driving ranges, pro shops, and restaurant/banquet facilities | G26: Acre | H26: 0.28 | K26: 0.28 | L26: 5.82 | M26: 6.35 | N26: ATG | O26: 6.43 | P26: 0.5 | Q26: 2.91 | R26: 3.18 | S26: 2.91 | T26: 3.18 | U26: 0.81 | W26: 1081.35 | X26: 1081.35 | Y26: 1081.35 | Z26: 1081.35 | AA26: 1081.35 | AB26: 984.15 | AC26: 1081.35 | AD26: 1081.35 | AE26: 984.15 | AF26: 984.15 | AG26: 984.15 | AH26: 1081.35 | AI26: 984.15 | AJ26: 1081.35 | AK26: 1081.35 | AL26: 1081.35 | AM26: 1081.35 | AN26: 984.15
A27: (495) Recreational Community Center | B27: Recreational Community Center | E27: 495 | F27: Category includes racquet clubs, health/fitness clubs, can include facilities such as YMCA's | G27: 1,000 SF GFA | H27: 2.31 | K27: 2.31 | L27: 5.82 | M27: 6.35 | N27: ATG | O27: 6.43 | P27: 0.5 | Q27: 2.91 | R27: 3.18 | S27: 2.91 | T27: 3.18 | U27: 6.72 | W27: 8930.25 | X27: 8930.25 | Y27: 8930.25 | Z27: 8930.25 | AA27: 8930.25 | AB27: 8164.8 | AC27: 8930.25 | AD27: 8930.25 | AE27: 8164.8 | AF27: 8164.8 | AG27: 8164.8 | AH27: 8930.25 | AI27: 8164.8 | AJ27: 8930.25 | AK27: 8930.25 | AL27: 8930.25 | AM27: 8930.25 | AN27: 8164.8
A28: (465) Ice Skating Rink | B28: Ice Skating Rink | E28: 465 | F28: Rinks for ice skating and related sports; may contain spectator areas and refreshment facilities | G28: 1,000 SF GFA | H28: 1.33 | K28: 1.33 | L28: 5.82 | M28: 6.35 | N28: ATG | O28: 6.43 | P28: 0.5 | Q28: 2.91 | R28: 3.18 | S28: 2.91 | T28: 3.18 | U28: 3.87 | W28: 5139.45 | X28: 5139.45 | Y28: 5139.45 | Z28: 5139.45 | AA28: 5139.45 | AB28: 4702.05 | AC28: 5139.45 | AD28: 5139.45 | AE28: 4702.05 | AF28: 4702.05 | AG28: 4702.05 | AH28: 5139.45 | AI28: 4702.05 | AJ28: 5139.45 | AK28: 5139.45 | AL28: 5139.45 | AM28: 5139.45 | AN28: 4702.05
A29: (431) Miniature Golf Course | B29: Miniature Golf Course | E29: 431 | F29: One or more individual putting courses; category should not be used when part of a larger entertainment center(with batting cages, video game centers, etc) | G29: Hole | H29: 0.33 | K29: 0.33 | L29: 5.82 | M29: 6.35 | N29: ATG | O29: 6.43 | P29: 0.5 | Q29: 2.91 | R29: 3.18 | S29: 2.91 | T29: 3.18 | U29: 0.96 | W29: 1275.75 | X29: 1275.75 | Y29: 1275.75 | Z29: 1275.75 | AA29: 1275.75 | AB29: 1166.4 | AC29: 1275.75 | AD29: 1275.75 | AE29: 1166.4 | AF29: 1166.4 | AG29: 1166.4 | AH29: 1275.75 | AI29: 1166.4 | AJ29: 1275.75 | AK29: 1275.75 | AL29: 1275.75 | AM29: 1275.75 | AN29: 1166.4
A30: (445) Multiplex Movie Theater | B30: Multiplex Movie Theater | E30: 445 | F30: Movie theater with audience seating, minimum of ten screens, lobby, and refreshment area. | G30: Screens | H30: 13.73 | K30: 13.73 | L30: 5.82 | M30: 6.35 | N30: ATG | O30: 6.43 | P30: 0.5 | Q30: 2.91 | R30: 3.18 | S30: 2.91 | T30: 3.18 | U30: 39.95 | W30: 53046.9 | X30: 53046.9 | Y30: 53046.9 | Z30: 53046.9 | AA30: 53046.9 | AB30: 48539.25 | AC30: 53046.9 | AD30: 53046.9 | AE30: 48539.25 | AF30: 48539.25 | AG30: 48539.25 | AH30: 53046.9 | AI30: 48539.25 | AJ30: 53046.9 | AK30: 53046.9 | AL30: 53046.9 | AM30: 53046.9 | AN30: 48539.25
A31: (491) Racquet / Tennis Club | B31: Racquet / Tennis Club | E31: 491 | F31: Indoor or outdoor facilities specifically designed for playing tennis | G31: Court | H31: 3.82 | K31: 3.82 | L31: 5.82 | M31: 6.35 | N31: ATG | O31: 6.43 | P31: 0.5 | Q31: 2.91 | R31: 3.18 | S31: 2.91 | T31: 3.18 | U31: 11.12 | W31: 14762.25 | X31: 14762.25 | Y31: 14762.25 | Z31: 14762.25 | AA31: 14762.25 | AB31: 13510.8 | AC31: 14762.25 | AD31: 14762.25 | AE31: 13510.8 | AF31: 13510.8 | AG31: 13510.8 | AH31: 14762.25 | AI31: 13510.8 | AJ31: 14762.25 | AK31: 14762.25 | AL31: 14762.25 | AM31: 14762.25 | AN31: 13510.8
A32: INSTITUTIONAL | B32: INSTITUTIONAL
A33: (560) Religious Place of Worship | B33: Religious Place of Worship | E33: 560 | F33: Churches and houses of worship | G33: 1,000 SF GFA | H33: 0.49 | K33: 0.49 | L33: 6.3 | M33: 6.3 | N33: RPA | O33: 4.2 | P33: 0.5 | Q33: 3.15 | R33: 3.15 | S33: 3.15 | T33: 3.15 | U33: 1.54 | W33: 1871.1 | X33: 1871.1 | Y33: 1871.1 | Z33: 1871.1 | AA33: 1871.1 | AB33: 1871.1 | AC33: 1871.1 | AD33: 1871.1 | AE33: 1871.1 | AF33: 1871.1 | AG33: 1871.1 | AH33: 1871.1 | AI33: 1871.1 | AJ33: 1871.1 | AK33: 1871.1 | AL33: 1871.1 | AM33: 1871.1 | AN33: 1871.1
A34: (565) Day Care Center | B34: Day Care Center | E34: 565 | F34: Generally includes facilities for care of pre-school aged children, generally includes classrooms, offices, eating areas, and playgrounds | G34: 1,000 SF GFA | H34: 11.12 | I34: 0.44 | J34: B | K34: 6.23 | L34: 3.39 | M34: 3.39 | N34: RPA | O34: 4.2 | P34: 0.5 | Q34: 1.69 | R34: 1.7 | S34: 1.69 | T34: 1.7 | U34: 10.53 | W34: 0 | X34: 0 | Y34: 0 | Z34: 0 | AA34: 0 | AB34: 0 | AC34: 0 | AD34: 0 | AE34: 0 | AF34: 0 | AG34: 0 | AH34: 0 | AI34: 0 | AJ34: 0 | AK34: 0 | AL34: 0 | AM34: 0 | AN34: 0
A35: (520) Elementary School | B35: Elementary School | E35: 520 | G35: Students | H35: 0.17 | K35: 0.17 | L35: 3.39 | M35: 3.39 | N35: RPA | O35: 5.2 | P35: 0.5 | Q35: 1.69 | R35: 1.7 | S35: 1.69 | T35: 1.7 | U35: 0.29 | W35: 352.35 | X35: 352.35 | Y35: 352.35 | Z35: 352.35 | AA35: 352.35 | AB35: 352.35 | AC35: 352.35 | AD35: 352.35 | AE35: 352.35 | AF35: 352.35 | AG35: 352.35 | AH35: 352.35 | AI35: 352.35 | AJ35: 352.35 | AK35: 352.35 | AL35: 352.35 | AM35: 352.35 | AN35: 352.35
A36: =IF(ISBLANK(E36),B36,CONCATENATE("(",E36,") ",B36)) -> (522) Middle School / Junior High School | B36: Middle School / Junior High School | E36: 522 | F36: Serves students who have not yet entered high school | G36: Students | H36: 0.17 | K36: 0.17 | L36: 3.39 | M36: 3.39 | N36: RPAre | O36: 4.2 | P36: 0.5 | Q36: 1.69 | R36: 1.7 | S36: 1.69 | T36: 1.7 | U36: 0.29 | W36: 352.35 | X36: 352.35 | Y36: 352.35 | Z36: 352.35 | AA36: 352.35 | AB36: 352.35 | AC36: 352.35 | AD36: 352.35 | AE36: 352.35 | AF36: 352.35 | AG36: 352.35 | AH36: 352.35 | AI36: 352.35 | AJ36: 352.35 | AK36: 352.35 | AL36: 352.35 | AM36: 352.35 | AN36: 352.35
A37: (530) High School | B37: High School | E37: 530 | F37: Serves students who have completed middle or junior high school | G37: Students | H37: 0.14 | K37: 0.14 | L37: 3.39 | M37: 3.39 | N37: RPAre | O37: 4.2 | P37: 0.5 | Q37: 1.69 | R37: 1.7 | S37: 1.69 | T37: 1.7 | U37: 0.24 | W37: 291.6 | X37: 291.6 | Y37: 291.6 | Z37: 291.6 | AA37: 291.6 | AB37: 291.6 | AC37: 291.6 | AD37: 291.6 | AE37: 291.6 | AF37: 291.6 | AG37: 291.6 | AH37: 291.6 | AI37: 291.6 | AJ37: 291.6 | AK37: 291.6 | AL37: 291.6 | AM37: 291.6 | AN37: 291.6
A38: (540) Junior / Community College | B38: Junior / Community College | E38: 540 | F38: Two-year junior, community, or technical colleges | G38: Students | H38: 0.11 | K38: 0.11 | L38: 3.39 | M38: 3.39 | N38: RPAre | O38: 4.2 | P38: 0.5 | Q38: 1.69 | R38: 1.7 | S38: 1.69 | T38: 1.7 | U38: 0.19 | W38: 230.85 | X38: 230.85 | Y38: 230.85 | Z38: 230.85 | AA38: 230.85 | AB38: 230.85 | AC38: 230.85 | AD38: 230.85 | AE38: 230.85 | AF38: 230.85 | AG38: 230.85 | AH38: 230.85 | AI38: 230.85 | AJ38: 230.85 | AK38: 230.85 | AL38: 230.85 | AM38: 230.85 | AN38: 230.85
A39: (550) University / College | B39: University / College | E39: 550 | F39: Four-year universities or colleges that may or may not offer graduate programs | G39: Students | H39: 0.15 | K39: 0.15 | L39: 3.39 | M39: 3.39 | N39: RPAre | O39: 4.2 | P39: 0.5 | Q39: 1.69 | R39: 1.7 | S39: 1.69 | T39: 1.7 | U39: 0.25 | W39: 315.9 | X39: 315.9 | Y39: 315.9 | Z39: 315.9 | AA39: 315.9 | AB39: 303.75 | AC39: 315.9 | AD39: 315.9 | AE39: 303.75 | AF39: 303.75 | AG39: 303.75 | AH39: 315.9 | AI39: 303.75 | AJ39: 315.9 | AK39: 315.9 | AL39: 315.9 | AM39: 315.9 | AN39: 303.75
A40: MEDICAL | B40: MEDICAL
A41: (630) Clinic | B41: Clinic | E41: 630 | F41: Facilities with limited diagnostic and outpatient care | G41: 1,000 SF GFA | H41: 3.28 | K41: 3.28 | L41: 7.42 | M41: 6.76 | N41: ATG | O41: 7.55 | P41: 0.5 | Q41: 3.71 | R41: 3.38 | S41: 3.71 | T41: 3.38 | U41: 12.17 | W41: 13474.35 | X41: 13474.35 | Y41: 13474.35 | Z41: 13474.35 | AA41: 13474.35 | AB41: 14786.55 | AC41: 13474.35 | AD41: 13474.35 | AE41: 14786.55 | AF41: 14786.55 | AG41: 14786.55 | AH41: 13474.35 | AI41: 14786.55 | AJ41: 13474.35 | AK41: 13474.35 | AL41: 13474.35 | AM41: 13474.35 | AN41: 14786.55
A42: (610) Hospital | B42: Hospital | E42: 610 | F42: Medical and surgical facilities with overnight accommodations | G42: 1,000 SF GFA | H42: 0.97 | K42: 0.97 | L42: 7.42 | M42: 6.76 | N42: ATG | O42: 7.55 | P42: 0.5 | Q42: 3.71 | R42: 3.38 | S42: 3.71 | T42: 3.38 | U42: 3.6 | W42: 3985.2 | X42: 3985.2 | Y42: 3985.2 | Z42: 3985.2 | AA42: 3985.2 | AB42: 4374 | AC42: 3985.2 | AD42: 3985.2 | AE42: 4374 | AF42: 4374 | AG42: 4374 | AH42: 3985.2 | AI42: 4374 | AJ42: 3985.2 | AK42: 3985.2 | AL42: 3985.2 | AM42: 3985.2 | AN42: 4374
A43: (620) Nursing Home | B43: Nursing Home | E43: 620 | F43: Rest and convalescent homes with residents who do little or no driving | G43: Beds | H43: 0.22 | K43: 0.22 | L43: 7.42 | M43: 6.76 | N43: ATG | O43: 7.55 | P43: 0.5 | Q43: 3.71 | R43: 3.38 | S43: 3.71 | T43: 3.38 | U43: 0.82 | W43: 899.1 | X43: 899.1 | Y43: 899.1 | Z43: 899.1 | AA43: 899.1 | AB43: 996.3 | AC43: 899.1 | AD43: 899.1 | AE43: 996.3 | AF43: 996.3 | AG43: 996.3 | AH43: 899.1 | AI43: 996.3 | AJ43: 899.1 | AK43: 899.1 | AL43: 899.1 | AM43: 899.1 | AN43: 996.3
A44: (640) Animal Hospital/Veterinary Clinic | B44: Animal Hospital/Veterinary Clinic | E44: 640 | F44: Rest and convalescent homes with residents who do little or no driving | G44: 1,000 SF GFA | H44: 3.53 | I44: 0.3 | J44: B | K44: 2.47 | L44: 7.42 | M44: 6.76 | N44: ATG | O44: 7.55 | P44: 0.5 | Q44: 3.71 | R44: 3.38 | S44: 3.71 | T44: 3.38 | U44: 9.16 | W44: 10145.25 | X44: 10145.25 | Y44: 10145.25 | Z44: 10145.25 | AA44: 10145.25 | AB44: 11129.4 | AC44: 10145.25 | AD44: 10145.25 | AE44: 11129.4 | AF44: 11129.4 | AG44: 11129.4 | AH44: 10145.25 | AI44: 11129.4 | AJ44: 10145.25 | AK44: 10145.25 | AL44: 10145.25 | AM44: 10145.25 | AN44: 11129.4
A45: OFFICE | B45: OFFICE
A46: (714) Corporate Headquarters Building | B46: Corporate Headquarters Building | E46: 714 | F46: Office building housing corporate headquarters of a single company or organization | G46: 1,000 SF GFA | H46: 0.6 | K46: 0.6 | L46: 7.42 | M46: 6.76 | N46: ATG | O46: 10.92 | P46: 0.5 | Q46: 3.71 | R46: 3.38 | S46: 3.71 | T46: 3.38 | U46: 2.23 | W46: 2466.45 | X46: 2466.45 | Y46: 2466.45 | Z46: 2466.45 | AA46: 2466.45 | AB46: 2709.45 | AC46: 2466.45 | AD46: 2466.45 | AE46: 2709.45 | AF46: 2709.45 | AG46: 2709.45 | AH46: 2466.45 | AI46: 2709.45 | AJ46: 2466.45 | AK46: 2466.45 | AL46: 2466.45 | AM46: 2466.45 | AN46: 2709.45
A47: (710) General Office Building | B47: General Office Building | E47: 710 | F47: Office buildings which house multiple tenants | G47: 1,000 SF GFA | H47: 1.15 | K47: 1.15 | L47: 7.42 | M47: 6.76 | N47: ATG | O47: 10.92 | P47: 0.5 | Q47: 3.71 | R47: 3.38 | S47: 3.71 | T47: 3.38 | U47: 4.27 | W47: 4726.35 | X47: 4726.35 | Y47: 4726.35 | Z47: 4726.35 | AA47: 4726.35 | AB47: 5188.05 | AC47: 4726.35 | AD47: 4726.35 | AE47: 5188.05 | AF47: 5188.05 | AG47: 5188.05 | AH47: 4726.35 | AI47: 5188.05 | AJ47: 4726.35 | AK47: 4726.35 | AL47: 4726.35 | AM47: 4726.35 | AN47: 5188.05
A48: (720) Medical-Dental Office Building | B48: Medical-Dental Office Building | E48: 720 | F48: Multi-tenant building with offices for physicians and/or dentists | G48: 1,000 SF GFA | H48: 3.46 | K48: 3.46 | L48: 7.42 | M48: 6.76 | N48: ATG | O48: 10.92 | P48: 0.5 | Q48: 3.71 | R48: 3.38 | S48: 3.71 | T48: 3.38 | U48: 12.84 | W48: 14203.35 | X48: 14203.35 | Y48: 14203.35 | Z48: 14203.35 | AA48: 14203.35 | AB48: 15600.6 | AC48: 14203.35 | AD48: 14203.35 | AE48: 15600.6 | AF48: 15600.6 | AG48: 15600.6 | AH48: 14203.35 | AI48: 15600.6 | AJ48: 14203.35 | AK48: 14203.35 | AL48: 14203.35 | AM48: 14203.35 | AN48: 15600.6
A49: (715) Single Tenant Office Building | B49: Single Tenant Office Building | E49: 715 | F49: Single tenant office buildings other than corporate headquarters | G49: 1,000 SF GFA | H49: 1.71 | K49: 1.71 | L49: 7.42 | M49: 6.76 | N49: ATG | O49: 10.92 | P49: 0.5 | Q49: 3.71 | R49: 3.38 | S49: 3.71 | T49: 3.38 | U49: 6.34 | W49: 7022.7 | X49: 7022.7 | Y49: 7022.7 | Z49: 7022.7 | AA49: 7022.7 | AB49: 7703.1 | AC49: 7022.7 | AD49: 7022.7 | AE49: 7703.1 | AF49: 7703.1 | AG49: 7703.1 | AH49: 7022.7 | AI49: 7703.1 | AJ49: 7022.7 | AK49: 7022.7 | AL49: 7022.7 | AM49: 7022.7 | AN49: 7703.1
A50: (750) Office Park | B50: Office Park | E50: 750 | F50: Office buildings (typically low-rise) in a campus setting and served by a common roadway system | G50: 1,000 SF GFA | H50: 1.07 | K50: 1.07 | L50: 7.42 | M50: 6.76 | N50: ATG | O50: 10.92 | P50: 0.5 | Q50: 3.71 | R50: 3.38 | S50: 3.71 | T50: 3.38 | U50: 3.97 | W50: 4398.3 | X50: 4398.3 | Y50: 4398.3 | Z50: 4398.3 | AA50: 4398.3 | AB50: 4823.55 | AC50: 4398.3 | AD50: 4398.3 | AE50: 4823.55 | AF50: 4823.55 | AG50: 4823.55 | AH50: 4398.3 | AI50: 4823.55 | AJ50: 4398.3 | AK50: 4398.3 | AL50: 4398.3 | AM50: 4398.3 | AN50: 4823.55
A51: COMMERCIAL | B51: COMMERCIAL
A52: AUTOMOBILE RELATED | B52: AUTOMOBILE RELATED
A53: (942) Automobile Care Center | B53: Automobile Care Center | E53: 942 | F53: Automobile repair and servicing including stereo installations and upholstering | G53: 1,000 SF GFA | H53: 3.11 | I53: 0.4 | J53: B | K53: 1.87 | L53: 5.41 | M53: 5.41 | N53: RPA | O53: 6.43 | P53: 0.5 | Q53: 2.7 | R53: 2.71 | S53: 2.7 | T53: 2.71 | U53: 5.05 | W53: 6160.05 | X53: 6160.05 | Y53: 6160.05 | Z53: 6160.05 | AA53: 6160.05 | AB53: 6135.75 | AC53: 6160.05 | AD53: 6160.05 | AE53: 6135.75 | AF53: 6135.75 | AG53: 6135.75 | AH53: 6160.05 | AI53: 6135.75 | AJ53: 6160.05 | AK53: 6160.05 | AL53: 6160.05 | AM53: 6160.05 | AN53: 6135.75
A54: (843) Automobile Parts Sales | B54: Automobile Parts Sales | E54: 843 | F54: Retail sale of auto parts but no on-site vehicle repair | G54: 1,000 SF GFA | H54: 4.91 | I54: 0.43 | J54: A | K54: 2.8 | L54: 5.41 | M54: 5.41 | N54: RPA | O54: 6.43 | P54: 0.5 | Q54: 2.7 | R54: 2.71 | S54: 2.7 | T54: 2.71 | U54: 7.56 | W54: 9221.85 | X54: 9221.85 | Y54: 9221.85 | Z54: 9221.85 | AA54: 9221.85 | AB54: 9185.4 | AC54: 9221.85 | AD54: 9221.85 | AE54: 9185.4 | AF54: 9185.4 | AG54: 9185.4 | AH54: 9221.85 | AI54: 9185.4 | AJ54: 9221.85 | AK54: 9221.85 | AL54: 9221.85 | AM54: 9221.85 | AN54: 9185.4
A55: (944) Gasoline/Service Station | B55: Gasoline/Service Station | E55: 944 | F55: Gasoline sales without convenience store or car wash; may include repair | G55: Vehicle Fueling Position | H55: 14.03 | I55: 0.42 | J55: A | K55: 8.14 | L55: 1.2 | M55: 1.2 | N55: RPA | O55: 1.2 | P55: 0.5 | Q55: 0.6 | R55: 0.6 | S55: 0.6 | T55: 0.6 | U55: 4.88 | W55: 5929.2 | X55: 5929.2 | Y55: 5929.2 | Z55: 5929.2 | AA55: 5929.2 | AB55: 5929.2 | AC55: 5929.2 | AD55: 5929.2 | AE55: 5929.2 | AF55: 5929.2 | AG55: 5929.2 | AH55: 5929.2 | AI55: 5929.2 | AJ55: 5929.2 | AK55: 5929.2 | AL55: 5929.2 | AM55: 5929.2 | AN55: 5929.2
A56: (945) Gasoline/Service Station w/ Conv Market | B56: Gasoline/Service Station w/ Conv Market | E56: 945 | F56: Gasoline sales with convenience store and car washes where the primary business is gasoline sales | G56: Vehicle Fueling Position | H56: 13.99 | I56: 0.56 | J56: B | K56: 6.16 | L56: 1.2 | M56: 1.2 | N56: RPA | O56: 1.2 | P56: 0.5 | Q56: 0.6 | R56: 0.6 | S56: 0.6 | T56: 0.6 | U56: 3.7 | W56: 4495.5 | X56: 4495.5 | Y56: 4495.5 | Z56: 4495.5 | AA56: 4495.5 | AB56: 4495.5 | AC56: 4495.5 | AD56: 4495.5 | AE56: 4495.5 | AF56: 4495.5 | AG56: 4495.5 | AH56: 4495.5 | AI56: 4495.5 | AJ56: 4495.5 | AK56: 4495.5 | AL56: 4495.5 | AM56: 4495.5 | AN56: 4495.5
A57: (841) New Car Sales | B57: New Car Sales | E57: 841 | F57: New car dealerships, typically with automobile servicing, part sales, and used car sales | G57: 1,000 SF GFA | H57: 2.43 | I57: 0.2 | J57: B | K57: 1.94 | L57: 5.41 | M57: 5.41 | N57: RPA | O57: 6.43 | P57: 0.5 | Q57: 2.7 | R57: 2.71 | S57: 2.7 | T57: 2.71 | U57: 5.24 | W57: 6390.9 | X57: 6390.9 | Y57: 6390.9 | Z57: 6390.9 | AA57: 6390.9 | AB57: 6366.6 | AC57: 6390.9 | AD57: 6390.9 | AE57: 6366.6 | AF57: 6366.6 | AG57: 6366.6 | AH57: 6390.9 | AI57: 6366.6 | AJ57: 6390.9 | AK57: 6390.9 | AL57: 6390.9 | AM57: 6390.9 | AN57: 6366.6
A58: (941) Quick Lubrication Vehicle Shop | B58: Quick Lubrication Vehicle Shop | E58: 941 | F58: Primary business is to perform oil changes and fluid/filter changes with other repair services not provided | G58: Servicing Positions | H58: 4.85 | I58: 0.4 | J58: B | K58: 2.91 | L58: 5.41 | M58: 5.41 | N58: RPA | O58: 6.43 | P58: 0.5 | Q58: 2.7 | R58: 2.71 | S58: 2.7 | T58: 2.71 | U58: 7.86 | W58: 9586.35 | X58: 9586.35 | Y58: 9586.35 | Z58: 9586.35 | AA58: 9586.35 | AB58: 9549.9 | AC58: 9586.35 | AD58: 9586.35 | AE58: 9549.9 | AF58: 9549.9 | AG58: 9549.9 | AH58: 9586.35 | AI58: 9549.9 | AJ58: 9586.35 | AK58: 9586.35 | AL58: 9586.35 | AM58: 9586.35 | AN58: 9549.9
A59: (947) Self-Service Car Wash | B59: Self-Service Car Wash | E59: 947 | F59: Has stalls for driver to park and wash the vehicle | G59: Stall | H59: 5.54 | I59: 0.4 | J59: B | K59: 3.32 | L59: 1.2 | M59: 1.2 | N59: RPA | O59: 1.2 | P59: 0.5 | Q59: 0.6 | R59: 0.6 | S59: 0.6 | T59: 0.6 | U59: 1.99 | W59: 2417.85 | X59: 2417.85 | Y59: 2417.85 | Z59: 2417.85 | AA59: 2417.85 | AB59: 2417.85 | AC59: 2417.85 | AD59: 2417.85 | AE59: 2417.85 | AF59: 2417.85 | AG59: 2417.85 | AH59: 2417.85 | AI59: 2417.85 | AJ59: 2417.85 | AK59: 2417.85 | AL59: 2417.85 | AM59: 2417.85 | AN59: 2417.85
A60: (848) Tire Store | B60: Tire Store | E60: 848 | F60: Primary business is sales and installation of tires; usually do not have large storage or warehouse area | G60: 1,000 SF GFA | H60: 3.98 | I60: 0.28 | J60: A | K60: 2.87 | L60: 5.41 | M60: 5.41 | N60: RPA | O60: 6.43 | P60: 0.5 | Q60: 2.7 | R60: 2.71 | S60: 2.7 | T60: 2.71 | U60: 7.75 | W60: 9452.7 | X60: 9452.7 | Y60: 9452.7 | Z60: 9452.7 | AA60: 9452.7 | AB60: 9416.25 | AC60: 9452.7 | AD60: 9452.7 | AE60: 9416.25 | AF60: 9416.25 | AG60: 9416.25 | AH60: 9452.7 | AI60: 9416.25 | AJ60: 9452.7 | AK60: 9452.7 | AL60: 9452.7 | AM60: 9452.7 | AN60: 9416.25
A61: DINING | B61: DINING
A62: (934) Fast Food Restaurant with Drive-Thru Window | B62: Fast Food Restaurant with Drive-Thru Window | E62: 934 | F62: High-turnover fast food restaurant for carry-out and eat-in customers with a drive-thru window | G62: 1,000 SF GFA | H62: 32.67 | I62: 0.5 | J62: A | K62: 16.34 | L62: 3.39 | M62: 3.39 | N62: RPA | O62: 4.79 | P62: 0.5 | Q62: 1.69 | R62: 1.7 | S62: 1.69 | T62: 1.7 | U62: 27.61 | W62: 33752.7 | X62: 33752.7 | Y62: 33752.7 | Z62: 33752.7 | AA62: 33752.7 | AB62: 33546.15 | AC62: 33752.7 | AD62: 33752.7 | AE62: 33546.15 | AF62: 33546.15 | AG62: 33546.15 | AH62: 33752.7 | AI62: 33546.15 | AJ62: 33752.7 | AK62: 33752.7 | AL62: 33752.7 | AM62: 33752.7 | AN62: 33546.15
A63: (933) Fast Food Restaurant without Drive-Thru Window | B63: Fast Food Restaurant without Drive-Thru Window | E63: 933 | F63: High-turnover fast food restaurant for carry-out and eat-in customers, but without a drive-thru window | G63: 1,000 SF GFA | H63: 28.34 | I63: 0.5 | J63: B | K63: 14.17 | L63: 3.39 | M63: 3.39 | N63: RPA | O63: 4.79 | P63: 0.5 | Q63: 1.69 | R63: 1.7 | S63: 1.69 | T63: 1.7 | U63: 23.95 | W63: 29269.35 | X63: 29269.35 | Y63: 29269.35 | Z63: 29269.35 | AA63: 29269.35 | AB63: 29099.25 | AC63: 29269.35 | AD63: 29269.35 | AE63: 29099.25 | AF63: 29099.25 | AG63: 29099.25 | AH63: 29269.35 | AI63: 29099.25 | AJ63: 29269.35 | AK63: 29269.35 | AL63: 29269.35 | AM63: 29269.35 | AN63: 29099.25
A64: (932) High Turnover (Sit-Down) Restaurant | B64: High Turnover (Sit-Down) Restaurant | E64: 932 | F64: Restaurants with turnover rates less than one hour; typically includes moderately-priced chain restaurants | G64: 1,000 SF GFA | H64: 9.77 | I64: 0.43 | J64: A | K64: 5.57 | L64: 5.41 | M64: 5.41 | N64: RPA | O64: 4.79 | P64: 0.5 | Q64: 2.7 | R64: 2.71 | S64: 2.7 | T64: 2.71 | U64: 15.04 | W64: 18334.35 | X64: 18334.35 | Y64: 18334.35 | Z64: 18334.35 | AA64: 18334.35 | AB64: 18273.6 | AC64: 18334.35 | AD64: 18334.35 | AE64: 18273.6 | AF64: 18273.6 | AG64: 18273.6 | AH64: 18334.35 | AI64: 18273.6 | AJ64: 18334.35 | AK64: 18334.35 | AL64: 18334.35 | AM64: 18334.35 | AN64: 18273.6
A65: (931) Quality Restaurant | B65: Quality Restaurant | E65: 931 | F65: Restaurants with turnover rates of one hour or longer; typically require reservations | G65: 1,000 SF GFA | H65: 7.8 | I65: 0.44 | J65: A | K65: 4.37 | L65: 5.41 | M65: 5.41 | N65: RPA | O65: 4.79 | P65: 0.5 | Q65: 2.7 | R65: 2.71 | S65: 2.7 | T65: 2.71 | U65: 11.8 | W65: 14385.6 | X65: 14385.6 | Y65: 14385.6 | Z65: 14385.6 | AA65: 14385.6 | AB65: 14337 | AC65: 14385.6 | AD65: 14385.6 | AE65: 14337 | AF65: 14337 | AG65: 14337 | AH65: 14385.6 | AI65: 14337 | AJ65: 14385.6 | AK65: 14385.6 | AL65: 14385.6 | AM65: 14385.6 | AN65: 14337
A66: (937) Coffee/Donut Shop with Drive-Thru Window | B66: Coffee/Donut Shop with Drive-Thru Window | E66: 937 | F66: Coffee and Donut restaurants with drive-through windows, hold long store hours and have limited indoor seating | G66: 1,000 SF GFA | H66: 43.38 | I66: 0.7 | J66: A | K66: 13.01 | L66: 1.2 | M66: 1.2 | N66: RPA | O66: 4.79 | P66: 0.5 | Q66: 0.6 | R66: 0.6 | S66: 0.6 | T66: 0.6 | U66: 7.81 | W66: 9489.15 | X66: 9489.15 | Y66: 9489.15 | Z66: 9489.15 | AA66: 9489.15 | AB66: 9489.15 | AC66: 9489.15 | AD66: 9489.15 | AE66: 9489.15 | AF66: 9489.15 | AG66: 9489.15 | AH66: 9489.15 | AI66: 9489.15 | AJ66: 9489.15 | AK66: 9489.15 | AL66: 9489.15 | AM66: 9489.15 | AN66: 9489.15
A67: OTHER RETAIL | B67: OTHER RETAIL
A68: =IF(ISBLANK(E68),B68,CONCATENATE("(",E68,") ",B68)) -> (815) Free-Standing Discount Store | B68: Free-Standing Discount Store | E68: 815 | F68: Category includes free-standing stores with off-street parking; typically offer a variety of products and services with long store hours | G68: 1,000 SF GFA | H68: 4.83 | I68: 0.3 | J68: C | K68: 3.38 | L68: 5.82 | M68: 6.35 | N68: ATG | O68: 6.43 | P68: 0.5 | Q68: 2.91 | R68: 3.18 | S68: 2.91 | T68: 3.18 | U68: 9.84 | W68: 13061.25 | X68: 13061.25 | Y68: 13061.25 | Z68: 13061.25 | AA68: 13061.25 | AB68: 11955.6 | AC68: 13061.25 | AD68: 13061.25 | AE68: 11955.6 | AF68: 11955.6 | AG68: 11955.6 | AH68: 13061.25 | AI68: 11955.6 | AJ68: 13061.25 | AK68: 13061.25 | AL68: 13061.25 | AM68: 13061.25 | AN68: 11955.6
A69: (817) Nursery (Garden Center) | B69: Nursery (Garden Center) | E69: 817 | F69: Building with a yard of planting or landscape stock; may have office, storage, shipping or greenhouse facilities | G69: 1,000 SF GFA | H69: 6.94 | I69: 0.3 | J69: B | K69: 4.86 | L69: 5.82 | M69: 6.35 | N69: ATG | O69: 6.43 | P69: 0.5 | Q69: 2.91 | R69: 3.18 | S69: 2.91 | T69: 3.18 | U69: 14.14 | W69: 18771.75 | X69: 18771.75 | Y69: 18771.75 | Z69: 18771.75 | AA69: 18771.75 | AB69: 17180.1 | AC69: 18771.75 | AD69: 18771.75 | AE69: 17180.1 | AF69: 17180.1 | AG69: 17180.1 | AH69: 18771.75 | AI69: 17180.1 | AJ69: 18771.75 | AK69: 18771.75 | AL69: 18771.75 | AM69: 18771.75 | AN69: 17180.1
A70: (862) Home Improvement Superstore | B70: Home Improvement Superstore | E70: 862 | F70: Warehouse-type facilities offering a large variety of products and services including lumber, tool, paint, lighting, and fixtures, among other items. | G70: 1,000 SF GFA | H70: 2.33 | I70: 0.48 | J70: A | K70: 1.21 | L70: 5.82 | M70: 6.35 | N70: ATG | O70: 6.43 | P70: 0.5 | Q70: 2.91 | R70: 3.18 | S70: 2.91 | T70: 3.18 | U70: 3.52 | W70: 4677.75 | X70: 4677.75 | Y70: 4677.75 | Z70: 4677.75 | AA70: 4677.75 | AB70: 4276.8 | AC70: 4677.75 | AD70: 4677.75 | AE70: 4276.8 | AF70: 4276.8 | AG70: 4276.8 | AH70: 4677.75 | AI70: 4276.8 | AJ70: 4677.75 | AK70: 4677.75 | AL70: 4677.75 | AM70: 4677.75 | AN70: 4276.8
A71: (880) Pharmacy/Drugstore w/o Drive-Thru Window | B71: Pharmacy/Drugstore w/o Drive-Thru Window | E71: 880 | F71: Facilities that primarily sell prescription and non-prescription drugs without a drive-through window | G71: 1,000 SF GFA | H71: 8.51 | I71: 0.53 | J71: A | K71: 4 | L71: 5.82 | M71: 6.35 | N71: ATG | O71: 6.43 | P71: 0.5 | Q71: 2.91 | R71: 3.18 | S71: 2.91 | T71: 3.18 | U71: 11.64 | W71: 15454.8 | X71: 15454.8 | Y71: 15454.8 | Z71: 15454.8 | AA71: 15454.8 | AB71: 14142.6 | AC71: 15454.8 | AD71: 15454.8 | AE71: 14142.6 | AF71: 14142.6 | AG71: 14142.6 | AH71: 15454.8 | AI71: 14142.6 | AJ71: 15454.8 | AK71: 15454.8 | AL71: 15454.8 | AM71: 15454.8 | AN71: 14142.6
A72: (881) Pharmacy/Drugstore w/ Drive-Thru Window | B72: Pharmacy/Drugstore w/ Drive-Thru Window | E72: 881 | F72: Facilities that primarily sell prescription and non-prescription drugs with a drive-through window | G72: 1,000 SF GFA | H72: 10.29 | I72: 0.49 | J72: A | K72: 5.25 | L72: 5.82 | M72: 6.35 | N72: ATG | O72: 6.43 | P72: 0.5 | Q72: 2.91 | R72: 3.18 | S72: 2.91 | T72: 3.18 | U72: 15.28 | W72: 20290.5 | X72: 20290.5 | Y72: 20290.5 | Z72: 20290.5 | AA72: 20290.5 | AB72: 18565.2 | AC72: 20290.5 | AD72: 20290.5 | AE72: 18565.2 | AF72: 18565.2 | AG72: 18565.2 | AH72: 20290.5 | AI72: 18565.2 | AJ72: 20290.5 | AK72: 20290.5 | AL72: 20290.5 | AM72: 20290.5 | AN72: 18565.2
A73: (820) Shopping Center | B73: Shopping Center | E73: 820 | F73: Integrated group of commercial establishments; planning, owned, and managed as a unit | G73: 1,000 SF GLA | H73: 3.81 | I73: 0.34 | J73: A | K73: 2.51 | L73: 5.82 | M73: 6.35 | N73: ATG | O73: 6.43 | P73: 0.5 | Q73: 2.91 | R73: 3.18 | S73: 2.91 | T73: 3.18 | U73: 7.3 | W73: 9695.7 | X73: 9695.7 | Y73: 9695.7 | Z73: 9695.7 | AA73: 9695.7 | AB73: 8869.5 | AC73: 9695.7 | AD73: 9695.7 | AE73: 8869.5 | AF73: 8869.5 | AG73: 8869.5 | AH73: 9695.7 | AI73: 8869.5 | AJ73: 9695.7 | AK73: 9695.7 | AL73: 9695.7 | AM73: 9695.7 | AN73: 8869.5
A74: (850) Supermarket | B74: Supermarket | E74: 850 | F74: Primary business is sale of groceries, food, and household cleaning items; may include photo, pharmacy, video rental, and/or ATM | G74: 1,000 SF GFA | H74: 9.24 | I74: 0.36 | J74: A | K74: 5.91 | L74: 5.82 | M74: 6.35 | N74: ATG | O74: 6.43 | P74: 0.5 | Q74: 2.91 | R74: 3.18 | S74: 2.91 | T74: 3.18 | U74: 17.2 | W74: 22829.85 | X74: 22829.85 | Y74: 22829.85 | Z74: 0 | AA74: 22829.85 | AB74: 20898 | AC74: 0 | AD74: 22829.85 | AE74: 20898 | AF74: 20898 | AG74: 20898 | AH74: 22829.85 | AI74: 20898 | AJ74: 22829.85 | AK74: 22829.85 | AL74: 0 | AM74: 0 | AN74: 20898
A75: (864) Toy/Children's Superstore | B75: Toy/Children's Superstore | E75: 864 | F75: Businesses specializing in child-oriented merchandise | G75: 1,000 SF GFA | H75: 5 | I75: 0.3 | J75: B | K75: 3.5 | L75: 5.82 | M75: 6.35 | N75: ATG | O75: 6.43 | P75: 0.5 | Q75: 2.91 | R75: 3.18 | S75: 2.91 | T75: 3.18 | U75: 10.19 | W75: 13522.95 | X75: 13522.95 | Y75: 13522.95 | Z75: 13522.95 | AA75: 13522.95 | AB75: 12380.85 | AC75: 13522.95 | AD75: 13522.95 | AE75: 12380.85 | AF75: 12380.85 | AG75: 12380.85 | AH75: 13522.95 | AI75: 12380.85 | AJ75: 13522.95 | AK75: 13522.95 | AL75: 13522.95 | AM75: 13522.95 | AN75: 12380.85
A76: (875) Department Store | B76: Department Store | E76: 875 | F76: Free-standing stores that specialize in the sale of apparel, footwear, bedding, home products, jewelry, etc. | G76: 1,000 SF GFA | H76: 1.95 | I76: 0.3 | J76: B | K76: 1.37 | L76: 5.82 | M76: 6.35 | N76: ATG | O76: 6.43 | P76: 0.5 | Q76: 2.91 | R76: 3.18 | S76: 2.91 | T76: 3.18 | U76: 3.99 | W76: 5297.4 | X76: 5297.4 | Y76: 5297.4 | Z76: 5297.4 | AA76: 5297.4 | AB76: 4847.85 | AC76: 5297.4 | AD76: 5297.4 | AE76: 4847.85 | AF76: 4847.85 | AG76: 4847.85 | AH76: 5297.4 | AI76: 4847.85 | AJ76: 5297.4 | AK76: 5297.4 | AL76: 5297.4 | AM76: 5297.4 | AN76: 4847.85
A77: SERVICES | B77: SERVICES
A78: (911) Walk-In Bank | B78: Walk-In Bank | E78: 911 | F78: Banks with their own parking lots, no drive-in lanes but contain non-drive-through ATMs | G78: 1,000 SF GFA | H78: 12.13 | I78: 0.4 | J78: B | K78: 7.28 | L78: 3.39 | M78: 3.39 | N78: RPA | O78: 3.39 | P78: 0.5 | Q78: 1.69 | R78: 1.7 | S78: 1.69 | T78: 1.7 | U78: 12.3 | W78: 15041.7 | X78: 15041.7 | Y78: 15041.7 | Z78: 0 | AA78: 15041.7 | AB78: 14944.5 | AC78: 0 | AD78: 15041.7 | AE78: 14944.5 | AF78: 14944.5 | AG78: 14944.5 | AH78: 15041.7 | AI78: 14944.5 | AJ78: 15041.7 | AK78: 15041.7 | AL78: 0 | AM78: 0 | AN78: 14944.5
A79: (912) Drive-In Bank | B79: Drive-In Bank | E79: 912 | F79: Banking facilities to conduct financial transactions from the vehicle; also usually apart of walk-in bank | G79: Drive-in Lanes | H79: 27.15 | I79: 0.35 | J79: A | K79: 17.65 | L79: 3.39 | M79: 3.39 | N79: RPA | O79: 3.39 | P79: 0.5 | Q79: 1.69 | R79: 1.7 | S79: 1.69 | T79: 1.7 | U79: 29.83 | W79: 36462.15 | X79: 36462.15 | Y79: 36462.15 | Z79: 0 | AA79: 36462.15 | AB79: 36243.45 | AC79: 0 | AD79: 36462.15 | AE79: 36243.45 | AF79: 36243.45 | AG79: 36243.45 | AH79: 36462.15 | AI79: 36243.45 | AJ79: 36462.15 | AK79: 36462.15 | AL79: 0 | AM79: 0 | AN79: 36243.45
A80: (918) Hair Salon | B80: Hair Salon | E80: 918 | F80: Facilities that specialize in cosmetic and beauty services including hair cutting and styling | G80: 1,000 SF GLA | H80: 1.45 | I80: 0.3 | J80: B | K80: 1.02 | L80: 3.39 | M80: 3.39 | N80: RPA | O80: 3.39 | P80: 0.5 | Q80: 1.69 | R80: 1.7 | S80: 1.69 | T80: 1.7 | U80: 1.72 | W80: 2101.95 | X80: 2101.95 | Y80: 2101.95 | Z80: 2101.95 | AA80: 2101.95 | AB80: 2089.8 | AC80: 2101.95 | AD80: 2101.95 | AE80: 2089.8 | AF80: 2089.8 | AG80: 2089.8 | AH80: 2101.95 | AI80: 2089.8 | AJ80: 2101.95 | AK80: 2101.95 | AL80: 2101.95 | AM80: 2101.95 | AN80: 2089.8
B82: 1 | C82: 2 | D82: 3 | E82: 4 | F82: 5 | G82: 6 | H82: 7 | I82: 8 | J82: 9 | K82: 10 | L82: 11 | M82: 12 | N82: 13 | O82: 14 | P82: 15 | Q82: 16 | R82: 17 | S82: 18 | T82: 19 | U82: 20 | V82: 21 | W82: 22 | X82: 23 | Y82: 24 | Z82: 25 | AA82: 26 | AB82: 27 | AC82: 28 | AD82: 29 | AE82: 30 | AF82: 31 | AG82: 32 | AH82: 33 | AI82: 34 | AJ82: 35 | AK82: 36 | AL82: 37 | AM82: 38 | AN82: 39 | AO82: 40

Sheet TDM Instructions
B2: TDM Points and Trip Reduction Calculator Instructions
B3: Applicability Note – For developments that generate less than 2,000 unadjusted daily trips, TDM is not required. TDM measures may still be performed to achieve a trip reduction % and entered into the calculator. 1. For information related to TDM measures and implementation levels and TDM Plan points requirements, please see the Transportation Criteria Manual Section 10. See the tab “Point & Trip Red. Look-up Table” for details of TDM points and % Trip Reductions associated with each TDM measure implementation level and context area (Downtown, Urban, or Urban Transition). 2. Context Areas are based upon boundaries from the Street Impact Fee study and University Neighborhood Overlay District. See the “Service Area” tab to locate the development’s context area and see “Resource Links” section below for a map of the University Neighborhood Overlay District. 3. Fill in all of the beige fields for the proposed TDM measures and implementation levels using drop down menus in the “TDM Calculator Input” tab. For sites where internal capture is applicable, a % reduction in trips approved by applicable staff shall be manually entered on the “TDM Calculator Input” tab. Instructions are provided in each cell if an entry must be selected from a drop-down menu or manual entry. For developments that do not require TDM Plans, only the TDM measures being used may be filled in on the Calculator to determine a % trip reduction. At a minimum, the “Context Area” and one TDM measure must be filled in. 4. The section of the tab marked “Sustainable Mode Improvement Measures” must be filled in by staff and is related to infrastructure improvements related to TDM.
C29: Resource Links to External Documents
C30: Transportation Criteria Manual
C31: University Neighborhood Overlay District

Sheet TDM Calculator Input
A1: TDM Points and Trip Reduction Calculator
A2: Project Name: | C2: Legal Description (Lot, Block) | D2: Project Number:
A3: =IF(E38="", "Enter Project Name Here") -> Enter Project Name Here | C3: =IF(E38="", "Enter Legal Desc. Here") -> Enter Legal Desc. Here | D3: =IF(E38="", "Enter Project Number Here") -> Enter Project Number Here
A4: Project Description: | C4: Applicant's Name: | D4: Contact Info (phone number/e-mail):
A5: =IF(E38="", "Enter Project Description Here") -> Enter Project Description Here | C5: =IF(E38="", "Enter Applicant Name Here") -> Enter Applicant Name Here | D5: =IF(E38="", "Enter Contact Info Here") -> Enter Contact Info Here
A7: Measures | B7: Notes/Criteria | C7: Level of Measure Implementation | D7: Trip Reduction %
A8: Context Area | B8: Downtown (SIF Service Area DT or University Neighborhood Overlay District), Urban (SIF Service Areas F, I, J, L, parts of K), or Urban Transition (All other Areas in City Limits) | I8: ='Point & Trip Red. Look-up Table'!G2 -> Downtown | J8: ='Point & Trip Red. Look-up Table'!H2 -> Urban | K8: ='Point & Trip Red. Look-up Table'!I2 -> Urban Transition
A9: Contextual Trip Reduction Measures | C9: ='Proposed TDM Plan Point Credits'!D8 -> Amount falls within proper range | D9: ='Proposed TDM Plan Trip Red. %'!E8 -> Does Not Exceed Maximum
A10: Internal Trip Capture (CTR-1) | B10: Include a mix of land uses to optimize internal-capture trip-reduction opportunities, providing residents and/or employees with on-site access to housing/jobs, goods, and services. This measure may be implemented to receive between 5 and 20 points in credit toward meeting TDM Plan points requirements, with one point received for each % of trips estimated to be captured internally (round down to nearest 5% for selecting category (i.e. 5-9% = 5 points / 5%, 10-14% = 10 points, 10 %, etc.), based on the amount agreed to by the City. | C10: ='Proposed TDM Plan Point Credits'!B5 -> 0
A11: Transit Proximity (CTR-2) | B11: Develop on a site that benefits from a level of transit service that can reduce trip generation by facilitating use of transit for site access and site-based travel. At least half of the development site falls within ¼-mile of a High Capacity Transit stop, or 1/8-mile of a High Frequency (15 min) transit stop; and a complete sidewalk network is in place between the development site and the nearest transit stop. | D11: ='Proposed TDM Plan Trip Red. %'!B7 -> 0 | I11: At least half of the development site falls within ¼-mile of a High Capacity transit stop, or 1/8-mile of a High Frequency (15 min) transit stop; and a complete sidewalk network is in place between the development site and the nearest transit stop. | J11: At least half of the development site falls within ¼-mile of a of a High Capacity transit stop, or 1/8-mile of a High Frequency (15 min) transit stop; and a complete sidewalk network is in place between the development site and the nearest transit stop. AND at lesat 1 point is also received for any Parking measure OR for either API-5 or API-6 | K11: At least half of the development site falls within ¼-mile of a of a High Capacity transit stop, or 1/8-mile of a High Frequency (15 min) transit stop; and a complete sidewalk network is in place between the development site and the nearest transit stop. AND at least 1 point is also received for any Parking measure AND for either API-5 or API-6
A12: Category Caps for Points / Trip Reductions | C12: ='Proposed TDM Plan Point Credits'!C5 -> 20 | D12: ='Proposed TDM Plan Trip Red. %'!B49 -> 0
A13: Total Possible for Category | C13: ='Proposed TDM Plan Point Credits'!B8 -> 0 | D13: ='Proposed TDM Plan Trip Red. %'!B56 -> 0
A14: Parking Measures | C14: ='Proposed TDM Plan Point Credits'!D16 -> Amount falls within proper range | D14: ='Proposed TDM Plan Trip Red. %'!E15 -> Does Not Exceed Maximum
A15: Reduced Parking Supply (P-1) | B15: Provide fewer parking spaces to offset the trip-generation impact of excess parking capacities. | D15: ='Proposed TDM Plan Trip Red. %'!B11 -> 0 | I15: 51% to 80% of the Parking Required by the LDC | J15: 21% to 50% of the Parking Required by the LDC | K15: 1% - 20% of the Parking Required by the LDC | L15: No Parking Supply
A16: Unbundled Parking (P-2) | B16: Offer resident/tenant parking only as an optional amenity that is priced separately from the cost of associated building leases or housing-unit purchases. | D16: ='Proposed TDM Plan Trip Red. %'!B12 -> 0 | I16: Equal or exceed the CapMetro unlimited 31-Day Pass “commuter” fare ($96.25)* | J16: Equal the IRS limit on pre-tax parking purchases ($270)** | K16: Exceed the IRS limit on pre-tax parking purchases by at least 10%
A17: Daily Tenant Parking Rates (P-3) | B17: Price all unbundled tenant parking at daily or hourly rates to offset the trip-generation impact of monthly and annual permits. | D17: ='Proposed TDM Plan Trip Red. %'!B13 -> 0 | I17: All Non-resident tenants | J17: All tenants
A18: Visitor Parking Pricing (P-4) | B18: Price visitor parking at higher rates during peak travel demand periods for congestion pricing | D18: ='Proposed TDM Plan Trip Red. %'!B14 -> 0 | I18: Are at least $1 per hour higher during identified congestion-pricing periods, after the first hour | J18: Are at least $1 per hour during identified congestion-pricing periods, including the first hour | K18: Are at least $2 per hour during identified congestion-pricing periods
A19: Category Caps for Points / Trip Reductions | C19: ='Proposed TDM Plan Point Credits'!C11 -> 15 | D19: ='Proposed TDM Plan Trip Red. %'!B50 -> 0
A20: Total Possible for Category | C20: ='Proposed TDM Plan Point Credits'!B16 -> 0 | D20: ='Proposed TDM Plan Trip Red. %'!B57 -> 0
A21: Amenities, Programs, and Incentives Measures | C21: ='Proposed TDM Plan Point Credits'!D31 -> Amount falls within proper range | D21: ='Proposed TDM Plan Trip Red. %'!E29 -> Does Not Exceed Maximum
A22: Transportation Management Association Membership (API-1) | B22: Maintain full membership and actively participate in the activities and services provided by an established TMA as a proven-effective means of enhancing the benefits of the project’s TDM Plan measures. | D22: ='Proposed TDM Plan Trip Red. %'!B18 -> 0 | I22: Yes | J22: No
A23: Designated Mobility Coordinator (API-2) | B23: Designate a Mobility Coordinator to market, explain, and assist in the use of available non-driving mobility options among building tenants and visitors. | D23: ='Proposed TDM Plan Trip Red. %'!B19 -> 0
A24: Marketing and Information (API-3) | B24: Designate a Mobility Coordinator to market, explain, and assist in the use of available non-driving mobility options among building tenants and visitors. | D24: ='Proposed TDM Plan Trip Red. %'!B20 -> 0
A25: Parking Cash-Out (API-4) | B25: Require tenant employer who offer free/subsidized parking to their employees to also provide an equivalent cash benefit to those employees who forgo this benefit, to offset the trip-generation impact of free/subsidized parking. | D25: ='Proposed TDM Plan Trip Red. %'!B21 -> 0 | I25: $50.00 / month | J25: $100.00 / month
A26: Universal Transit Pass (API-5.1) | B26: Available to Residents | D26: ='Proposed TDM Plan Trip Red. %'!B22 -> 0
B27: Available to Employees
B28: Subsidy Level toward CapMetro Unlimited Ride Pass | I28: 0.25 | J28: 0.5 | K28: 0.75 | L28: 1
A29: Mobility Wallet (API-5.2) | B29: Available to Residents | D29: ='Proposed TDM Plan Trip Red. %'!B23 -> 0
B30: Available to Employees
B31: Funding level
A32: Ride-Home Benefit (API-6) | B32: Provide a self-funded Guaranteed Ride Home (or similar) benefit for building tenants that can be used as a supplement to the program offered by MyCommuteSolutions to encourage increased use of non-driving modes among building tenants. | D32: ='Proposed TDM Plan Trip Red. %'!B24 -> 0 | I32: Program limited to building employees | J32: Program available to building employees and residents
A33: Internet Acess Amenity (API-7) | B33: Provide free high-speed, broadband internet service to all residences to support remote-work and remote-learn capacities that can reduce work and school trips among residents. | D33: ='Proposed TDM Plan Trip Red. %'!B25 -> 0 | I33: All residences are provided free high-speed, broadband service | J33: All residences are provided free high-speed, broadband service at the highest level of quality available to residences
A34: Telecommuting Work Option (API-8) | B34: Provide option for employees to telecommute at least 1 day per week | D34: ='Proposed TDM Plan Trip Red. %'!B26 -> 0
A35: On-Site Daycare or School (API-9) | B35: Provide an on-site childcare facility or school to provide direct home- or work-end access to these destinations that can incentivize use of driving modes when they divert/extend commute trips. | D35: ='Proposed TDM Plan Trip Red. %'!B27 -> 0
A36: Delivery-Supportive Amenities (API-10) | B36: Accommodate and encourage goods deliveries by providing building amenities that facilitate secure reception and storage packages, groceries, prepared meals, and clothing. | D36: ='Proposed TDM Plan Trip Red. %'!B28 -> 0
A37: Category Caps for Points / Trip Reductions | C37: ='Proposed TDM Plan Point Credits'!C19 -> 10 | D37: ='Proposed TDM Plan Trip Red. %'!B51 -> 0
A38: Total Possible for Category | C38: ='Proposed TDM Plan Point Credits'!B31 -> 0 | D38: ='Proposed TDM Plan Trip Red. %'!B58 -> 0
A39: Sustainable Mode Improvement Measures | C39: ='Proposed TDM Plan Point Credits'!D41 -> Amount falls within proper range | D39: ='Proposed TDM Plan Trip Red. %'!E38 -> Does Not Exceed Maximum
A40: Pedestrian Access and Connectivity Improvements (SM-1) | B40: Improve area sidewalks, street crossings, urban trails, or other pedestrian facilities to encourage walking as a travel alternative to driving. | D40: ='Proposed TDM Plan Trip Red. %'!B32 -> 0 | I40: 1 | J40: 2 | K40: 3 | L40: 4 | M40: 5 | N40: 6 | O40: 7 | P40: 8 | Q40: 9 | R40: 10
A41: Bicycle Access and Connectivity (SM-2) | B41: Improve area bicycle facilities (including bike-share stations), amenities (including bike-share memberships), or connectivity to regional bicycle networks to encourage cycling as a travel alternative to driving. | D41: ='Proposed TDM Plan Trip Red. %'!B33 -> 0 | I41: 1 | J41: 2 | K41: 3 | L41: 4 | M41: 5 | N41: 6 | O41: 7 | P41: 8 | Q41: 9 | R41: 10
A42: Transit Access and Connectivity (SM-3) | B42: Improve area transit facilities and connections, including but not limited to adding or enhancing stations/stops and multimodal station/stop connections, including walking as well as shuttle connections, to encourage transit use as a travel alternative to driving. | D42: ='Proposed TDM Plan Trip Red. %'!B34 -> 0 | I42: 1 | J42: 2 | K42: 3 | L42: 4 | M42: 5 | N42: 6 | O42: 7 | P42: 8 | Q42: 9 | R42: 10 | S42: 11 | T42: 12 | U42: 13 | V42: 14 | W42: 15
A43: Rideshare Access and Connectivity (SM-4) | B43: Create and maintain a carpool, vanpool, school-pool, and/or other rideshare program to encourage use of these drive-alone travel modes for common development-based travel. | D43: ='Proposed TDM Plan Trip Red. %'!B35 -> 0 | I43: 1 | J43: 2 | K43: 3 | L43: 4 | M43: 5 | N43: 6 | O43: 7 | P43: 8 | Q43: 9 | R43: 10
A44: Emerging Mobility Access and Connectivity (SM-5) | B44: Provide or increase access to emerging mobility modes and services, such as car-share, bike-share, electric scooters, hailed-ride services, etc. to encourage use of these drive-alone travel modes for common development-based travel. | D44: ='Proposed TDM Plan Trip Red. %'!B36 -> 0 | I44: 1 | J44: 2 | K44: 3 | L44: 4 | M44: 5
A45: Site Plan Access and Connectivity (SM-6) | B45: Priority Improvements identified in an approved Sustainable Modes Analysis (10.3.0) for the proposed development’s Site Plan are included in a TDM Plan. | D45: ='Proposed TDM Plan Trip Red. %'!B37 -> 0 | I45: 1 | J45: 2 | K45: 3 | L45: 4 | M45: 5
A46: Category Caps for Points / Trip Reductions | C46: ='Proposed TDM Plan Point Credits'!C34 -> 40 | D46: ='Proposed TDM Plan Trip Red. %'!B52 -> 0
A47: Total Possible for Category | C47: ='Proposed TDM Plan Point Credits'!B41 -> 0 | D47: ='Proposed TDM Plan Trip Red. %'!B59 -> 0
A48: Overall TDM Program Cap | C48: ='Proposed TDM Plan Point Credits'!C43 -> 85 | D48: ='Proposed TDM Plan Trip Red. %'!B53 -> 0
A49: Results | C49: Total Allowable Point Credits | D49: Total Allowable Trip Reduction Credits
A50: Total Allowable Point & Trip Reduction Credits | C50: ='Proposed TDM Plan Point Credits'!B43 -> 0 | D50: ='Proposed TDM Plan Trip Red. %'!B61 -> 0
A54: Points Requirements:
A55: 20 points: if trip-generation is projected between 2,000 – 5,000 unadjusted trips
A56: 30 points: if trip-generation is projected at more than 5,000 unadjusted trips
A58: TDM Plan Points Requirement Adjustment for Excess Parking
A59: Proposed Parking Supply | B59: TDM Plan Points Requirement Increasd by
A60: Context Area | B60: Downtown | C60: Urban | D60: Urban Transition
A61: 101% - 110% of the Standard Parking Supply Ratio | B61: 3 | C61: 2 | D61: 1
A62: 110% - 130% of the Standard Parking Supply Ratio | B62: 5 | C62: 4 | D62: 3
A63: 130% - 150% of the Standard Parking Supply Ratio | B63: 7 | C63: 6 | D63: 5
A64: 150% - 200% of the Standard Parking Supply Ratio | B64: 10 | C64: 8 | D64: 7
A66: At least 10% of a TDM Plan’s point requirement must be met via measures from within each category.
A67: No more than 50% of a TDM Plan’s point requirement may be met via measures within a single category.

Sheet Point & Trip Red. Look-up Table
B1: Measure | C1: Description | D1: Implementation Options | E1: Points Credit | F1: Blank (Do not edit cells in this column) | G1: Proposed TIA Trip Reduction % AND Rough Proportionality Credit % | J1: Blank (Do not edit cells in this column) | K1: Approved Trip-Reduction Credit Criteria
G2: Downtown | H2: Urban | I2: Urban Transition
A3: Contextual Trip Reduction Measures | B3: Internal Trip Capture (CTR-1) | C3: Include a mix of land uses to optimize internal-capture trip-reduction opportunities, providing residents and/or employees with on-site access to housing/jobs, goods, and services. | D3: This measure may be implemented to receive between 5 and 20 points in credit toward meeting TDM Plan points requirements, with one point received for each % of trips estimated to be captured internally (round down to nearest 5% for selecting category (i.e. 5-9% = 5 points / 5%, 10-14% = 10 points, 10 %, etc.), based on the amount agreed to by the City. | E3: 5 | G3: 5-9% | H3: 5-9% | I3: 5-9% | K3: 0.04 | L3: 0.1
E4: 10 | G4: 10-14% | H4: 10-14% | I4: 10-14% | K4: 0.09 | L4: 0.15
E5: 15 | G5: 15-19% | H5: 15-19% | I5: 15-19% | K5: 0.14 | L5: 0.2
E6: 20 | G6: More than 20% | H6: More than 20% | I6: More than 20% | K6: 0.19 | L6: 1
B7: Transit Proximity (CTR-2)
C8: Develop on a site that benefits from a level of transit service that can reduce trip generation by facilitating use of transit for site access and site-based travel. | D8: This measure may be implemented as follows to receive credit toward meeting TDM Plan points requirements. • At least half of the development site falls within ¼-mile of a transit stop within a Transit Priority Network, or 1/8-mile of a High Frequency (15 min) transit stop; and • A complete sidewalk network is in place between the development site and the nearest transit stop. | E8: 1 | G8: 0.05 | H8: 0.025 | I8: 0.01 | K8: At least half of the development site falls within ¼-mile of a High Capacity transit stop, or 1/8-mile of a High Frequency (15 min) transit stop; and a complete sidewalk network is in place between the development site and the nearest transit stop.
E9: 2 | G9: 0.1 | H9: 0.05 | I9: 0.025 | K9: At least half of the development site falls within ¼-mile of a of a High Capacity transit stop, or 1/8-mile of a High Frequency (15 min) transit stop; and a complete sidewalk network is in place between the development site and the nearest transit stop. AND at lesat 1 point is also received for any Parking measure OR for either API-5 or API-6
E10: 3 | G10: 0.2 | H10: 0.1 | I10: 0.05 | K10: At least half of the development site falls within ¼-mile of a of a High Capacity transit stop, or 1/8-mile of a High Frequency (15 min) transit stop; and a complete sidewalk network is in place between the development site and the nearest transit stop. AND at least 1 point is also received for any Parking measure AND for either API-5 or API-6
B11: Reduced Parking Supply (P-1)
A12: Parking (Vehicular TDM) Measures | C12: Provide fewer parking spaces to offset the trip-generation impact of excess parking capacities. | D12: The measure may be implemented by taking advantage of the exemption from the LDC’s minimum parking requirements that is afforded to developments with an approved TDM Plan, to receive credit toward meeting TDM Plan points requirements. If parking requirement reduced by LDC, then “minimum requirement” above is replaced by reduced parking amount required. | E12: 2 | G12: =2*H12 -> 0.04 | H12: 0.02 | I12: =0.5*H12 -> 0.01 | K12: 51% to 80% of the Parking Required by the LDC
E13: 5 | G13: =2*H13 -> 0.1 | H13: 0.05 | I13: =0.5*H13 -> 0.025 | K13: 21% to 50% of the Parking Required by the LDC
E14: 8 | G14: =2*H14 -> 0.16 | H14: 0.08 | I14: =0.5*H14 -> 0.04 | K14: 1% - 20% of the Parking Required by the LDC
E15: 10 | G15: =2*H15 -> 0.2 | H15: 0.1 | I15: =0.5*H15 -> 0.05 | K15: No Parking Supply
C16: Offer tenant parking (residents and commercial tenants) only as an optional amenity that is priced separately from the cost of associated building leases or housing-unit purchases. | D16: This measure may be implemented as follows to receive credit toward meeting TDM Plan points requirements. All tenant parking is offered as an optional amenity, the cost of which is established independent of the cost for associated dwelling units and leased building space.
B17: Unbundled Parking (P-2) | E17: 2 | G17: =2*H17 -> 0.04 | H17: 0.02 | I17: =0.5*H17 -> 0.01 | K17: Equal or exceed the CapMetro unlimited 31-Day Pass “commuter” fare ($96.25)* | L17: https://www.capmetro.org/fares/#!
E18: 4 | G18: =2*H18 -> 0.08 | H18: 0.04 | I18: =0.5*H18 -> 0.02 | K18: Equal the IRS limit on pre-tax parking purchases ($270)** | L18: https://www.irs.gov/publications/p15b#en_US_2020_publink1000193745
E19: 6 | G19: =2*H19 -> 0.12 | H19: 0.06 | I19: =0.5*H19 -> 0.03 | K19: Exceed the IRS limit on pre-tax parking purchases by at least 10%
C20: Price all unbundled tenant parking at daily (or hourly) rates to offset the trip-generation impact of monthly and annual permits. | D20: This measure may be implemented as follows to receive credit toward meeting TDM Plan points requirements, in addition to any points received for measure P-2.
B21: Daily Tenant Parking Rates (P-3) | E21: 1 | G21: =H21*2 -> 0.02 | H21: 0.01 | I21: =H21*0.5 -> 0.005 | K21: All Non-resident tenants
E22: 2 | G22: =H22*2 -> 0.04 | H22: 0.02 | I22: =H22*0.5 -> 0.01 | K22: All tenants
B23: Visitor Parking Pricing (P-4)
C24: Price customer/visitor parking at higher rates during defined peak congestion periods to disincentivize travel by SOV during peak periods. | D24: This measure may be implemented as follows to receive credit toward meeting TDM Plan points requirements. • All visitor parking is priced at an hourly and/or daily rate, as follows. | E24: 1 | G24: =H24*2 -> 0.02 | H24: =0.01 -> 0.01 | I24: =H24/2 -> 0.005 | K24: Are at least $1 per hour higher during identified congestion-pricing periods, after the first hour
E25: 2 | G25: =H25*2 -> 0.04 | H25: =0.02 -> 0.02 | I25: =H25/2 -> 0.01 | K25: Are at least $1 per hour during identified congestion-pricing periods, including the first hour
E26: 4 | G26: =H26*2 -> 0.08 | H26: =0.04 -> 0.04 | I26: =H26/2 -> 0.02 | K26: Are at least $2 per hour during identified congestion-pricing periods
A27: Amenities, Programs, and Incentives Measures | B27: Transportation Management Association Membership (API-1)
C28: Maintain full membership and actively participate in the activities and services provided by an established TMA as a proven-effective means of enhancing the benefits of the project’s TDM Plan measures. | D28: This measure may be implemented as follows to receive credit toward meeting TDM Plan points requirements. • Documentation of membership in a TMA, or similar organization is included in a TDM Plan | E28: 1 | G28: 0 | H28: 0 | I28: 0 | K28: Yes | L28: No
B29: Designated Mobility Coordinator (API-2)
C30: Include a Designated Mobility Coordinator position to manage and document TDM programs and activities | D30: This measure may be implemented as follows to receive credit toward meeting TDM Plan points requirements. • The name and contact information of the property’s Mobility Coordinator is identified in the TDM Plan | E30: 1 | G30: 0 | H30: 0 | I30: 0 | K30: Yes | L30: No
B31: Marketing and Information (API-3)
C32: Provide individualized marketing and information campaigns to encourage the use of available non-driving mobility options among building tenants and visitors. | D32: This measure may be implemented as follows to receive credit toward meeting TDM Plan points requirements. • A marketing and information program is defined, including frequency of proposed actions, estimated costs, funding allocations, and staffing committed for implementation is included in a TDM Plan. | E32: 1 | G32: 0.04 | H32: 0.02 | I32: 0.01 | K32: Yes | L32: No
B33: Parking Cash-Out (API-4)
C34: Require tenant employer who offer free/subsidized parking to their employees to also provide an equivalent cash benefit to those employees who forgo this benefit, to offset the trip-generation impact of free/subsidized parking. | D34: This measure may be implemented as follows to receive credit toward meeting TDM Plan points requirements. • The majority of trips projected by the Trip Generation Analysis (10.2.0) are projected for proposed non-residential uses; and • Parking Cash-Out program is defined for tenant employers, inclusive of level of benefit, terms of eligibility that match those linked to a parking benefit is included in a TDM Plan | E34: 1 | G34: =2*H34 -> 0.02 | H34: 0.01 | I34: =H34*0.5 -> 0.005 | K34: $50.00 / month
E35: 2 | G35: =2*H35 -> 0.04 | H35: 0.02 | I35: =H35*0.5 -> 0.01 | K35: $100.00 / month
B36: Universal Transit Pass (API-5.1) | K36: Subsidy Level as share of CapMetro “local” fare 31-Day Pass cost | L36: Available to Residents | M36: Available to Employees
C38: Provide free or subsidized transit passes to all development tenants to encourage use of transit as a travel alternative to driving. | D38: This measure may be implemented as follows to receive credit toward meeting TDM Plan points requirements. • A Universal Transit Pass benefit is defined for property tenants, inclusive of level of benefit, eligibility, and committed funding levels, is included in a TDM Plan. | E38: 1 | G38: =H38*2 -> 0.02 | H38: =0.01 -> 0.01 | I38: =H38/2 -> 0.005 | K38: 0.25 | L38: Yes | M38: No | N38: 0.25
E39: 1 | G39: 0.02 | H39: =0.01 -> 0.01 | I39: 0.005 | K39: 0.25 | L39: No | M39: Yes | N39: 0.5
E40: 2 | G40: 0.04 | H40: 0.02 | I40: 0.01 | K40: 0.25 | L40: Yes | M40: Yes | N40: 0.75
E41: 2 | G41: 0.04 | H41: 0.02 | I41: 0.01 | K41: 0.5 | L41: Yes | M41: No | N41: 1
E42: 2 | G42: 0.04 | H42: 0.02 | I42: 0.01 | K42: 0.5 | L42: No | M42: Yes
E43: 4 | G43: 0.08 | H43: 0.04 | I43: 0.02 | K43: 0.5 | L43: Yes | M43: Yes
E44: 3 | G44: 0.06 | H44: 0.03 | I44: 0.015 | K44: 0.75 | L44: Yes | M44: No
E45: 3 | G45: 0.06 | H45: 0.03 | I45: 0.015 | K45: 0.75 | L45: No | M45: Yes
E46: 6 | G46: 0.12 | H46: 0.06 | I46: 0.03 | K46: 0.75 | L46: Yes | M46: Yes
E47: 4 | G47: 0.08 | H47: 0.04 | I47: 0.02 | K47: 1 | L47: Yes | M47: No
E48: 4 | G48: 0.08 | H48: 0.04 | I48: 0.02 | K48: 1 | L48: No | M48: Yes
E49: 8 | G49: 0.16 | H49: 0.08 | I49: 0.04 | K49: 1 | L49: Yes | M49: Yes
B50: Mobility Wallet (API-5.2) | K50: Contribution as share of CapMetro “local” fare 31-Day Pass cost | L50: Available to Residents | M50: Available to Employees
C52: Fund Mobility Wallet accounts for all on-site residents and employees to encourage greater use of non-driving modes among building tenants. | D52: This measure may be implemented as follows to receive credit toward meeting TDM Plan points requirements. • A Mobility Wallet benefit is defined for property tenants, inclusive of level of benefit, eligibility, and committed funding levels, is included in a TDM Plan. | E52: 1 | G52: =H52*2 -> 0.02 | H52: =0.01 -> 0.01 | I52: =H52/2 -> 0.005 | K52: 0.25 | L52: Yes | M52: No | N52: 0.25
E53: 1 | G53: 0.02 | H53: =0.01 -> 0.01 | I53: 0.005 | K53: 0.25 | L53: No | M53: Yes | N53: 0.5
E54: 2 | G54: 0.04 | H54: 0.02 | I54: 0.01 | K54: 0.25 | L54: Yes | M54: Yes | N54: 0.75
E55: 2 | G55: 0.04 | H55: 0.02 | I55: 0.01 | K55: 0.5 | L55: Yes | M55: No | N55: 1
E56: 2 | G56: 0.04 | H56: 0.02 | I56: 0.01 | K56: 0.5 | L56: No | M56: Yes
E57: 4 | G57: 0.08 | H57: 0.04 | I57: 0.02 | K57: 0.5 | L57: Yes | M57: Yes
E58: 3 | G58: 0.06 | H58: 0.03 | I58: 0.015 | K58: 0.75 | L58: Yes | M58: No
E59: 3 | G59: 0.06 | H59: 0.03 | I59: 0.015 | K59: 0.75 | L59: No | M59: Yes
E60: 6 | G60: 0.12 | H60: 0.06 | I60: 0.03 | K60: 0.75 | L60: Yes | M60: Yes
E61: 4 | G61: 0.08 | H61: 0.04 | I61: 0.02 | K61: 1 | L61: Yes | M61: No
E62: 4 | G62: 0.08 | H62: 0.04 | I62: 0.02 | K62: 1 | L62: No | M62: Yes
E63: 8 | G63: 0.16 | H63: 0.08 | I63: 0.04 | K63: 1 | L63: Yes | M63: Yes
B64: Ride-Home Benefit (API-6)
C65: Provide a self-funded Guaranteed Ride Home (or similar) benefit for building tenants that can be used as a supplement to the program offered by MyCommuteSolutions to encourage increased use of non-driving modes among building tenants. | D65: This measure may be implemented as follows to receive credit toward meeting TDM Plan points requirements. • A Guaranteed Ride Home benefit is defined for property tenants, inclusive of level of benefit, eligibility, and committed funding levels, is included in a TDM Plan. | E65: 1 | G65: =H65*2 -> 0.01 | H65: =0.005 -> 0.005 | I65: =H65/2 -> 0.0025 | K65: Program limited to building employees
E66: 2 | G66: =H66*2 -> 0.02 | H66: 0.01 | I66: =H66/2 -> 0.005 | K66: Program available to building employees and residents
B67: Internet Access Amenity (API-7)
C68: Provide free high-speed, broadband internet service to all residences to support remote-work and remote-learn capacities that can reduce work and school trips among residents. | D68: This measure may be implemented as follows to receive credit toward meeting TDM Plan points requirements. • Evidence of a commitment to provide free, high-speed, broadband service to all dwelling units - such as a service-provider contract/invoice, marketing materials that promote this amenity, or other -- is included in a TDM Plan. | E68: 1 | G68: 0 | H68: 0 | I68: 0 | K68: All residences are provided free high-speed, broadband service
E69: 2 | G69: 0 | H69: 0 | I69: 0 | K69: All residences are provided free high-speed, broadband service at the highest level of quality available to residences
B70: Telecommuting Work Option (API-8)
C71: Provide option for employees to telecommute at least 1 day per week | D71: This measure may be implemented as follows to receive credit toward meeting TDM Plan points requirements. • Submitted plans that identify ground-floor space designed to accommodate the proposed facility, and that complies with all State, County, and City requirements, including provisions within the LDC. • Submitted plans identify a commitment to ensure the space will be occupied by a childcare facility or school. | E71: 2 | G71: 0.05 | H71: 0.05 | I71: 0.05 | K71: Yes | L71: No
B72: On-Site Daycare or School (API-9)
C73: Provide an on-site childcare facility or school to provide direct home- or work-end access to these destinations that can incentivize use of driving modes when they divert/extend commute trips. | D73: This measure may be implemented as follows to receive credit toward meeting TDM Plan points requirements. • Submitted plans that identify ground-floor space designed to accommodate the proposed facility, and that complies with all State, County, and City requirements, including provisions within the LDC. • Submitted plans identify a commitment to ensure the space will be occupied by a childcare facility or school. | E73: 2 | G73: 0 | H73: 0 | I73: 0 | K73: Yes | L73: No
B74: Delivery-Supportive Amenities (API-10)
C75: Accommodate and encourage goods deliveries by providing building amenities that facilitate secure reception and storage packages, groceries, prepared meals, and clothing. | D75: This measure may be implemented as follows to receive credit toward meeting TDM Plan points requirements. • Submitted plans identify either of the following building amenities: • Lockers or other storage facility for laundry, packages, or other “dry goods” • Temperature-maintaining or refrigerated storage device for groceries | E75: 1 | G75: 0 | H75: 0 | I75: 0 | K75: Yes | L75: No
A76: Sustainable Mode Improvement Measures | B76: Pedestrian Access and Connectivity Improvements (SM-1)
C77: Improve area sidewalks, street crossings, urban trails, or other pedestrian facilities to encourage walking as a travel alternative to driving. | D77: Priority Improvements identified in an approved Sustainable Modes Analysis for pedestrian access and connectivity are included in a TDM Plan. | E77: 1 | G77: =H77*2 -> 0.02 | H77: 0.01 | I77: =H77/2 -> 0.005 | K77: 1
E78: 2 | G78: 0.022 | H78: 0.011 | I78: 0.0055 | K78: 2
E79: 3 | G79: 0.024 | H79: 0.012 | I79: 0.006 | K79: 3
E80: 4 | G80: 0.026 | H80: 0.013 | I80: 0.0065 | K80: 4
E81: 5 | G81: 0.028 | H81: 0.014 | I81: 0.007 | K81: 5
E82: 6 | G82: 0.03 | H82: 0.015 | I82: 0.0075 | K82: 6
E83: 7 | G83: 0.032 | H83: 0.016 | I83: 0.008 | K83: 7
E84: 8 | G84: 0.034 | H84: 0.017 | I84: 0.0085 | K84: 8
E85: 9 | G85: 0.036 | H85: 0.018 | I85: 0.009 | K85: 9
E86: 10 | G86: 0.04 | H86: 0.02 | I86: 0.01 | K86: 10
B87: Bicycle Access and Connectivity (SM-2)
C88: Improve area bicycle facilities (including bike-share stations), amenities (including bike-share memberships), or connectivity to regional bicycle networks to encourage cycling as a travel alternative to driving. | D88: Priority Improvements identified in an approved Sustainable Modes Analysis (10.3.0) for bicycle access and connectivity are included in a TDM Plan. | E88: 1 | G88: =H88*2 -> 0.02 | H88: 0.01 | I88: =0.5*H88 -> 0.005 | K88: 1
E89: 2 | G89: 0.02 | H89: 0.01 | I89: 0.005 | K89: 2
E90: 3 | G90: 0.03 | H90: 0.015 | I90: 0.0075 | K90: 3
E91: 4 | G91: 0.04 | H91: 0.02 | I91: 0.01 | K91: 4
E92: 5 | G92: 0.05 | H92: 0.025 | I92: 0.0125 | K92: 5
E93: 6 | G93: 0.06 | H93: 0.03 | I93: 0.015 | K93: 6
E94: 7 | G94: 0.07 | H94: 0.035 | I94: 0.0175 | K94: 7
E95: 8 | G95: 0.08 | H95: 0.04 | I95: 0.02 | K95: 8
E96: 9 | G96: 0.09 | H96: 0.045 | I96: 0.0225 | K96: 9
E97: 10 | G97: 0.1 | H97: 0.05 | I97: 0.025 | K97: 10
B98: Transit Access and Connectivity (SM-3)
C99: Improve area transit facilities and connections, including but not limited to adding or enhancing stations/stops and multimodal station/stop connections, including walking as well as shuttle connections, to encourage transit use as a travel alternative to driving. | D99: Priority Improvements identified in an approved Sustainable Modes Analysis (10.3.0) for transit access and connectivity are included in a TDM Plan. | E99: 1 | G99: =H99*2 -> 0.02 | H99: 0.01 | I99: =0.5*H99 -> 0.005 | K99: 1
E100: 2 | G100: 0.04 | H100: 0.02 | I100: 0.01 | K100: 2
E101: 3 | G101: 0.06 | H101: 0.03 | I101: 0.015 | K101: 3
E102: 4 | G102: 0.08 | H102: 0.04 | I102: 0.02 | K102: 4
E103: 5 | G103: 0.1 | H103: 0.05 | I103: 0.025 | K103: 5
E104: 6 | G104: 0.12 | H104: 0.06 | I104: 0.03 | K104: 6
E105: 7 | G105: 0.14 | H105: 0.07 | I105: 0.035 | K105: 7
E106: 8 | G106: 0.16 | H106: 0.08 | I106: 0.04 | K106: 8
E107: 9 | G107: 0.18 | H107: 0.09 | I107: 0.045 | K107: 9
E108: 10 | G108: 0.2 | H108: 0.1 | I108: 0.05 | K108: 10
E109: 11 | G109: 0.22 | H109: 0.11 | I109: 0.055 | K109: 11
E110: 12 | G110: 0.24 | H110: 0.12 | I110: 0.06 | K110: 12
E111: 13 | G111: 0.26 | H111: 0.13 | I111: 0.065 | K111: 13
E112: 14 | G112: 0.28 | H112: 0.14 | I112: 0.07 | K112: 14
E113: 15 | G113: 0.3 | H113: 0.15 | I113: 0.075 | K113: 15
B114: Rideshare Access and Connectivity (SM-4)
C115: Create and maintain a carpool, vanpool, school-pool, and/or other rideshare program to encourage use of these drive-alone travel modes for common development-based travel. | D115: Priority Improvements identified in an approved Sustainable Modes Analysis (10.3.0) for rideshare access and connectivity are included in a TDM Plan. | E115: 1 | G115: =H115*2 -> 0.02 | H115: 0.01 | I115: =H115/2 -> 0.005 | K115: 1
E116: 2 | G116: 0.022 | H116: 0.011 | I116: 0.0055 | K116: 2
E117: 3 | G117: 0.024 | H117: 0.012 | I117: 0.006 | K117: 3
E118: 4 | G118: 0.026 | H118: 0.013 | I118: 0.0065 | K118: 4
E119: 5 | G119: 0.028 | H119: 0.014 | I119: 0.007 | K119: 5
E120: 6 | G120: 0.03 | H120: 0.015 | I120: 0.0075 | K120: 6
E121: 7 | G121: 0.032 | H121: 0.016 | I121: 0.008 | K121: 7
E122: 8 | G122: 0.034 | H122: 0.017 | I122: 0.0085 | K122: 8
E123: 9 | G123: 0.036 | H123: 0.018 | I123: 0.009 | K123: 9
E124: 10 | G124: 0.04 | H124: 0.02 | I124: 0.01 | K124: 10
B125: Emerging Mobility Access and Connectivity (SM-5)
C126: Provide or increase access to emerging mobility modes and services, such as car-share, bike-share, electric scooters, hailed-ride services, etc. to encourage use of these drive-alone travel modes for common development-based travel. | D126: Priority Improvements identified in an approved Sustainable Modes Analysis (10.3.0) for emerging mobility access and connectivity are included in a TDM Plan. | E126: 1 | G126: =2*H126 -> 0.02 | H126: 0.01 | I126: =0.5*H126 -> 0.005 | K126: 1
E127: 2 | G127: =2*H127 -> 0.024 | H127: 0.012 | I127: =0.5*H127 -> 0.006 | K127: 2
E128: 3 | G128: =2*H128 -> 0.028 | H128: 0.014 | I128: =0.5*H128 -> 0.007 | K128: 3
E129: 4 | G129: =2*H129 -> 0.032 | H129: 0.016 | I129: =0.5*H129 -> 0.008 | K129: 4
E130: 5 | G130: =2*H130 -> 0.04 | H130: 0.02 | I130: =0.5*H130 -> 0.01 | K130: 5
B131: Site Plan Access and Connectivity (SM-6)
C132: Priority Improvements identified in an approved Sustainable Modes Analysis (10.3.4.1) for the proposed development’s Site Plan are included in a TDM Plan. | D132: Site Plan Priority Improvements identified in an approved Sustainable Modes Analysis (10.3.0) are included in a TDM Plan. | E132: 1 | G132: =2*H132 -> 0.02 | H132: 0.01 | I132: =0.5*H132 -> 0.005 | K132: 1
E133: 2 | G133: =2*H133 -> 0.04 | H133: 0.02 | I133: =0.5*H133 -> 0.01 | K133: 2
E134: 3 | G134: =2*H134 -> 0.06 | H134: 0.03 | I134: =0.5*H134 -> 0.015 | K134: 3
E135: 4 | G135: =2*H135 -> 0.08 | H135: 0.04 | I135: =0.5*H135 -> 0.02 | K135: 4
E136: 5 | G136: =2*H136 -> 0.1 | H136: 0.05 | I136: =0.5*H136 -> 0.025 | K136: 5

Sheet Proposed TDM Plan Point Credits (hidden)
A1: Proposed TDM Plan Point Credits
A2: Measures | B2: Proposed TDM Plan Point Credit | C2: Maximum Points Allowed
A4: Contextual Trip Reduction Measures
A5: Internal Trip Capture (CTR-1) | B5: =IF(AND('TDM Calculator Input'!D10<'Point & Trip Red. Look-up Table'!L3, 'TDM Calculator Input'!D10>'Point & Trip Red. Look-up Table'!K3), 'Point & Trip Red. Look-up Table'!E3, IF(AND('TDM Calculator Input'!D10<'Point & Trip Red. Look-up Table'!L4, 'TDM Calculator Input'!D10>'Point & Trip Red. Look-up Table'!K4), 'Point & Trip Red. Look-up Table'!E4, IF(AND('TDM Calculator Input'!D10<'Point & Trip Red. Look-up Table'!L5, 'TDM Calculator Input'!D10>'Point & Trip Red. Look-up Table'!K5), 'Point & Trip Red. Look-up Table'!E5, IF(AND('TDM Calculator Input'!D10<'Point & Trip Red. Look-up Table'!L6, 'TDM Calculator Input'!D10>'Point & Trip Red. Look-up Table'!K6), 'Point & Trip Red. Look-up Table'!E6, 0)))) -> 0 | C5: 20
A6: Transit Proximity (CTR-2) | B6: =IF('TDM Calculator Input'!C11='Point & Trip Red. Look-up Table'!K8,'Point & Trip Red. Look-up Table'!E8, IF('TDM Calculator Input'!C11='Point & Trip Red. Look-up Table'!K9,'Point & Trip Red. Look-up Table'!E9, IF('TDM Calculator Input'!C11='Point & Trip Red. Look-up Table'!K10,'Point & Trip Red. Look-up Table'!E10))) -> FALSE
A7: Total Points Entered for Category | B7: =SUM(B5:B6) -> 0
A8: Allowable Points for Category | B8: =IF(SUM('Proposed TDM Plan Point Credits'!B5:B6)<'TDM Calculator Input'!C12, SUM(B5:B6), C5) -> 0 | D8: =IF(OR(B8<B43*0.1,B8>B43*0.5), "Amount does not fall within successful range of points", "Amount falls within proper range") -> Amount falls within proper range
A10: Parking Measures
A11: Reduced Parking Supply (P-1) | B11: =IF('TDM Calculator Input'!C15='Point & Trip Red. Look-up Table'!K12,'Point & Trip Red. Look-up Table'!E12,IF('TDM Calculator Input'!C15='Point & Trip Red. Look-up Table'!K13,'Point & Trip Red. Look-up Table'!E13,IF('TDM Calculator Input'!C15='Point & Trip Red. Look-up Table'!K14,'Point & Trip Red. Look-up Table'!E14,IF('TDM Calculator Input'!C15='Point & Trip Red. Look-up Table'!K15,'Point & Trip Red. Look-up Table'!E15,0)))) -> 0 | C11: 15
A12: Unbundled Parking (P-2) | B12: =IF('TDM Calculator Input'!C16='Point & Trip Red. Look-up Table'!K17,'Point & Trip Red. Look-up Table'!E17, IF('TDM Calculator Input'!C16='Point & Trip Red. Look-up Table'!K18,'Point & Trip Red. Look-up Table'!E18, IF('TDM Calculator Input'!C16='Point & Trip Red. Look-up Table'!K19,'Point & Trip Red. Look-up Table'!E19, 0))) -> 0
A13: Daily Tenant Parking Rates (P-3) | B13: =IF('TDM Calculator Input'!C17='Point & Trip Red. Look-up Table'!K21,'Point & Trip Red. Look-up Table'!E21,IF('TDM Calculator Input'!C17='Point & Trip Red. Look-up Table'!K22,'Point & Trip Red. Look-up Table'!E22,0)) -> 0
A14: Visitor Parking Pricing (P-4) | B14: =IF('TDM Calculator Input'!C18='Point & Trip Red. Look-up Table'!K24, 'Point & Trip Red. Look-up Table'!E24, IF('TDM Calculator Input'!C18='Point & Trip Red. Look-up Table'!K25, 'Point & Trip Red. Look-up Table'!E25, IF('TDM Calculator Input'!C18='Point & Trip Red. Look-up Table'!K26, 'Point & Trip Red. Look-up Table'!E26,0))) -> 0
A15: Total Points Entered for Category | B15: =SUM(B11:B14) -> 0
A16: Allowable Points for Category | B16: =IF(SUM('Proposed TDM Plan Point Credits'!B11:B14)<'TDM Calculator Input'!C19, SUM('Proposed TDM Plan Point Credits'!B11:B14), C11) -> 0 | D16: =IF(OR(B16<B43*0.1,B16>B43*0.5), "Amount does not fall within successful range of points", "Amount falls within proper range") -> Amount falls within proper range
A18: Amenities, Programs, and Incentives Measures
A19: Transportation Management Association Membership (API-1) | B19: =IF('TDM Calculator Input'!C22='Point & Trip Red. Look-up Table'!K28, 'Point & Trip Red. Look-up Table'!E28, 0) -> 0 | C19: 10
A20: Designated Mobility Coordinator (API-2) | B20: =IF('TDM Calculator Input'!C23='Point & Trip Red. Look-up Table'!K30, 'Point & Trip Red. Look-up Table'!E30, 0) -> 0
A21: Marketing and Information (API-3) | B21: =IF('TDM Calculator Input'!C24='Point & Trip Red. Look-up Table'!K32, 'Point & Trip Red. Look-up Table'!E32, 0) -> 0
A22: Parking Cash-Out (API-4) | B22: =IF('TDM Calculator Input'!C25='Point & Trip Red. Look-up Table'!K34,'Point & Trip Red. Look-up Table'!E34, IF('TDM Calculator Input'!C25='Point & Trip Red. Look-up Table'!K35,'Point & Trip Red. Look-up Table'!E35,0)) -> 0
A23: Universal Transit Pass (API-5.1) | B23: =IF($D$23<>"",$D$23,IF(AND('TDM Calculator Input'!C26='Point & Trip Red. Look-up Table'!L44,'TDM Calculator Input'!C27='Point & Trip Red. Look-up Table'!M44,'TDM Calculator Input'!C28='Point & Trip Red. Look-up Table'!K44), 'Point & Trip Red. Look-up Table'!E44,IF(AND('TDM Calculator Input'!C26='Point & Trip Red. Look-up Table'!L45,'TDM Calculator Input'!C27='Point & Trip Red. Look-up Table'!M45,'TDM Calculator Input'!C28='Point & Trip Red. Look-up Table'!K45), 'Point & Trip Red. Look-up Table'!E45, IF(AND('TDM Calculator Input'!C26='Point & Trip Red. Look-up Table'!L46,'TDM Calculator Input'!C27='Point & Trip Red. Look-up Table'!M46,'TDM Calculator Input'!C28='Point & Trip Red. Look-up Table'!K46), 'Point & Trip Red. Look-up Table'!E46,IF(AND('TDM Calculator Input'!C26='Point & Trip Red. Look-up Table'!L47,'TDM Calculator Input'!C27='Point & Trip Red. Look-up Table'!M47,'TDM Calculator Input'!C28='Point & Trip Red. Look-up Table'!K47), 'Point & Trip Red. Look-up Table'!E47,IF(AND('TDM Calculator Input'!C26='Point & Trip Red. Look-up Table'!L48,'TDM Calculator Input'!C27='Point & Trip Red. Look-up Table'!M48,'TDM Calculator Input'!C28='Point & Trip Red. Look-up Table'!K48), 'Point & Trip Red. Look-up Table'!E48,IF(AND('TDM Calculator Input'!C26='Point & Trip Red. Look-up Table'!L49,'TDM Calculator Input'!C27='Point & Trip Red. Look-up Table'!M49,'TDM Calculator Input'!C28='Point & Trip Red. Look-up Table'!K49), 'Point & Trip Red. Look-up Table'!E49,0))))))) -> 0 | D23: =IF(AND('TDM Calculator Input'!C26='Point & Trip Red. Look-up Table'!L38,'TDM Calculator Input'!C27='Point & Trip Red. Look-up Table'!M38,'TDM Calculator Input'!C28='Point & Trip Red. Look-up Table'!K38), 'Point & Trip Red. Look-up Table'!E38,IF(AND('TDM Calculator Input'!C26='Point & Trip Red. Look-up Table'!L39,'TDM Calculator Input'!C27='Point & Trip Red. Look-up Table'!M39,'TDM Calculator Input'!C28='Point & Trip Red. Look-up Table'!K39), 'Point & Trip Red. Look-up Table'!E39,IF(AND('TDM Calculator Input'!C26='Point & Trip Red. Look-up Table'!L40,'TDM Calculator Input'!C27='Point & Trip Red. Look-up Table'!M40,'TDM Calculator Input'!C28='Point & Trip Red. Look-up Table'!K40), 'Point & Trip Red. Look-up Table'!E40,IF(AND('TDM Calculator Input'!C26='Point & Trip Red. Look-up Table'!L41,'TDM Calculator Input'!C27='Point & Trip Red. Look-up Table'!M41,'TDM Calculator Input'!C28='Point & Trip Red. Look-up Table'!K41), 'Point & Trip Red. Look-up Table'!E41, IF(AND('TDM Calculator Input'!C26='Point & Trip Red. Look-up Table'!L42,'TDM Calculator Input'!C27='Point & Trip Red. Look-up Table'!M42,'TDM Calculator Input'!C28='Point & Trip Red. Look-up Table'!K42), 'Point & Trip Red. Look-up Table'!E42,IF(AND('TDM Calculator Input'!C26='Point & Trip Red. Look-up Table'!L43,'TDM Calculator Input'!C27='Point & Trip Red. Look-up Table'!M43,'TDM Calculator Input'!C28='Point & Trip Red. Look-up Table'!K43), 'Point & Trip Red. Look-up Table'!E43,"")))))) -> 
A24: Mobility Wallet (API-5.2) | B24: =IF($D$24<>"",$D$24,IF(AND('TDM Calculator Input'!C29='Point & Trip Red. Look-up Table'!L58,'TDM Calculator Input'!C30='Point & Trip Red. Look-up Table'!M58,'TDM Calculator Input'!C31='Point & Trip Red. Look-up Table'!K58),'Point & Trip Red. Look-up Table'!E58,IF(AND('TDM Calculator Input'!C29='Point & Trip Red. Look-up Table'!L59,'TDM Calculator Input'!C30='Point & Trip Red. Look-up Table'!M59,'TDM Calculator Input'!C31='Point & Trip Red. Look-up Table'!K59),'Point & Trip Red. Look-up Table'!E59,IF(AND('TDM Calculator Input'!C29='Point & Trip Red. Look-up Table'!L60,'TDM Calculator Input'!C30='Point & Trip Red. Look-up Table'!M60,'TDM Calculator Input'!C31='Point & Trip Red. Look-up Table'!K60),'Point & Trip Red. Look-up Table'!E60,IF(AND('TDM Calculator Input'!C29='Point & Trip Red. Look-up Table'!L61,'TDM Calculator Input'!C30='Point & Trip Red. Look-up Table'!M61,'TDM Calculator Input'!C31='Point & Trip Red. Look-up Table'!K61),'Point & Trip Red. Look-up Table'!E61,IF(AND('TDM Calculator Input'!C29='Point & Trip Red. Look-up Table'!L62,'TDM Calculator Input'!C30='Point & Trip Red. Look-up Table'!M62,'TDM Calculator Input'!C31='Point & Trip Red. Look-up Table'!K62),'Point & Trip Red. Look-up Table'!E62,IF(AND('TDM Calculator Input'!C29='Point & Trip Red. Look-up Table'!L63,'TDM Calculator Input'!C30='Point & Trip Red. Look-up Table'!M63,'TDM Calculator Input'!C31='Point & Trip Red. Look-up Table'!K63),'Point & Trip Red. Look-up Table'!E63,0))))))) -> 0 | D24: =IF(AND('TDM Calculator Input'!C29='Point & Trip Red. Look-up Table'!L52,'TDM Calculator Input'!C30='Point & Trip Red. Look-up Table'!M52,'TDM Calculator Input'!C31='Point & Trip Red. Look-up Table'!K52),'Point & Trip Red. Look-up Table'!E52,IF(AND('TDM Calculator Input'!C29='Point & Trip Red. Look-up Table'!L53,'TDM Calculator Input'!C30='Point & Trip Red. Look-up Table'!M53,'TDM Calculator Input'!C31='Point & Trip Red. Look-up Table'!K53),'Point & Trip Red. Look-up Table'!E53,IF(AND('TDM Calculator Input'!C29='Point & Trip Red. Look-up Table'!L54,'TDM Calculator Input'!C30='Point & Trip Red. Look-up Table'!M54,'TDM Calculator Input'!C31='Point & Trip Red. Look-up Table'!K54),'Point & Trip Red. Look-up Table'!E54, IF(AND('TDM Calculator Input'!C29='Point & Trip Red. Look-up Table'!L55,'TDM Calculator Input'!C30='Point & Trip Red. Look-up Table'!M55,'TDM Calculator Input'!C31='Point & Trip Red. Look-up Table'!K55),'Point & Trip Red. Look-up Table'!E55,IF(AND('TDM Calculator Input'!C29='Point & Trip Red. Look-up Table'!L56,'TDM Calculator Input'!C30='Point & Trip Red. Look-up Table'!M56,'TDM Calculator Input'!C31='Point & Trip Red. Look-up Table'!K56),'Point & Trip Red. Look-up Table'!E56, IF(AND('TDM Calculator Input'!C29='Point & Trip Red. Look-up Table'!L57,'TDM Calculator Input'!C30='Point & Trip Red. Look-up Table'!M57,'TDM Calculator Input'!C31='Point & Trip Red. Look-up Table'!K57),'Point & Trip Red. Look-up Table'!E57,"")))))) -> 
A25: Ride Home Programs (API-6) | B25: =IF('TDM Calculator Input'!C32='Point & Trip Red. Look-up Table'!K65,'Point & Trip Red. Look-up Table'!E65, IF('TDM Calculator Input'!C32='Point & Trip Red. Look-up Table'!K66,'Point & Trip Red. Look-up Table'!E66,)) -> 0
A26: Internet Access Amenity (API-7) | B26: =IF('TDM Calculator Input'!C33='Point & Trip Red. Look-up Table'!K68,'Point & Trip Red. Look-up Table'!E68, IF('TDM Calculator Input'!C33='Point & Trip Red. Look-up Table'!K69,'Point & Trip Red. Look-up Table'!E69,0)) -> 0
A27: Telecommuting Work Option (API-8) | B27: =IF('TDM Calculator Input'!C34='Point & Trip Red. Look-up Table'!K71, 'Point & Trip Red. Look-up Table'!E71, 0) -> 0
A28: On-Site Daycare or School (API-9) | B28: =IF('TDM Calculator Input'!C35='Point & Trip Red. Look-up Table'!K73, 'Point & Trip Red. Look-up Table'!E73, 0) -> 0
A29: Delivery-Supportive Amenities (API-10) | B29: =IF('TDM Calculator Input'!C36='Point & Trip Red. Look-up Table'!K75, 'Point & Trip Red. Look-up Table'!E75, 0) -> 0
A30: Total Points Entered for Category | B30: =SUM(B19:B29) -> 0
A31: Allowable Points for Category | B31: =IF(SUM(B19:B29)<'TDM Calculator Input'!C37, SUM('Proposed TDM Plan Point Credits'!B19:B29), C19) -> 0 | D31: =IF(OR(B31<B43*0.1,B31>B43*0.5), "Amount does not fall within successful range of points", "Amount falls within proper range") -> Amount falls within proper range
A33: Sustainable Mode Improvement Measures
A34: Pedestrian Access and Connectivity Improvements (SM-1) | B34: =IF('TDM Calculator Input'!C40="Select from Drop-Down Menu",0,'TDM Calculator Input'!C40) -> 0 | C34: 40
A35: Bicycle Access and Connectivity (SM-2) | B35: =IF('TDM Calculator Input'!C41="Select from Drop-Down Menu",0,'TDM Calculator Input'!C41) -> 0
A36: Transit Access and Connectivity (SM-3) | B36: =IF('TDM Calculator Input'!C42="Select from Drop-Down Menu",0,'TDM Calculator Input'!C42) -> 0
A37: Rideshare Access and Connectivity (SM-4) | B37: =IF('TDM Calculator Input'!C43="Select from Drop-Down Menu",0,'TDM Calculator Input'!C43) -> 0
A38: Emerging Mobility Access and Connectivity (SM-5) | B38: =IF('TDM Calculator Input'!C44="Select from Drop-Down Menu",0,'TDM Calculator Input'!C44) -> 0
A39: Site Plan Access and Connectivity (SM-6) | B39: =IF('TDM Calculator Input'!C45="Select from Drop-Down Menu",0,'TDM Calculator Input'!C45) -> 0
A40: Total Points Entered for Category | B40: =SUM(B34:B39) -> 0
A41: Allowable Points for Category | B41: =IF(SUM(B34:B39)<'TDM Calculator Input'!C46, SUM(B34:B39), C34) -> 0 | D41: =IF(OR(B41<B43*0.1,B41>B43*0.5), "Amount does not fall within successful range of points", "Amount falls within proper range") -> Amount falls within proper range
A43: Total Allowable Points for TDM Program | B43: =SUM(B8,B16,B31,B41) -> 0 | C43: =SUM(C5,C11,C19,C34) -> 85
A46: Points Requirements:
A47: 20 points: if trip-generation is projected between 2,000 – 5,000 unadjusted trips
A48: 30 points: if trip-generation is projected at more than 5,000 unadjusted trips
A50: TDM Plan Points Requirement Adjustment for Excess Parking
A51: Proposed Parking Supply | B51: TDM Plan Points Requirement Increasd by
A52: Context Area | B52: Downtown | C52: Urban | D52: Urban Transition
A53: 101% - 110% of the Standard Parking Supply Ratio | B53: 3 | C53: 2 | D53: 1
A54: 110% - 130% of the Standard Parking Supply Ratio | B54: 5 | C54: 4 | D54: 3
A55: 130% - 150% of the Standard Parking Supply Ratio | B55: 7 | C55: 6 | D55: 5
A56: 150% - 200% of the Standard Parking Supply Ratio | B56: 10 | C56: 8 | D56: 7
A58: At least 10% of a TDM Plan’s point requirement must be met via measures from within each category.
A59: No more than 50% of a TDM Plan’s point requirement may be met via measures within a single category.

Sheet Proposed TDM Plan Trip Red. % (hidden)
A1: Proposed TIA Trip Reduction %
A2: Measures | B2: Trip Reduction % | D2: Maximum % Reduction Allowed
A4: Contextual Trip Reduction
A6: Internal Trip Capture (CTR-1) | B6: =IF('TDM Calculator Input'!D10="Manually enter agreed-to trip reduction % here", 0%,'TDM Calculator Input'!D10) -> 0 | D6: =IF('TDM Calculator Input'!$C$8="Downtown", 40%, IF('TDM Calculator Input'!$C$8="Urban", 30%, IF('TDM Calculator Input'!$C$8="Urban Transition", 25%, 0))) -> 0
A7: Transit Proximity (CTR-2) | B7: =IF($E$7<>"",$E$7,IF(AND('TDM Calculator Input'!C8="Urban",'TDM Calculator Input'!C11='Point & Trip Red. Look-up Table'!K8), 'Point & Trip Red. Look-up Table'!H8, IF(AND('TDM Calculator Input'!C8="Urban",'TDM Calculator Input'!C11='Point & Trip Red. Look-up Table'!K9), 'Point & Trip Red. Look-up Table'!H9, IF(AND('TDM Calculator Input'!C8="Urban",'TDM Calculator Input'!C11='Point & Trip Red. Look-up Table'!K10), 'Point & Trip Red. Look-up Table'!H10,IF(AND('TDM Calculator Input'!C8="Urban Transition",'TDM Calculator Input'!C11='Point & Trip Red. Look-up Table'!K8), 'Point & Trip Red. Look-up Table'!I8, IF(AND('TDM Calculator Input'!C8="Urban Transition",'TDM Calculator Input'!C11='Point & Trip Red. Look-up Table'!K9), 'Point & Trip Red. Look-up Table'!I9, IF(AND('TDM Calculator Input'!C8="Urban Transition",'TDM Calculator Input'!C11='Point & Trip Red. Look-up Table'!K10), 'Point & Trip Red. Look-up Table'!I10,0))))))) -> 0 | E7: =IF(AND('TDM Calculator Input'!C8="Downtown",'TDM Calculator Input'!C11='Point & Trip Red. Look-up Table'!K8), 'Point & Trip Red. Look-up Table'!G8, IF(AND('TDM Calculator Input'!C8="Downtown",'TDM Calculator Input'!C11='Point & Trip Red. Look-up Table'!K9), 'Point & Trip Red. Look-up Table'!G9, IF(AND('TDM Calculator Input'!C8="Downtown",'TDM Calculator Input'!C11='Point & Trip Red. Look-up Table'!K10), 'Point & Trip Red. Look-up Table'!G10,""))) -> 
A8: Total Possible for Category | B8: =1-((1-B6))*((1-B7)) -> 0 | E8: =IF(B8>D6,"Amount Exceeds Maximum", "Does Not Exceed Maximum") -> Does Not Exceed Maximum
A9: Parking Measures
A11: Reduced Parking Supply (P-1) | B11: =IF(ISERROR(INDEX('Point & Trip Red. Look-up Table'!$B:$M,MATCH('TDM Calculator Input'!C15,'Point & Trip Red. Look-up Table'!$K:$K,0),MATCH('TDM Calculator Input'!$C$8,'Point & Trip Red. Look-up Table'!$B$2:$M$2,0))),0,INDEX('Point & Trip Red. Look-up Table'!$B:$M,MATCH('TDM Calculator Input'!C15,'Point & Trip Red. Look-up Table'!$K:$K,0),MATCH('TDM Calculator Input'!$C$8,'Point & Trip Red. Look-up Table'!$B$2:$M$2,0))) -> 0 | C11: 1 | D11: =IF('TDM Calculator Input'!$C$8="Downtown", 20%, IF('TDM Calculator Input'!$C$8="Urban", 10%, IF('TDM Calculator Input'!$C$8="Urban Transition", 5%, 0))) -> 0 | F11: =IF(AND('TDM Calculator Input'!C8="Downtown",'TDM Calculator Input'!C15='Point & Trip Red. Look-up Table'!K12), 'Point & Trip Red. Look-up Table'!G12, IF(AND('TDM Calculator Input'!C8="Downtown",'TDM Calculator Input'!C15='Point & Trip Red. Look-up Table'!K13), 'Point & Trip Red. Look-up Table'!G13, IF(AND('TDM Calculator Input'!C8="Downtown",'TDM Calculator Input'!C15='Point & Trip Red. Look-up Table'!K14), 'Point & Trip Red. Look-up Table'!G14,IF(AND('TDM Calculator Input'!C8="Downtown",'TDM Calculator Input'!C15='Point & Trip Red. Look-up Table'!K15), 'Point & Trip Red. Look-up Table'!G15,IF(AND('TDM Calculator Input'!C8="Urban",'TDM Calculator Input'!C15='Point & Trip Red. Look-up Table'!K12), 'Point & Trip Red. Look-up Table'!H12, IF(AND('TDM Calculator Input'!C8="Urban",'TDM Calculator Input'!C15='Point & Trip Red. Look-up Table'!K13), 'Point & Trip Red. Look-up Table'!H13,"")))))) -> 
A12: Unbundled Parking (P-2) | B12: =IF(ISERROR(INDEX('Point & Trip Red. Look-up Table'!$B:$M,MATCH('TDM Calculator Input'!C16,'Point & Trip Red. Look-up Table'!$K:$K,0),MATCH('TDM Calculator Input'!$C$8,'Point & Trip Red. Look-up Table'!$B$2:$M$2,0))),0,INDEX('Point & Trip Red. Look-up Table'!$B:$M,MATCH('TDM Calculator Input'!C16,'Point & Trip Red. Look-up Table'!$K:$K,0),MATCH('TDM Calculator Input'!$C$8,'Point & Trip Red. Look-up Table'!$B$2:$M$2,0))) -> 0 | C12: 1
A13: Daily Tenant Parking Rates (P-3) | B13: =IF(ISERROR(INDEX('Point & Trip Red. Look-up Table'!$B:$M,MATCH('TDM Calculator Input'!C17,'Point & Trip Red. Look-up Table'!$K:$K,0),MATCH('TDM Calculator Input'!$C$8,'Point & Trip Red. Look-up Table'!$B$2:$M$2,0))),0,INDEX('Point & Trip Red. Look-up Table'!$B:$M,MATCH('TDM Calculator Input'!C17,'Point & Trip Red. Look-up Table'!$K:$K,0),MATCH('TDM Calculator Input'!$C$8,'Point & Trip Red. Look-up Table'!$B$2:$M$2,0))) -> 0 | C13: 1
A14: Visitor Parking Pricing (P-4) | B14: =IF(ISERROR(INDEX('Point & Trip Red. Look-up Table'!$B:$M,MATCH('TDM Calculator Input'!C18,'Point & Trip Red. Look-up Table'!$K:$K,0),MATCH('TDM Calculator Input'!$C$8,'Point & Trip Red. Look-up Table'!$B$2:$M$2,0))),0,INDEX('Point & Trip Red. Look-up Table'!$B:$M,MATCH('TDM Calculator Input'!C18,'Point & Trip Red. Look-up Table'!$K:$K,0),MATCH('TDM Calculator Input'!$C$8,'Point & Trip Red. Look-up Table'!$B$2:$M$2,0))) -> 0 | C14: 1
A15: Total Possible for Category | B15: =1-((1-B11))*((1-B12))*((1-B13))*((1-B14)) -> 0 | E15: =IF(B15>D11,"Amount Exceeds Maximum", "Does Not Exceed Maximum") -> Does Not Exceed Maximum
A16: Amenities, Programs, and Incentive Measures
A18: Transportation Management Association Membership (API-1) | B18: =IF('TDM Calculator Input'!C22="Yes",INDEX('Point & Trip Red. Look-up Table'!$B:$M,MATCH(A18,'Point & Trip Red. Look-up Table'!$B:$B,0)+1,MATCH('TDM Calculator Input'!$C$8,'Point & Trip Red. Look-up Table'!$B$2:$M$2,0)),0) -> 0 | D18: =IF('TDM Calculator Input'!$C$8="Downtown", 20%, IF('TDM Calculator Input'!$C$8="Urban", 10%, IF('TDM Calculator Input'!$C$8="Urban Transition", 5%, 0))) -> 0
A19: Designated Mobility Coordinator (API-2) | B19: =IF('TDM Calculator Input'!C23="Yes",INDEX('Point & Trip Red. Look-up Table'!$B:$M,MATCH(A19,'Point & Trip Red. Look-up Table'!$B:$B,0)+1,MATCH('TDM Calculator Input'!$C$8,'Point & Trip Red. Look-up Table'!$B$2:$M$2,0)),0) -> 0
A20: Marketing and Information (API-3) | B20: =IF('TDM Calculator Input'!C24="Yes",INDEX('Point & Trip Red. Look-up Table'!$B:$M,MATCH(A20,'Point & Trip Red. Look-up Table'!$B:$B,0)+1,MATCH('TDM Calculator Input'!$C$8,'Point & Trip Red. Look-up Table'!$B$2:$M$2,0)),0) -> 0 | C20: 1
A21: Parking Cash-Out (API-4) | B21: =IF(ISERROR(INDEX('Point & Trip Red. Look-up Table'!$B:$M,MATCH('TDM Calculator Input'!C25,'Point & Trip Red. Look-up Table'!$K:$K,0),MATCH('TDM Calculator Input'!$C$8,'Point & Trip Red. Look-up Table'!$B$2:$M$2,0))),0,INDEX('Point & Trip Red. Look-up Table'!$B:$M,MATCH('TDM Calculator Input'!C25,'Point & Trip Red. Look-up Table'!$K:$K,0),MATCH('TDM Calculator Input'!$C$8,'Point & Trip Red. Look-up Table'!$B$2:$M$2,0))) -> 0 | C21: 1
A22: Universal Transit Pass (API-5.1) | B22: =_xlfn.IFNA(INDEX('Point & Trip Red. Look-up Table'!G38:I49,MATCH('TDM Calculator Input'!C26&'TDM Calculator Input'!C27&'TDM Calculator Input'!C28,'Point & Trip Red. Look-up Table'!L38:L49&'Point & Trip Red. Look-up Table'!M38:M49&'Point & Trip Red. Look-up Table'!K38:K49,0),IF('TDM Calculator Input'!C8='Point & Trip Red. Look-up Table'!G2,1,IF('TDM Calculator Input'!C8='Point & Trip Red. Look-up Table'!H2,2,3))),0) -> 0 | C22: 1
A23: Mobility Wallet (API-5.2) | B23: =_xlfn.IFNA(INDEX('Point & Trip Red. Look-up Table'!G52:I63,MATCH('TDM Calculator Input'!C29&'TDM Calculator Input'!C30&'TDM Calculator Input'!C31,'Point & Trip Red. Look-up Table'!L52:L63&'Point & Trip Red. Look-up Table'!M52:M63&'Point & Trip Red. Look-up Table'!K52:K63,0),IF('TDM Calculator Input'!C8='Point & Trip Red. Look-up Table'!G2,1,IF('TDM Calculator Input'!C8='Point & Trip Red. Look-up Table'!H2,2,3))),0) -> 0 | C23: 1
A24: Ride Home Programs (API-6) | B24: =IF(ISERROR(INDEX('Point & Trip Red. Look-up Table'!$B:$M,MATCH('TDM Calculator Input'!C32,'Point & Trip Red. Look-up Table'!$K:$K,0),MATCH('TDM Calculator Input'!$C$8,'Point & Trip Red. Look-up Table'!$B$2:$M$2,0))),0,INDEX('Point & Trip Red. Look-up Table'!$B:$M,MATCH('TDM Calculator Input'!C32,'Point & Trip Red. Look-up Table'!$K:$K,0),MATCH('TDM Calculator Input'!$C$8,'Point & Trip Red. Look-up Table'!$B$2:$M$2,0))) -> 0 | C24: 1
A25: Internet Access Amenity (API-7) | B25: =IF(ISERROR(INDEX('Point & Trip Red. Look-up Table'!$B:$M,MATCH('TDM Calculator Input'!C33,'Point & Trip Red. Look-up Table'!$K:$K,0),MATCH('TDM Calculator Input'!$C$8,'Point & Trip Red. Look-up Table'!$B$2:$M$2,0))),0,INDEX('Point & Trip Red. Look-up Table'!$B:$M,MATCH('TDM Calculator Input'!C33,'Point & Trip Red. Look-up Table'!$K:$K,0),MATCH('TDM Calculator Input'!$C$8,'Point & Trip Red. Look-up Table'!$B$2:$M$2,0))) -> 0 | C25: 1
A26: Telecommuting Work Option (API-8) | B26: =IF('TDM Calculator Input'!C34="Yes",INDEX('Point & Trip Red. Look-up Table'!$B:$M,MATCH(A26,'Point & Trip Red. Look-up Table'!$B:$B,0)+1,MATCH('TDM Calculator Input'!$C$8,'Point & Trip Red. Look-up Table'!$B$2:$M$2,0)),0) -> 0
A27: On-Site Daycare or School (API-9) | B27: =IF('TDM Calculator Input'!C35="Yes",INDEX('Point & Trip Red. Look-up Table'!$B:$M,MATCH(A27,'Point & Trip Red. Look-up Table'!$B:$B,0)+1,MATCH('TDM Calculator Input'!$C$8,'Point & Trip Red. Look-up Table'!$B$2:$M$2,0)),0) -> 0 | C27: 1
A28: Delivery-Supportive Amenities (API-10) | B28: =IF('TDM Calculator Input'!C36="Yes",INDEX('Point & Trip Red. Look-up Table'!$B:$M,MATCH(A28,'Point & Trip Red. Look-up Table'!$B:$B,0)+1,MATCH('TDM Calculator Input'!$C$8,'Point & Trip Red. Look-up Table'!$B$2:$M$2,0)),0) -> 0 | C28: 1
A29: Total Possible for Category | B29: =1-((1-B27))*((1-B28))*((1-B20))*((1-B21))*((1-B22))*((1-B23))*((1-B24))*((1-B25)*(1-B18)*(1-B19)*(1-B26)) -> 0 | E29: =IF(B29>D18,"Amount Exceeds Maximum", "Does Not Exceed Maximum") -> Does Not Exceed Maximum
A30: Sustainable Mode Improvement Measures
A32: Pedestrian Access and Connectivity Improvements (SM-1) | B32: =IF(ISERROR(INDEX('Point & Trip Red. Look-up Table'!$B77:$M86,MATCH('TDM Calculator Input'!C40,'Point & Trip Red. Look-up Table'!$K77:$K86,0),MATCH('TDM Calculator Input'!$C$8,'Point & Trip Red. Look-up Table'!$B$2:$M$2,0))),0,INDEX('Point & Trip Red. Look-up Table'!$B77:$M86,MATCH('TDM Calculator Input'!C40,'Point & Trip Red. Look-up Table'!$K77:$K86,0),MATCH('TDM Calculator Input'!$C$8,'Point & Trip Red. Look-up Table'!$B$2:$M$2,0))) -> 0 | C32: 1 | D32: =IF('TDM Calculator Input'!$C$8="Downtown", 60%, IF('TDM Calculator Input'!$C$8="Urban", 40%, IF('TDM Calculator Input'!$C$8="Urban Transition", 20%, 0))) -> 0
A33: Bicycle Access and Connectivity (SM-2) | B33: =IF(ISERROR(INDEX('Point & Trip Red. Look-up Table'!$B88:$M97,MATCH('TDM Calculator Input'!C41,'Point & Trip Red. Look-up Table'!$K88:$K97,0),MATCH('TDM Calculator Input'!$C$8,'Point & Trip Red. Look-up Table'!$B$2:$M$2,0))),0,INDEX('Point & Trip Red. Look-up Table'!$B88:$M97,MATCH('TDM Calculator Input'!C41,'Point & Trip Red. Look-up Table'!$K88:$K97,0),MATCH('TDM Calculator Input'!$C$8,'Point & Trip Red. Look-up Table'!$B$2:$M$2,0))) -> 0 | C33: 1
A34: Transit Access and Connectivity (SM-3) | B34: =IF(ISERROR(INDEX('Point & Trip Red. Look-up Table'!$B99:$M113,MATCH('TDM Calculator Input'!C42,'Point & Trip Red. Look-up Table'!$K99:$K113,0),MATCH('TDM Calculator Input'!$C$8,'Point & Trip Red. Look-up Table'!$B$2:$M$2,0))),0,INDEX('Point & Trip Red. Look-up Table'!$B99:$M113,MATCH('TDM Calculator Input'!C42,'Point & Trip Red. Look-up Table'!$K99:$K113,0),MATCH('TDM Calculator Input'!$C$8,'Point & Trip Red. Look-up Table'!$B$2:$M$2,0))) -> 0 | C34: 1
A35: Rideshare Access and Connectivity (SM-4) | B35: =IF(ISERROR(INDEX('Point & Trip Red. Look-up Table'!$B115:$M124,MATCH('TDM Calculator Input'!C43,'Point & Trip Red. Look-up Table'!$K115:$K124,0),MATCH('TDM Calculator Input'!$C$8,'Point & Trip Red. Look-up Table'!$B$2:$M$2,0))),0,INDEX('Point & Trip Red. Look-up Table'!$B115:$M124,MATCH('TDM Calculator Input'!C43,'Point & Trip Red. Look-up Table'!$K115:$K124,0),MATCH('TDM Calculator Input'!$C$8,'Point & Trip Red. Look-up Table'!$B$2:$M$2,0))) -> 0 | C35: 1
A36: Emerging Mobility Access and Connectivity (SM-5) | B36: =IF(ISERROR(INDEX('Point & Trip Red. Look-up Table'!$B126:$M130,MATCH('TDM Calculator Input'!C44,'Point & Trip Red. Look-up Table'!$K126:$K130,0),MATCH('TDM Calculator Input'!$C$8,'Point & Trip Red. Look-up Table'!$B$2:$M$2,0))),0,INDEX('Point & Trip Red. Look-up Table'!$B126:$M130,MATCH('TDM Calculator Input'!C44,'Point & Trip Red. Look-up Table'!$K126:$K130,0),MATCH('TDM Calculator Input'!$C$8,'Point & Trip Red. Look-up Table'!$B$2:$M$2,0))) -> 0 | C36: 1
A37: Site Plan Access and Connectivity (SM-6) | B37: =IF(ISERROR(INDEX('Point & Trip Red. Look-up Table'!$B132:$M136,MATCH('TDM Calculator Input'!C45,'Point & Trip Red. Look-up Table'!$K132:$K136,0),MATCH('TDM Calculator Input'!$C$8,'Point & Trip Red. Look-up Table'!$B$2:$M$2,0))),0,INDEX('Point & Trip Red. Look-up Table'!$B132:$M136,MATCH('TDM Calculator Input'!C45,'Point & Trip Red. Look-up Table'!$K132:$K136,0),MATCH('TDM Calculator Input'!$C$8,'Point & Trip Red. Look-up Table'!$B$2:$M$2,0))) -> 0 | C37: 1
A38: Total Possible for Category | B38: =1-((1-B32))*((1-B33))*((1-B34))*((1-B35))*((1-B36))*((1-B37))*((1-B37)) -> 0 | E38: =IF(B38>D32,"Amount Exceeds Maximum", "Does Not Exceed Maximum") -> Does Not Exceed Maximum
A40: Reduction by Category
A42: Contextual Trip Reduction | B42: =B8 -> 0
A43: Parking Measures | B43: =B15 -> 0
A44: Amenities, Programs & Incentives Measures | B44: =B29 -> 0
A45: Sustainable Modes Improvement Measures | B45: =B38 -> 0
A46: Total Potential TDM Program Reduction | B46: =1-((1-B42))*((1-B43))*((1-B44))*((1-B45)) -> 0
A47: Maximums by Category
A49: Contextual Trip Reduction | B49: =IF('TDM Calculator Input'!$C$8='Point & Trip Red. Look-up Table'!G2, 40%, IF('TDM Calculator Input'!$C$8='Point & Trip Red. Look-up Table'!H2, 30%, IF('TDM Calculator Input'!$C$8='Point & Trip Red. Look-up Table'!I2, 25%, 0))) -> 0
A50: Parking Measures | B50: =IF('TDM Calculator Input'!$C$8='Point & Trip Red. Look-up Table'!G2, 20%, IF('TDM Calculator Input'!$C$8='Point & Trip Red. Look-up Table'!H2, 10%, IF('TDM Calculator Input'!$C$8='Point & Trip Red. Look-up Table'!I2, 5%, 0))) -> 0
A51: Amenities, Programs & Incentives Measures | B51: =IF('TDM Calculator Input'!$C$8='Point & Trip Red. Look-up Table'!G2, 20%, IF('TDM Calculator Input'!$C$8='Point & Trip Red. Look-up Table'!H2, 10%, IF('TDM Calculator Input'!$C$8='Point & Trip Red. Look-up Table'!I2, 5%, 0))) -> 0
A52: Sustainable Modes Improvement Measures | B52: =IF('TDM Calculator Input'!$C$8='Point & Trip Red. Look-up Table'!G2, 60%, IF('TDM Calculator Input'!$C$8='Point & Trip Red. Look-up Table'!H2, 40%, IF('TDM Calculator Input'!$C$8='Point & Trip Red. Look-up Table'!I2, 20%, 0))) -> 0
A53: Overall Maximum | B53: =IF('TDM Calculator Input'!$C$8="Downtown",100%, IF('TDM Calculator Input'!$C$8="Urban", 60%, IF('TDM Calculator Input'!$C$8="Urban Transition", 30%, 0))) -> 0
A54: Allowable Reduction by Category
A56: Contextual Trip Reduction | B56: =IF(B42<B49,B42,B49) -> 0
A57: Parking Measures | B57: =IF(B43<B50,B43,B50) -> 0
A58: Amenities, Programs & Incentives Measures | B58: =IF(B44<B51,B44,B51) -> 0
A59: Sustainable Modes Improvement Measures | B59: =IF(B45<B52,B45,B52) -> 0
A60: Total Before Overall Maximum is Applied | B60: =1-((1-B56))*((1-B57))*((1-B58))*((1-B59)) -> 0
A61: Total Allowable TDM Program Reduction | B61: =IF(B60<B53,B60,B53) -> 0

Sheet Revised_LUVMET (hidden)
B2: Land Use Category | E2: ITE Land Use Code | F2: Land Use Description | G2: Development Unit | H2: Trip Gen Rate (PM) | I2: Pass-by Rate | J2: Pass-by Source | K2: Trip Rate | L2: Trip Length Inside Loop (mi) | M2: Trip Length Outside Loop (mi) | N2: Modeled Trip Length Source | O2: NCTCOG Trip Length (mi) | P2: Adj. For O-D | Q2: Adj. Trip Length Inside Loop (mi) | R2: Adj. Trip Length Oustide Loop (mi) | S2: Max Trip Length Inside Loop (mi) | T2: Max Trip Length Oustide Loop (mi) | U2: Veh-Mi Per Dev-Unit Inside Loop | W2: Collection Fee Per Dev-Unit SA A | X2: Collection Fee Per Dev-Unit SA B | Y2: Collection Fee Per Dev-Unit SA C | Z2: Collection Fee Per Dev-Unit SA D | AA2: Collection Fee Per Dev-Unit SA E | AB2: Collection Fee Per Dev-Unit SA F | AC2: Collection Fee Per Dev-Unit SA G | AD2: Collection Fee Per Dev-Unit SA H | AE2: Collection Fee Per Dev-Unit SA I | AF2: Collection Fee Per Dev-Unit SA J | AG2: Collection Fee Per Dev-Unit SA K | AH2: Collection Fee Per Dev-Unit SA L | AI2: Collection Fee Per Dev-Unit SA M | AJ2: Collection Fee Per Dev-Unit SA N | AK2: Collection Fee Per Dev-Unit SA O | AL2: Collection Fee Per Dev-Unit SA P | AM2: Collection Fee Per Dev-Unit SA DT
B4: PORT AND TERMINAL
B5: Truck Terminal | E5: 030 | F5: Point of good transfer between trucks or between trucks and rail | G5: 1,000 SF GFA | H5: 1.87 | K5: 1.87 | L5: 10.7 | M5: 10.7 | N5: RPA | O5: 10.02 | P5: 0.5 | Q5: 5.35 | R5: 5.35 | S5: 5.35 | T5: 5.35 | U5: 10 | W5: 7360 | X5: 22395 | Y5: 18210 | Z5: 11090 | AA5: 10215 | AB5: 8020 | AC5: 15355 | AD5: 7715 | AE5: 8560 | AF5: 18620 | AG5: 28760 | AH5: 12600 | AI5: 12075 | AJ5: 7535 | AK5: 19605 | AL5: 15055 | AM5: 6805
B6: INDUSTRIAL
B7: General Light Industrial | E7: 110 | F7: Emphasis on activities other than manufacturing; typically employing fewer than 500 workers | G7: 1,000 SF GFA | H7: 0.63 | K7: 0.63 | L7: 6.15 | M7: 12.89 | N7: ATG | O7: 10.02 | P7: 0.5 | Q7: 3.07 | R7: 6.45 | S7: 3.07 | T7: 6 | U7: 1.93 | W7: 2782.08 | X7: 8465.31 | Y7: 6883.38 | Z7: 4192.02 | AA7: 3861.27 | AB7: 1547.86 | AC7: 5804.19 | AD7: 2916.27 | AE7: 1652.08 | AF7: 3593.66 | AG7: 10871.28 | AH7: 2431.8 | AI7: 4564.35 | AJ7: 2848.23 | AK7: 7410.69 | AL7: 5690.79 | AM7: 1313.37
B8: Industrial Park | E8: 130 | G8: 1,000 SF GFA | H8: 0.4 | K8: 0.4 | L8: 6.15 | M8: 12.89 | N8: ATG | O8: 10.02 | P8: 0.5 | Q8: 3.07 | R8: 6.45 | S8: 3.07 | T8: 6 | U8: 1.23 | W8: 1766.4 | X8: 5374.8 | Y8: 4370.4 | Z8: 2661.6 | AA8: 2451.6 | AB8: 986.46 | AC8: 3685.2 | AD8: 1851.6 | AE8: 1052.88 | AF8: 2290.26 | AG8: 6902.4 | AH8: 1549.8 | AI8: 2898 | AJ8: 1808.4 | AK8: 4705.2 | AL8: 3613.2 | AM8: 837.02
B9: Manufacturing | E9: 140 | F9: Primary activity is conversion of raw materials or parts into finished products | G9: 1,000 SF GFA | H9: 0.67 | K9: 0.67 | L9: 6.15 | M9: 12.89 | N9: ATG | O9: 10.02 | P9: 0.5 | Q9: 3.07 | R9: 6.45 | S9: 3.07 | T9: 6 | U9: 2.06 | W9: 2958.72 | X9: 9002.79 | Y9: 7320.42 | Z9: 4458.18 | AA9: 4106.43 | AB9: 1652.12 | AC9: 6172.71 | AD9: 3101.43 | AE9: 1763.36 | AF9: 3835.72 | AG9: 11561.52 | AH9: 2595.6 | AI9: 4854.15 | AJ9: 3029.07 | AK9: 7881.21 | AL9: 6052.11 | AM9: 1401.83
B10: Warehousing | E10: 150 | F10: Devoted to storage of materials but may included office and maintenance areas | G10: 1,000 SF GFA | H10: 0.19 | K10: 0.19 | L10: 6.15 | M10: 12.89 | N10: ATG | O10: 10.83 | P10: 0.5 | Q10: 3.07 | R10: 6.45 | S10: 3.07 | T10: 6 | U10: 0.58 | W10: 839.04 | X10: 2553.03 | Y10: 2075.94 | Z10: 1264.26 | AA10: 1164.51 | AB10: 465.16 | AC10: 1750.47 | AD10: 879.51 | AE10: 496.48 | AF10: 1079.96 | AG10: 3278.64 | AH10: 730.8 | AI10: 1376.55 | AJ10: 858.99 | AK10: 2234.97 | AL10: 1716.27 | AM10: 394.69
B11: Mini-Warehouse | E11: 151 | F11: Facilities with a number of units rented to others for the storage of goods | G11: 1,000 SF GFA | H11: 0.17 | K11: 0.17 | L11: 6.15 | M11: 12.89 | N11: ATG | O11: 10.83 | P11: 0.5 | Q11: 3.07 | R11: 6.45 | S11: 3.07 | T11: 6 | U11: 0.52 | W11: 750.72 | X11: 2284.29 | Y11: 1857.42 | Z11: 1131.18 | AA11: 1041.93 | AB11: 417.04 | AC11: 1566.21 | AD11: 786.93 | AE11: 445.12 | AF11: 968.24 | AG11: 2933.52 | AH11: 655.2 | AI11: 1231.65 | AJ11: 768.57 | AK11: 1999.71 | AL11: 1535.61 | AM11: 353.86
B12: RESIDENTIAL
B13: Single-Family Detached Housing | E13: 210 | F13: Single-family detached homes on individual lots | G13: Dwelling Unit | H13: 0.99 | K13: 0.99 | L13: 5.81 | M13: 8.59 | N13: ATG | O13: 17.21 | P13: 0.5 | Q13: 2.9 | R13: 4.3 | S13: 2.9 | T13: 4.3 | U13: 2.87 | W13: 2194.75 | X13: 6678.19 | Y13: 5430.22 | Z13: 3307.04 | AA13: 3046.11 | AB13: 1611.22 | AC13: 4578.86 | AD13: 2300.61 | AE13: 1719.7 | AF13: 3740.76 | AG13: 8576.23 | AH13: 2531.34 | AI13: 3600.77 | AJ13: 2246.94 | AK13: 5846.21 | AL13: 4489.4 | AM13: 1367.12
B14: Townhomes / Duplexes / Triplexes / 4-Plexes / ADUs | E14: 220 | F14: At least 4 rental dwelling units per building | G14: Dwelling Unit | H14: 0.56 | K14: 0.56 | L14: 5.81 | M14: 8.59 | N14: ATG | O14: 17.21 | P14: 0.5 | Q14: 2.9 | R14: 4.3 | S14: 2.9 | T14: 4.3 | U14: 1.62 | W14: 1241.63 | X14: 3778.04 | Y14: 3072.03 | Z14: 1870.88 | AA14: 1723.27 | AB14: 909.47 | AC14: 2590.39 | AD14: 1301.52 | AE14: 970.7 | AF14: 2111.51 | AG14: 4851.81 | AH14: 1428.84 | AI14: 2037.05 | AJ14: 1271.15 | AK14: 3307.36 | AL14: 2539.78 | AM14: 771.69
B15: Mid-Rise Apartments or Condominiums | E15: 221 | F15: At least 3 rental dwelling units and between three and ten levels (floors) per building | G15: Dwelling Unit | H15: 0.44 | K15: 0.44 | L15: 5.81 | M15: 8.59 | P15: 0.5 | Q15: 2.9 | R15: 4.3 | S15: 2.9 | T15: 4.3 | U15: 1.28 | W15: 973.73 | X15: 2962.86 | Y15: 2409.18 | Z15: 1467.21 | AA15: 1351.44 | AB15: 718.59 | AC15: 2031.47 | AD15: 1020.69 | AE15: 766.98 | AF15: 1668.35 | AG15: 3804.95 | AH15: 1128.96 | AI15: 1597.52 | AJ15: 996.88 | AK15: 2593.74 | AL15: 1991.78 | AM15: 609.73
B16: High-Rise Apartments or Condominiums | E16: 222 | F16: At least 3 rental dwelling units and more than ten levels (floors) per building | G16: Dwelling Unit | H16: 0.36 | K16: 0.36 | L16: 5.81 | M16: 8.59 | N16: ATG | O16: 17.21 | P16: 0.5 | Q16: 2.9 | R16: 4.3 | S16: 2.9 | T16: 4.3 | U16: 1.04 | W16: 798.56 | X16: 2429.86 | Y16: 1975.79 | Z16: 1203.27 | AA16: 1108.33 | AB16: 583.86 | AC16: 1666.02 | AD16: 837.08 | AE16: 623.17 | AF16: 1355.54 | AG16: 3120.46 | AH16: 917.28 | AI16: 1310.14 | AJ16: 817.55 | AK16: 2127.14 | AL16: 1633.47 | AM16: 495.4
B17: Mobile Home Park | E17: 240 | G17: Dwelling Unit | H17: 0.46 | K17: 0.46 | L17: 5.81 | M17: 8.59 | N17: ATG | O17: 17.21 | P17: 0.5 | Q17: 2.9 | R17: 4.3 | S17: 2.9 | T17: 4.3 | U17: 1.33 | W17: 1020.1 | X17: 3103.95 | Y17: 2523.91 | Z17: 1537.07 | AA17: 1415.8 | AB17: 746.66 | AC17: 2128.2 | AD17: 1069.3 | AE17: 796.94 | AF17: 1733.52 | AG17: 3986.14 | AH17: 1173.06 | AI17: 1673.6 | AJ17: 1044.35 | AK17: 2717.25 | AL17: 2086.62 | AM17: 633.55
B18: Senior Adult Housing-Detached | E18: 251 | F18: Consists of detached independent living developments that include amenities such as golf courses and swimming pools | G18: Dwelling Unit | H18: 0.3 | K18: 0.3 | L18: 5.81 | M18: 8.59 | N18: ATG | O18: 17.21 | P18: 0.5 | Q18: 2.9 | R18: 4.3 | S18: 2.9 | T18: 4.3 | U18: 0.87 | W18: 664.61 | X18: 2022.27 | Y18: 1644.36 | Z18: 1001.43 | AA18: 922.41 | AB18: 488.42 | AC18: 1386.56 | AD18: 696.66 | AE18: 521.3 | AF18: 1133.96 | AG18: 2597.03 | AH18: 767.34 | AI18: 1090.37 | AJ18: 680.41 | AK18: 1770.33 | AL18: 1359.47 | AM18: 414.42
B19: Senior Adult Housing or ADUs | E19: 252 | F19: Consists of attached independent living developments that include limited social or recreation services | G19: Dwelling Unit | H19: 0.26 | K19: 0.26 | L19: 5.81 | M19: 8.59 | N19: ATG | O19: 17.21 | P19: 0.5 | Q19: 2.9 | R19: 4.3 | S19: 2.9 | T19: 4.3 | U19: 0.75 | W19: 577.02 | X19: 1755.77 | Y19: 1427.66 | Z19: 869.46 | AA19: 800.86 | AB19: 421.05 | AC19: 1203.83 | AD19: 604.86 | AE19: 449.4 | AF19: 977.55 | AG19: 2254.78 | AH19: 661.5 | AI19: 946.68 | AJ19: 590.74 | AK19: 1537.03 | AL19: 1180.31 | AM19: 357.26
B20: Assisted Living | E20: 254 | F20: Residential settings that provide either routine general protective oversight or assistance with activities. | G20: Beds | H20: 0.26 | K20: 0.26 | L20: 5.81 | M20: 8.59 | N20: ATG | O20: 17.21 | P20: 0.5 | Q20: 2.9 | R20: 4.3 | S20: 2.9 | T20: 4.3 | U20: 0.75 | W20: 577.02 | X20: 1755.77 | Y20: 1427.66 | Z20: 869.46 | AA20: 800.86 | AB20: 421.05 | AC20: 1203.83 | AD20: 604.86 | AE20: 449.4 | AF20: 977.55 | AG20: 2254.78 | AH20: 661.5 | AI20: 946.68 | AJ20: 590.74 | AK20: 1537.03 | AL20: 1180.31 | AM20: 357.26
B21: LODGING
B22: Hotel | E22: 310 | F22: Lodging facilities that typically have on-site restaurants, lounges, meeting and/or banquet rooms, or other retail shops and services | G22: Room | H22: 0.6 | K22: 0.6 | L22: 5.41 | M22: 5.41 | N22: RPA | O22: 6.43 | P22: 0.5 | Q22: 2.7 | R22: 2.71 | S22: 2.7 | T22: 2.71 | U22: 1.62 | W22: 1199.68 | X22: 3650.39 | Y22: 2968.23 | Z22: 1807.67 | AA22: 1665.05 | AB22: 1299.24 | AC22: 2502.87 | AD22: 1257.55 | AE22: 1386.72 | AF22: 3016.44 | AG22: 4687.88 | AH22: 2041.2 | AI22: 1968.23 | AJ22: 1228.21 | AK22: 3195.62 | AL22: 2453.97 | AM22: 1102.41
B23: Motel / Other Lodging Facilities | E23: 320 | F23: Lodging facilities that may have small on-site restaurant or buffet area but little or no meeting space | G23: Room | H23: 0.38 | K23: 0.38 | L23: 5.41 | M23: 5.41 | N23: RPA | O23: 6.43 | P23: 0.5 | Q23: 2.7 | R23: 2.71 | S23: 2.7 | T23: 2.71 | U23: 1.03 | W23: 758.08 | X23: 2306.69 | Y23: 1875.63 | Z23: 1142.27 | AA23: 1052.15 | AB23: 826.06 | AC23: 1581.57 | AD23: 794.65 | AE23: 881.68 | AF23: 1917.86 | AG23: 2962.28 | AH23: 1297.8 | AI23: 1243.73 | AJ23: 776.11 | AK23: 2019.32 | AL23: 1550.67 | AM23: 700.92
B24: RECREATIONAL
B25: Golf Driving Range | E25: 432 | F25: Facilities with driving tees for practice; may provide individual or group lessons; may have prop shop and/or refreshment facilities | G25: Tee | H25: 1.25 | K25: 1.25 | L25: 5.82 | M25: 6.35 | N25: ATG | O25: 6.43 | P25: 0.5 | Q25: 2.91 | R25: 3.18 | S25: 2.91 | T25: 3.18 | U25: 3.64 | W25: 2929.28 | X25: 8913.21 | Y25: 7247.58 | Z25: 4413.82 | AA25: 4065.57 | AB25: 2919.28 | AC25: 6111.29 | AD25: 3070.57 | AE25: 3115.84 | AF25: 6777.68 | AG25: 11446.48 | AH25: 4586.4 | AI25: 4805.85 | AJ25: 2998.93 | AK25: 7802.79 | AL25: 5991.89 | AM25: 2477.02
B26: Golf Course | E26: 430 | F26: May include municipal courses and private country clubs; may have driving ranges, pro shops, and restaurant/banquet facilities | G26: Acre | H26: 0.28 | K26: 0.28 | L26: 5.82 | M26: 6.35 | N26: ATG | O26: 6.43 | P26: 0.5 | Q26: 2.91 | R26: 3.18 | S26: 2.91 | T26: 3.18 | U26: 0.81 | W26: 655.04 | X26: 1993.16 | Y26: 1620.69 | Z26: 987.01 | AA26: 909.14 | AB26: 649.62 | AC26: 1366.6 | AD26: 686.64 | AE26: 693.36 | AF26: 1508.22 | AG26: 2559.64 | AH26: 1020.6 | AI26: 1074.68 | AJ26: 670.62 | AK26: 1744.85 | AL26: 1339.9 | AM26: 551.21
B27: Recreational Community Center | E27: 495 | F27: Category includes racquet clubs, health/fitness clubs, can include facilities such as YMCA's | G27: 1,000 SF GFA | H27: 2.31 | K27: 2.31 | L27: 5.82 | M27: 6.35 | N27: ATG | O27: 6.43 | P27: 0.5 | Q27: 2.91 | R27: 3.18 | S27: 2.91 | T27: 3.18 | U27: 6.72 | W27: 5409.6 | X27: 16460.33 | Y27: 13384.35 | Z27: 8151.15 | AA27: 7508.03 | AB27: 5389.44 | AC27: 11285.93 | AD27: 5670.53 | AE27: 5752.32 | AF27: 12512.64 | AG27: 21138.6 | AH27: 8467.2 | AI27: 8875.13 | AJ27: 5538.23 | AK27: 14409.68 | AL27: 11065.43 | AM27: 4572.96
B28: Ice Skating Rink | E28: 465 | F28: Rinks for ice skating and related sports; may contain spectator areas and refreshment facilities | G28: 1,000 SF GFA | H28: 1.33 | K28: 1.33 | L28: 5.82 | M28: 6.35 | N28: ATG | O28: 6.43 | P28: 0.5 | Q28: 2.91 | R28: 3.18 | S28: 2.91 | T28: 3.18 | U28: 3.87 | W28: 3113.28 | X28: 9473.09 | Y28: 7702.83 | Z28: 4691.07 | AA28: 4320.95 | AB28: 3103.74 | AC28: 6495.17 | AD28: 3263.45 | AE28: 3312.72 | AF28: 7205.94 | AG28: 12165.48 | AH28: 4876.2 | AI28: 5107.73 | AJ28: 3187.31 | AK28: 8292.92 | AL28: 6368.27 | AM28: 2633.54
B29: Miniature Golf Course | E29: 431 | F29: One or more individual putting courses; category should not be used when part of a larger entertainment center(with batting cages, video game centers, etc) | G29: Hole | H29: 0.33 | K29: 0.33 | L29: 5.82 | M29: 6.35 | N29: ATG | O29: 6.43 | P29: 0.5 | Q29: 2.91 | R29: 3.18 | S29: 2.91 | T29: 3.18 | U29: 0.96 | W29: 772.8 | X29: 2351.48 | Y29: 1912.05 | Z29: 1164.45 | AA29: 1072.58 | AB29: 769.92 | AC29: 1612.28 | AD29: 810.08 | AE29: 821.76 | AF29: 1787.52 | AG29: 3019.8 | AH29: 1209.6 | AI29: 1267.88 | AJ29: 791.18 | AK29: 2058.53 | AL29: 1580.78 | AM29: 653.28
B30: Multiplex Movie Theater | E30: 445 | F30: Movie theater with audience seating, minimum of ten screens, lobby, and refreshment area. | G30: Screens | H30: 13.73 | K30: 13.73 | L30: 5.82 | M30: 6.35 | N30: ATG | O30: 6.43 | P30: 0.5 | Q30: 2.91 | R30: 3.18 | S30: 2.91 | T30: 3.18 | U30: 39.95 | W30: 32133.76 | X30: 97776.57 | Y30: 79504.86 | Z30: 48418.94 | AA30: 44598.69 | AB30: 32039.9 | AC30: 67039.93 | AD30: 33683.69 | AE30: 34197.2 | AF30: 74386.9 | AG30: 125566.16 | AH30: 50337 | AI30: 52719.45 | AJ30: 32897.81 | AK30: 85595.43 | AL30: 65730.13 | AM30: 27185.98
B31: Racquet / Tennis Club | E31: 491 | F31: Indoor or outdoor facilities specifically designed for playing tennis | G31: Court | H31: 3.82 | K31: 3.82 | L31: 5.82 | M31: 6.35 | N31: ATG | O31: 6.43 | P31: 0.5 | Q31: 2.91 | R31: 3.18 | S31: 2.91 | T31: 3.18 | U31: 11.12 | W31: 8942.4 | X31: 27209.93 | Y31: 22125.15 | Z31: 13474.35 | AA31: 12411.23 | AB31: 8918.24 | AC31: 18656.33 | AD31: 9373.73 | AE31: 9518.72 | AF31: 20705.44 | AG31: 34943.4 | AH31: 14011.2 | AI31: 14671.13 | AJ31: 9155.03 | AK31: 23820.08 | AL31: 18291.83 | AM31: 7567.16
B32: INSTITUTIONAL
B33: Religious Place of Worship | E33: 560 | F33: Churches and houses of worship | G33: 1,000 SF GFA | H33: 0.49 | K33: 0.49 | L33: 6.3 | M33: 6.3 | N33: RPA | O33: 4.2 | P33: 0.5 | Q33: 3.15 | R33: 3.15 | S33: 3.15 | T33: 3.15 | U33: 1.54 | W33: 1133.44 | X33: 3448.83 | Y33: 2804.34 | Z33: 1707.86 | AA33: 1573.11 | AB33: 1235.08 | AC33: 2364.67 | AD33: 1188.11 | AE33: 1318.24 | AF33: 2867.48 | AG33: 4429.04 | AH33: 1940.4 | AI33: 1859.55 | AJ33: 1160.39 | AK33: 3019.17 | AL33: 2318.47 | AM33: 1047.97
B34: Day Care Center | E34: 565 | F34: Generally includes facilities for care of pre-school aged children, generally includes classrooms, offices, eating areas, and playgrounds | G34: 1,000 SF GFA | H34: 11.12 | I34: 0.44 | J34: B | K34: 6.23 | L34: 3.39 | M34: 3.39 | N34: RPA | O34: 4.2 | P34: 0.5 | Q34: 1.69 | R34: 1.7 | S34: 1.69 | T34: 1.7 | U34: 10.53 | W34: 7794.24 | X34: 23716.31 | Y34: 19284.39 | Z34: 11744.31 | AA34: 10817.69 | AB34: 8445.06 | AC34: 16260.95 | AD34: 8170.19 | AE34: 9013.68 | AF34: 19606.86 | AG34: 30456.84 | AH34: 13267.8 | AI34: 12787.43 | AJ34: 7979.57 | AK34: 20761.7 | AL34: 15943.25 | AM34: 7165.67
B35: Elementary School | E35: 520 | G35: Students | H35: 0.17 | K35: 0.17 | L35: 3.39 | M35: 3.39 | N35: RPA | O35: 5.2 | P35: 0.5 | Q35: 1.69 | R35: 1.7 | S35: 1.69 | T35: 1.7 | U35: 0.29 | W35: 213.44 | X35: 649.46 | Y35: 528.09 | Z35: 321.61 | AA35: 296.24 | AB35: 232.58 | AC35: 445.3 | AD35: 223.74 | AE35: 248.24 | AF35: 539.98 | AG35: 834.04 | AH35: 365.4 | AI35: 350.18 | AJ35: 218.52 | AK35: 568.55 | AL35: 436.6 | AM35: 197.35
B36: Middle School / Junior High School | E36: 522 | F36: Serves students who have not yet entered high school | G36: Students | H36: 0.17 | K36: 0.17 | L36: 3.39 | M36: 3.39 | N36: RPAre | O36: 4.2 | P36: 0.5 | Q36: 1.69 | R36: 1.7 | S36: 1.69 | T36: 1.7 | U36: 0.29 | W36: 213.44 | X36: 649.46 | Y36: 528.09 | Z36: 321.61 | AA36: 296.24 | AB36: 232.58 | AC36: 445.3 | AD36: 223.74 | AE36: 248.24 | AF36: 539.98 | AG36: 834.04 | AH36: 365.4 | AI36: 350.18 | AJ36: 218.52 | AK36: 568.55 | AL36: 436.6 | AM36: 197.35
B37: High School | E37: 530 | F37: Serves students who have completed middle or junior high school | G37: Students | H37: 0.14 | K37: 0.14 | L37: 3.39 | M37: 3.39 | N37: RPAre | O37: 4.2 | P37: 0.5 | Q37: 1.69 | R37: 1.7 | S37: 1.69 | T37: 1.7 | U37: 0.24 | W37: 176.64 | X37: 537.48 | Y37: 437.04 | Z37: 266.16 | AA37: 245.16 | AB37: 192.48 | AC37: 368.52 | AD37: 185.16 | AE37: 205.44 | AF37: 446.88 | AG37: 690.24 | AH37: 302.4 | AI37: 289.8 | AJ37: 180.84 | AK37: 470.52 | AL37: 361.32 | AM37: 163.32
B38: Junior / Community College | E38: 540 | F38: Two-year junior, community, or technical colleges | G38: Students | H38: 0.11 | K38: 0.11 | L38: 3.39 | M38: 3.39 | N38: RPAre | O38: 4.2 | P38: 0.5 | Q38: 1.69 | R38: 1.7 | S38: 1.69 | T38: 1.7 | U38: 0.19 | W38: 139.84 | X38: 425.51 | Y38: 345.99 | Z38: 210.71 | AA38: 194.09 | AB38: 152.38 | AC38: 291.75 | AD38: 146.59 | AE38: 162.64 | AF38: 353.78 | AG38: 546.44 | AH38: 239.4 | AI38: 229.43 | AJ38: 143.17 | AK38: 372.5 | AL38: 286.05 | AM38: 129.3
B39: University / College | E39: 550 | F39: Four-year universities or colleges that may or may not offer graduate programs | G39: Students | H39: 0.15 | K39: 0.15 | L39: 3.39 | M39: 3.39 | N39: RPAre | O39: 4.2 | P39: 0.5 | Q39: 1.69 | R39: 1.7 | S39: 1.69 | T39: 1.7 | U39: 0.25 | W39: 191.36 | X39: 582.27 | Y39: 473.46 | Z39: 288.34 | AA39: 265.59 | AB39: 200.5 | AC39: 399.23 | AD39: 200.59 | AE39: 214 | AF39: 465.5 | AG39: 747.76 | AH39: 315 | AI39: 313.95 | AJ39: 195.91 | AK39: 509.73 | AL39: 391.43 | AM39: 170.13
B40: MEDICAL
B41: Clinic | E41: 630 | F41: Facilities with limited diagnostic and outpatient care | G41: 1,000 SF GFA | H41: 3.28 | K41: 3.28 | L41: 7.42 | M41: 6.76 | N41: ATG | O41: 7.55 | P41: 0.5 | Q41: 3.71 | R41: 3.38 | S41: 3.71 | T41: 3.38 | U41: 12.17 | W41: 8162.24 | X41: 24836.06 | Y41: 20194.89 | Z41: 12298.81 | AA41: 11328.44 | AB41: 9760.34 | AC41: 17028.7 | AD41: 8555.94 | AE41: 10417.52 | AF41: 22660.54 | AG41: 31894.84 | AH41: 15334.2 | AI41: 13391.18 | AJ41: 8356.32 | AK41: 21741.95 | AL41: 16696 | AM41: 8281.69
B42: Hospital | E42: 610 | F42: Medical and surgical facilities with overnight accommodations | G42: 1,000 SF GFA | H42: 0.97 | K42: 0.97 | L42: 7.42 | M42: 6.76 | N42: ATG | O42: 7.55 | P42: 0.5 | Q42: 3.71 | R42: 3.38 | S42: 3.71 | T42: 3.38 | U42: 3.6 | W42: 2414.08 | X42: 7345.56 | Y42: 5972.88 | Z42: 3637.52 | AA42: 3350.52 | AB42: 2887.2 | AC42: 5036.44 | AD42: 2530.52 | AE42: 3081.6 | AF42: 6703.2 | AG42: 9433.28 | AH42: 4536 | AI42: 3960.6 | AJ42: 2471.48 | AK42: 6430.44 | AL42: 4938.04 | AM42: 2449.8
B43: Nursing Home | E43: 620 | F43: Rest and convalescent homes with residents who do little or no driving | G43: Beds | H43: 0.22 | K43: 0.22 | L43: 7.42 | M43: 6.76 | N43: ATG | O43: 7.55 | P43: 0.5 | Q43: 3.71 | R43: 3.38 | S43: 3.71 | T43: 3.38 | U43: 0.82 | W43: 544.64 | X43: 1657.23 | Y43: 1347.54 | Z43: 820.66 | AA43: 755.91 | AB43: 657.64 | AC43: 1136.27 | AD43: 570.91 | AE43: 701.92 | AF43: 1526.84 | AG43: 2128.24 | AH43: 1033.2 | AI43: 893.55 | AJ43: 557.59 | AK43: 1450.77 | AL43: 1114.07 | AM43: 558.01
B44: Animal Hospital/Veterinary Clinic | E44: 640 | F44: Rest and convalescent homes with residents who do little or no driving | G44: 1,000 SF GFA | H44: 3.53 | I44: 0.3 | J44: B | K44: 2.47 | L44: 7.42 | M44: 6.76 | N44: ATG | O44: 7.55 | P44: 0.5 | Q44: 3.71 | R44: 3.38 | S44: 3.71 | T44: 3.38 | U44: 9.16 | W44: 6145.6 | X44: 18699.83 | Y44: 15205.35 | Z44: 9260.15 | AA44: 8529.53 | AB44: 7346.32 | AC44: 12821.43 | AD44: 6442.03 | AE44: 7840.96 | AF44: 17055.92 | AG44: 24014.6 | AH44: 11541.6 | AI44: 10082.63 | AJ44: 6291.73 | AK44: 16370.18 | AL44: 12570.93 | AM44: 6233.38
B45: OFFICE
B46: Corporate Headquarters Building | E46: 714 | F46: Office building housing corporate headquarters of a single company or organization | G46: 1,000 SF GFA | H46: 0.6 | K46: 0.6 | L46: 7.42 | M46: 6.76 | N46: ATG | O46: 10.92 | P46: 0.5 | Q46: 3.71 | R46: 3.38 | S46: 3.71 | T46: 3.38 | U46: 2.23 | W46: 1494.08 | X46: 4546.19 | Y46: 3696.63 | Z46: 2251.27 | AA46: 2073.65 | AB46: 1788.46 | AC46: 3117.07 | AD46: 1566.15 | AE46: 1908.88 | AF46: 4152.26 | AG46: 5838.28 | AH46: 2809.8 | AI46: 2451.23 | AJ46: 1529.61 | AK46: 3979.82 | AL46: 3056.17 | AM46: 1517.52
B47: General Office Building | E47: 710 | F47: Office buildings which house multiple tenants | G47: 1,000 SF GFA | H47: 1.15 | K47: 1.15 | L47: 7.42 | M47: 6.76 | N47: ATG | O47: 10.92 | P47: 0.5 | Q47: 3.71 | R47: 3.38 | S47: 3.71 | T47: 3.38 | U47: 4.27 | W47: 2863.04 | X47: 8711.66 | Y47: 7083.69 | Z47: 4314.01 | AA47: 3973.64 | AB47: 3424.54 | AC47: 5973.1 | AD47: 3001.14 | AE47: 3655.12 | AF47: 7950.74 | AG47: 11187.64 | AH47: 5380.2 | AI47: 4697.18 | AJ47: 2931.12 | AK47: 7626.35 | AL47: 5856.4 | AM47: 2905.74
B48: Medical-Dental Office Building | E48: 720 | F48: Multi-tenant building with offices for physicians and/or dentists | G48: 1,000 SF GFA | H48: 3.46 | K48: 3.46 | L48: 7.42 | M48: 6.76 | N48: ATG | O48: 10.92 | P48: 0.5 | Q48: 3.71 | R48: 3.38 | S48: 3.71 | T48: 3.38 | U48: 12.84 | W48: 8603.84 | X48: 26179.76 | Y48: 21287.49 | Z48: 12964.21 | AA48: 11941.34 | AB48: 10297.68 | AC48: 17950 | AD48: 9018.84 | AE48: 10991.04 | AF48: 23908.08 | AG48: 33620.44 | AH48: 16178.4 | AI48: 14115.68 | AJ48: 8808.42 | AK48: 22918.25 | AL48: 17599.3 | AM48: 8737.62
B49: Single Tenant Office Building | E49: 715 | F49: Single tenant office buildings other than corporate headquarters | G49: 1,000 SF GFA | H49: 1.71 | K49: 1.71 | L49: 7.42 | M49: 6.76 | N49: ATG | O49: 10.92 | P49: 0.5 | Q49: 3.71 | R49: 3.38 | S49: 3.71 | T49: 3.38 | U49: 6.34 | W49: 4254.08 | X49: 12944.31 | Y49: 10525.38 | Z49: 6410.02 | AA49: 5904.27 | AB49: 5084.68 | AC49: 8875.19 | AD49: 4459.27 | AE49: 5427.04 | AF49: 11805.08 | AG49: 16623.28 | AH49: 7988.4 | AI49: 6979.35 | AJ49: 4355.23 | AK49: 11331.69 | AL49: 8701.79 | AM49: 4314.37
B50: Office Park | E50: 750 | F50: Office buildings (typically low-rise) in a campus setting and served by a common roadway system | G50: 1,000 SF GFA | H50: 1.07 | K50: 1.07 | L50: 7.42 | M50: 6.76 | N50: ATG | O50: 10.92 | P50: 0.5 | Q50: 3.71 | R50: 3.38 | S50: 3.71 | T50: 3.38 | U50: 3.97 | W50: 2664.32 | X50: 8106.99 | Y50: 6592.02 | Z50: 4014.58 | AA50: 3697.83 | AB50: 3183.94 | AC50: 5558.51 | AD50: 2792.83 | AE50: 3398.32 | AF50: 7392.14 | AG50: 10411.12 | AH50: 5002.2 | AI50: 4371.15 | AJ50: 2727.67 | AK50: 7097.01 | AL50: 5449.91 | AM50: 2701.59
B51: COMMERCIAL
B52: AUTOMOBILE RELATED
B53: Automobile Care Center | E53: 942 | F53: Automobile repair and servicing including stereo installations and upholstering | G53: 1,000 SF GFA | H53: 3.11 | I53: 0.4 | J53: B | K53: 1.87 | L53: 5.41 | M53: 5.41 | N53: RPA | O53: 6.43 | P53: 0.5 | Q53: 2.7 | R53: 2.71 | S53: 2.7 | T53: 2.71 | U53: 5.05 | W53: 3731.52 | X53: 11354.27 | Y53: 9232.47 | Z53: 5622.63 | AA53: 5179.01 | AB53: 4050.1 | AC53: 7784.99 | AD53: 3911.51 | AE53: 4322.8 | AF53: 9403.1 | AG53: 14581.32 | AH53: 6363 | AI53: 6122.03 | AJ53: 3820.25 | AK53: 9939.74 | AL53: 7632.89 | AM53: 3436.53
B54: Automobile Parts Sales | E54: 843 | F54: Retail sale of auto parts but no on-site vehicle repair | G54: 1,000 SF GFA | H54: 4.91 | I54: 0.43 | J54: A | K54: 2.8 | L54: 5.41 | M54: 5.41 | N54: RPA | O54: 6.43 | P54: 0.5 | Q54: 2.7 | R54: 2.71 | S54: 2.7 | T54: 2.71 | U54: 7.56 | W54: 5586.24 | X54: 16997.81 | Y54: 13821.39 | Z54: 8417.31 | AA54: 7753.19 | AB54: 6063.12 | AC54: 11654.45 | AD54: 5855.69 | AE54: 6471.36 | AF54: 14076.72 | AG54: 21828.84 | AH54: 9525.6 | AI54: 9164.93 | AJ54: 5719.07 | AK54: 14880.2 | AL54: 11426.75 | AM54: 5144.58
B55: Gasoline/Service Station | E55: 944 | F55: Gasoline sales without convenience store or car wash; may include repair | G55: Vehicle Fueling Position | H55: 14.03 | I55: 0.42 | J55: A | K55: 8.14 | L55: 1.2 | M55: 1.2 | N55: RPA | O55: 1.2 | P55: 0.5 | Q55: 0.6 | R55: 0.6 | S55: 0.6 | T55: 0.6 | U55: 4.88 | W55: 3591.68 | X55: 10928.76 | Y55: 8886.48 | Z55: 5411.92 | AA55: 4984.92 | AB55: 3913.76 | AC55: 7493.24 | AD55: 3764.92 | AE55: 4177.28 | AF55: 9086.56 | AG55: 14034.88 | AH55: 6148.8 | AI55: 5892.6 | AJ55: 3677.08 | AK55: 9567.24 | AL55: 7346.84 | AM55: 3320.84
B56: Gasoline/Service Station w/ Conv Market | E56: 945 | F56: Gasoline sales with convenience store and car washes where the primary business is gasoline sales | G56: Vehicle Fueling Position | H56: 13.99 | I56: 0.56 | J56: B | K56: 6.16 | L56: 1.2 | M56: 1.2 | N56: RPA | O56: 1.2 | P56: 0.5 | Q56: 0.6 | R56: 0.6 | S56: 0.6 | T56: 0.6 | U56: 3.7 | W56: 2723.2 | X56: 8286.15 | Y56: 6737.7 | Z56: 4103.3 | AA56: 3779.55 | AB56: 2967.4 | AC56: 5681.35 | AD56: 2854.55 | AE56: 3167.2 | AF56: 6889.4 | AG56: 10641.2 | AH56: 4662 | AI56: 4467.75 | AJ56: 2787.95 | AK56: 7253.85 | AL56: 5570.35 | AM56: 2517.85
B57: New Car Sales | E57: 841 | F57: New car dealerships, typically with automobile servicing, part sales, and used car sales | G57: 1,000 SF GFA | H57: 2.43 | I57: 0.2 | J57: B | K57: 1.94 | L57: 5.41 | M57: 5.41 | N57: RPA | O57: 6.43 | P57: 0.5 | Q57: 2.7 | R57: 2.71 | S57: 2.7 | T57: 2.71 | U57: 5.24 | W57: 3871.36 | X57: 11779.77 | Y57: 9578.46 | Z57: 5833.34 | AA57: 5373.09 | AB57: 4202.48 | AC57: 8076.73 | AD57: 4058.09 | AE57: 4485.44 | AF57: 9756.88 | AG57: 15127.76 | AH57: 6602.4 | AI57: 6351.45 | AJ57: 3963.41 | AK57: 10312.23 | AL57: 7918.93 | AM57: 3565.82
B58: Quick Lubrication Vehicle Shop | E58: 941 | F58: Primary business is to perform oil changes and fluid/filter changes with other repair services not provided | G58: Servicing Positions | H58: 4.85 | I58: 0.4 | J58: B | K58: 2.91 | L58: 5.41 | M58: 5.41 | N58: RPA | O58: 6.43 | P58: 0.5 | Q58: 2.7 | R58: 2.71 | S58: 2.7 | T58: 2.71 | U58: 7.86 | W58: 5807.04 | X58: 17669.66 | Y58: 14367.69 | Z58: 8750.01 | AA58: 8059.64 | AB58: 6303.72 | AC58: 12115.1 | AD58: 6087.14 | AE58: 6728.16 | AF58: 14635.32 | AG58: 22691.64 | AH58: 9903.6 | AI58: 9527.18 | AJ58: 5945.12 | AK58: 15468.35 | AL58: 11878.4 | AM58: 5348.73
B59: Self-Service Car Wash | E59: 947 | F59: Has stalls for driver to park and wash the vehicle | G59: Stall | H59: 5.54 | I59: 0.4 | J59: B | K59: 3.32 | L59: 1.2 | M59: 1.2 | N59: RPA | O59: 1.2 | P59: 0.5 | Q59: 0.6 | R59: 0.6 | S59: 0.6 | T59: 0.6 | U59: 1.99 | W59: 1464.64 | X59: 4456.61 | Y59: 3623.79 | Z59: 2206.91 | AA59: 2032.79 | AB59: 1595.98 | AC59: 3055.65 | AD59: 1535.29 | AE59: 1703.44 | AF59: 3705.38 | AG59: 5723.24 | AH59: 2507.4 | AI59: 2402.93 | AJ59: 1499.47 | AK59: 3901.4 | AL59: 2995.95 | AM59: 1354.2
B60: Tire Store | E60: 848 | F60: Primary business is sales and installation of tires; usually do not have large storage or warehouse area | G60: 1,000 SF GFA | H60: 3.98 | I60: 0.28 | J60: A | K60: 2.87 | L60: 5.41 | M60: 5.41 | N60: RPA | O60: 6.43 | P60: 0.5 | Q60: 2.7 | R60: 2.71 | S60: 2.7 | T60: 2.71 | U60: 7.75 | W60: 5726.08 | X60: 17423.31 | Y60: 14167.38 | Z60: 8628.02 | AA60: 7947.27 | AB60: 6215.5 | AC60: 11946.19 | AD60: 6002.27 | AE60: 6634 | AF60: 14430.5 | AG60: 22375.28 | AH60: 9765 | AI60: 9394.35 | AJ60: 5862.23 | AK60: 15252.69 | AL60: 11712.79 | AM60: 5273.88
B61: DINING
B62: Fast Food Restaurant with Drive-Thru Window | E62: 934 | F62: High-turnover fast food restaurant for carry-out and eat-in customers with a drive-thru window | G62: 1,000 SF GFA | H62: 32.67 | I62: 0.5 | J62: A | K62: 16.34 | L62: 3.39 | M62: 3.39 | N62: RPA | O62: 4.79 | P62: 0.5 | Q62: 1.69 | R62: 1.7 | S62: 1.69 | T62: 1.7 | U62: 27.61 | W62: 20446.08 | X62: 62213.31 | Y62: 50587.38 | Z62: 30808.02 | AA62: 28377.27 | AB62: 22143.22 | AC62: 42656.19 | AD62: 21432.27 | AE62: 23634.16 | AF62: 51409.82 | AG62: 79895.28 | AH62: 34788.6 | AI62: 33544.35 | AJ62: 20932.23 | AK62: 54462.69 | AL62: 41822.79 | AM62: 18788.61
B63: Fast Food Restaurant without Drive-Thru Window | E63: 933 | F63: High-turnover fast food restaurant for carry-out and eat-in customers, but without a drive-thru window | G63: 1,000 SF GFA | H63: 28.34 | I63: 0.5 | J63: B | K63: 14.17 | L63: 3.39 | M63: 3.39 | N63: RPA | O63: 4.79 | P63: 0.5 | Q63: 1.69 | R63: 1.7 | S63: 1.69 | T63: 1.7 | U63: 23.95 | W63: 17730.24 | X63: 53949.56 | Y63: 43867.89 | Z63: 26715.81 | AA63: 24607.94 | AB63: 19207.9 | AC63: 36990.2 | AD63: 18585.44 | AE63: 20501.2 | AF63: 44594.9 | AG63: 69282.84 | AH63: 30177 | AI63: 29088.68 | AJ63: 18151.82 | AK63: 47228.45 | AL63: 36267.5 | AM63: 16297.98
B64: High Turnover (Sit-Down) Restaurant | E64: 932 | F64: Restaurants with turnover rates less than one hour; typically includes moderately-priced chain restaurants | G64: 1,000 SF GFA | H64: 9.77 | I64: 0.43 | J64: A | K64: 5.57 | L64: 5.41 | M64: 5.41 | N64: RPA | O64: 4.79 | P64: 0.5 | Q64: 2.7 | R64: 2.71 | S64: 2.7 | T64: 2.71 | U64: 15.04 | W64: 11106.24 | X64: 33794.06 | Y64: 27478.89 | Z64: 16734.81 | AA64: 15414.44 | AB64: 12062.08 | AC64: 23170.7 | AD64: 11641.94 | AE64: 12874.24 | AF64: 28004.48 | AG64: 43398.84 | AH64: 18950.4 | AI64: 18221.18 | AJ64: 11370.32 | AK64: 29583.95 | AL64: 22718 | AM64: 10234.72
B65: Sit Down Restaurant | E65: 931 | F65: Restaurants with turnover rates of one hour or longer; typically require reservations | G65: 1,000 SF GFA | H65: 7.8 | I65: 0.44 | J65: A | K65: 4.37 | L65: 5.41 | M65: 5.41 | N65: RPA | O65: 4.79 | P65: 0.5 | Q65: 2.7 | R65: 2.71 | S65: 2.7 | T65: 2.71 | U65: 11.8 | W65: 8714.24 | X65: 26515.68 | Y65: 21560.64 | Z65: 13130.56 | AA65: 12094.56 | AB65: 9463.6 | AC65: 18180.32 | AD65: 9134.56 | AE65: 10100.8 | AF65: 21971.6 | AG65: 34051.84 | AH65: 14868 | AI65: 14296.8 | AJ65: 8921.44 | AK65: 23212.32 | AL65: 17825.12 | AM65: 8029.9
B66: Coffee/Donut Shop with Drive-Thru Window | E66: 937 | F66: Coffee and Donut restaurants with drive-through windows, hold long store hours and have limited indoor seating | G66: 1,000 SF GFA | H66: 43.38 | I66: 0.7 | J66: A | K66: 13.01 | L66: 1.2 | M66: 1.2 | N66: RPA | O66: 4.79 | P66: 0.5 | Q66: 0.6 | R66: 0.6 | S66: 0.6 | T66: 0.6 | U66: 7.81 | W66: 5748.16 | X66: 17490.5 | Y66: 14222.01 | Z66: 8661.29 | AA66: 7977.92 | AB66: 6263.62 | AC66: 11992.26 | AD66: 6025.42 | AE66: 6685.36 | AF66: 14542.22 | AG66: 22461.56 | AH66: 9840.6 | AI66: 9430.58 | AJ66: 5884.84 | AK66: 15311.51 | AL66: 11757.96 | AM66: 5314.71
B67: OTHER RETAIL
B68: Free-Standing Discount Store | E68: 815 | F68: Category includes free-standing stores with off-street parking; typically offer a variety of products and services with long store hours | G68: 1,000 SF GFA | H68: 4.83 | I68: 0.3 | J68: C | K68: 3.38 | L68: 5.82 | M68: 6.35 | N68: ATG | O68: 6.43 | P68: 0.5 | Q68: 2.91 | R68: 3.18 | S68: 2.91 | T68: 3.18 | U68: 9.84 | W68: 7912 | X68: 24074.63 | Y68: 19575.75 | Z68: 11921.75 | AA68: 10981.13 | AB68: 7891.68 | AC68: 16506.63 | AD68: 8293.63 | AE68: 8423.04 | AF68: 18322.08 | AG68: 30917 | AH68: 12398.4 | AI68: 12980.63 | AJ68: 8100.13 | AK68: 21075.38 | AL68: 16184.13 | AM68: 6696.12
B69: Nursery (Garden Center) | E69: 817 | F69: Building with a yard of planting or landscape stock; may have office, storage, shipping or greenhouse facilities | G69: 1,000 SF GFA | H69: 6.94 | I69: 0.3 | J69: B | K69: 4.86 | L69: 5.82 | M69: 6.35 | N69: ATG | O69: 6.43 | P69: 0.5 | Q69: 2.91 | R69: 3.18 | S69: 2.91 | T69: 3.18 | U69: 14.14 | W69: 11371.2 | X69: 34600.28 | Y69: 28134.45 | Z69: 17134.05 | AA69: 15782.18 | AB69: 11340.28 | AC69: 23723.48 | AD69: 11919.68 | AE69: 12103.84 | AF69: 26328.68 | AG69: 44434.2 | AH69: 17816.4 | AI69: 18655.88 | AJ69: 11641.58 | AK69: 30289.73 | AL69: 23259.98 | AM69: 9622.27
B70: Home Improvement Superstore | E70: 862 | F70: Warehouse-type facilities offering a large variety of products and services including lumber, tool, paint, lighting, and fixtures, among other items. | G70: 1,000 SF GFA | H70: 2.33 | I70: 0.48 | J70: A | K70: 1.21 | L70: 5.82 | M70: 6.35 | N70: ATG | O70: 6.43 | P70: 0.5 | Q70: 2.91 | R70: 3.18 | S70: 2.91 | T70: 3.18 | U70: 3.52 | W70: 2833.6 | X70: 8622.08 | Y70: 7010.85 | Z70: 4269.65 | AA70: 3932.78 | AB70: 2823.04 | AC70: 5911.68 | AD70: 2970.28 | AE70: 3013.12 | AF70: 6554.24 | AG70: 11072.6 | AH70: 4435.2 | AI70: 4648.88 | AJ70: 2900.98 | AK70: 7547.93 | AL70: 5796.18 | AM70: 2395.36
B71: Pharmacy/Drugstore w/o Drive-Thru Window | E71: 880 | F71: Facilities that primarily sell prescription and non-prescription drugs without a drive-through window | G71: 1,000 SF GFA | H71: 8.51 | I71: 0.53 | J71: A | K71: 4 | L71: 5.82 | M71: 6.35 | N71: ATG | O71: 6.43 | P71: 0.5 | Q71: 2.91 | R71: 3.18 | S71: 2.91 | T71: 3.18 | U71: 11.64 | W71: 9361.92 | X71: 28486.44 | Y71: 23163.12 | Z71: 14106.48 | AA71: 12993.48 | AB71: 9335.28 | AC71: 19531.56 | AD71: 9813.48 | AE71: 9963.84 | AF71: 21673.68 | AG71: 36582.72 | AH71: 14666.4 | AI71: 15359.4 | AJ71: 9584.52 | AK71: 24937.56 | AL71: 19149.96 | AM71: 7921.02
B72: Pharmacy/Drugstore w/ Drive-Thru Window | E72: 881 | F72: Facilities that primarily sell prescription and non-prescription drugs with a drive-through window | G72: 1,000 SF GFA | H72: 10.29 | I72: 0.49 | J72: A | K72: 5.25 | L72: 5.82 | M72: 6.35 | N72: ATG | O72: 6.43 | P72: 0.5 | Q72: 2.91 | R72: 3.18 | S72: 2.91 | T72: 3.18 | U72: 15.28 | W72: 12291.2 | X72: 37399.65 | Y72: 30410.7 | Z72: 18520.3 | AA72: 17059.05 | AB72: 12254.56 | AC72: 25642.85 | AD72: 12884.05 | AE72: 13079.68 | AF72: 28451.36 | AG72: 48029.2 | AH72: 19252.8 | AI72: 20165.25 | AJ72: 12583.45 | AK72: 32740.35 | AL72: 25141.85 | AM72: 10398.04
B73: Shopping Center | E73: 820 | F73: Integrated group of commercial establishments; planning, owned, and managed as a unit | G73: 1,000 SF GLA | H73: 3.81 | I73: 0.34 | J73: A | K73: 2.51 | L73: 5.82 | M73: 6.35 | N73: ATG | O73: 6.43 | P73: 0.5 | Q73: 2.91 | R73: 3.18 | S73: 2.91 | T73: 3.18 | U73: 7.3 | W73: 5873.28 | X73: 17871.21 | Y73: 14531.58 | Z73: 8849.82 | AA73: 8151.57 | AB73: 5854.6 | AC73: 12253.29 | AD73: 6156.57 | AE73: 6248.8 | AF73: 13592.6 | AG73: 22950.48 | AH73: 9198 | AI73: 9635.85 | AJ73: 6012.93 | AK73: 15644.79 | AL73: 12013.89 | AM73: 4967.65
B74: Supermarket | E74: 850 | F74: Primary business is sale of groceries, food, and household cleaning items; may include photo, pharmacy, video rental, and/or ATM | G74: 1,000 SF GFA | H74: 9.24 | I74: 0.36 | J74: A | K74: 5.91 | L74: 5.82 | M74: 6.35 | N74: ATG | O74: 6.43 | P74: 0.5 | Q74: 2.91 | R74: 3.18 | S74: 2.91 | T74: 3.18 | U74: 17.2 | W74: 13829.44 | X74: 42080.21 | Y74: 34216.59 | Z74: 20838.11 | AA74: 19193.99 | AB74: 13794.4 | AC74: 28852.05 | AD74: 14496.49 | AE74: 14723.2 | AF74: 32026.4 | AG74: 54040.04 | AH74: 21672 | AI74: 22688.93 | AJ74: 14158.27 | AK74: 36837.8 | AL74: 28288.35 | AM74: 11704.6
B75: Toy/Children's Superstore | E75: 864 | F75: Businesses specializing in child-oriented merchandise | G75: 1,000 SF GFA | H75: 5 | I75: 0.3 | J75: B | K75: 3.5 | L75: 5.82 | M75: 6.35 | N75: ATG | O75: 6.43 | P75: 0.5 | Q75: 2.91 | R75: 3.18 | S75: 2.91 | T75: 3.18 | U75: 10.19 | W75: 8191.68 | X75: 24925.64 | Y75: 20267.73 | Z75: 12343.17 | AA75: 11369.3 | AB75: 8172.38 | AC75: 17090.12 | AD75: 8586.8 | AE75: 8722.64 | AF75: 18973.78 | AG75: 32009.88 | AH75: 12839.4 | AI75: 13439.48 | AJ75: 8386.46 | AK75: 21820.37 | AL75: 16756.22 | AM75: 6934.3
B76: Department Store | E76: 875 | F76: Free-standing stores that specialize in the sale of apparel, footwear, bedding, home products, jewelry, etc. | G76: 1,000 SF GFA | H76: 1.95 | I76: 0.3 | J76: B | K76: 1.37 | L76: 5.82 | M76: 6.35 | N76: ATG | O76: 6.43 | P76: 0.5 | Q76: 2.91 | R76: 3.18 | S76: 2.91 | T76: 3.18 | U76: 3.99 | W76: 3208.96 | X76: 9764.22 | Y76: 7939.56 | Z76: 4835.24 | AA76: 4453.74 | AB76: 3199.98 | AC76: 6694.78 | AD76: 3363.74 | AE76: 3415.44 | AF76: 7429.38 | AG76: 12539.36 | AH76: 5027.4 | AI76: 5264.7 | AJ76: 3285.26 | AK76: 8547.78 | AL76: 6563.98 | AM76: 2715.2
B77: SERVICES
B78: Walk-In Bank | E78: 911 | F78: Banks with their own parking lots, no drive-in lanes but contain non-drive-through ATMs | G78: 1,000 SF GFA | H78: 12.13 | I78: 0.4 | J78: B | K78: 7.28 | L78: 3.39 | M78: 3.39 | N78: RPA | O78: 3.39 | P78: 0.5 | Q78: 1.69 | R78: 1.7 | S78: 1.69 | T78: 1.7 | U78: 12.3 | W78: 9111.68 | X78: 27725.01 | Y78: 22543.98 | Z78: 13729.42 | AA78: 12646.17 | AB78: 9864.6 | AC78: 19009.49 | AD78: 9551.17 | AE78: 10528.8 | AF78: 22902.6 | AG78: 35604.88 | AH78: 15498 | AI78: 14948.85 | AJ78: 9328.33 | AK78: 24270.99 | AL78: 18638.09 | AM78: 8370.15
B79: Drive-In Bank | E79: 912 | F79: Banking facilities to conduct financial transactions from the vehicle; also usually apart of walk-in bank | G79: Drive-in Lanes | H79: 27.15 | I79: 0.35 | J79: A | K79: 17.65 | L79: 3.39 | M79: 3.39 | N79: RPA | O79: 3.39 | P79: 0.5 | Q79: 1.69 | R79: 1.7 | S79: 1.69 | T79: 1.7 | U79: 29.83 | W79: 22087.36 | X79: 67207.4 | Y79: 54648.21 | Z79: 33281.09 | AA79: 30655.22 | AB79: 23923.66 | AC79: 46080.36 | AD79: 23152.72 | AE79: 25534.48 | AF79: 55543.46 | AG79: 86308.76 | AH79: 37585.8 | AI79: 36237.08 | AJ79: 22612.54 | AK79: 58834.61 | AL79: 45180.06 | AM79: 20299.32
B80: Hair Salon | E80: 918 | F80: Facilities that specialize in cosmetic and beauty services including hair cutting and styling | G80: 1,000 SF GLA | H80: 1.45 | I80: 0.3 | J80: B | K80: 1.02 | L80: 3.39 | M80: 3.39 | N80: RPA | O80: 3.39 | P80: 0.5 | Q80: 1.69 | R80: 1.7 | S80: 1.69 | T80: 1.7 | U80: 1.72 | W80: 1273.28 | X80: 3874.34 | Y80: 3150.33 | Z80: 1918.57 | AA80: 1767.2 | AB80: 1379.44 | AC80: 2656.42 | AD80: 1334.7 | AE80: 1472.32 | AF80: 3202.64 | AG80: 4975.48 | AH80: 2167.2 | AI80: 2088.98 | AJ80: 1303.56 | AK80: 3391.67 | AL80: 2604.52 | AM80: 1170.46
B82: 1 | C82: 2 | D82: 3 | E82: 4 | F82: 5 | G82: 6 | H82: 7 | I82: 8 | J82: 9 | K82: 10 | L82: 11 | M82: 12 | N82: 13 | O82: 14 | P82: 15 | Q82: 16 | R82: 17 | S82: 18 | T82: 19 | U82: 20 | V82: 21 | W82: 22 | X82: 23 | Y82: 24 | Z82: 25 | AA82: 26 | AB82: 27 | AC82: 28 | AD82: 29 | AE82: 30 | AF82: 31 | AG82: 32 | AH82: 33 | AI82: 34 | AJ82: 35 | AK82: 36 | AL82: 37 | AM82: 38 | AN82: 39
